{"text_format":"1","workbook":"xlsx","n_sheets":2,"sheets":["podpořené","nepodpořené"],"not_rendered":{"charts":0,"images":0,"macros":1,"external_links":0,"defined_names":2,"comments":0,"pivot_tables":0},"unopened":[],"bounds":{"document_bytes":16777216,"sheet_cells":100000,"rows_first":2000,"rows_last":500,"rows_between":2000,"halvings":0,"cell_chars":16384,"cell_head_chars":4096},"cells_cut":0,"cells_raw":0,"read":"whole","date_system":"1900"}

{"sheet":"podpořené","index":0,"n_rows":205,"n_cols":48,"rows_kept":205,"cut":false,"hidden":false,"merged":[[5,5,6,5],[5,22,5,26],[5,0,6,0],[5,3,6,3],[5,4,6,4],[5,7,6,7],[5,13,6,13],[5,14,6,14],[5,2,6,2],[5,1,6,1],[5,27,6,27],[5,6,6,6],[5,8,6,8],[5,9,5,10],[5,11,5,12],[5,16,6,16],[5,17,5,21],[5,28,6,28],[5,30,6,30],[5,31,6,31],[5,32,6,32],[5,33,6,33],[5,47,6,47],[5,34,6,34],[5,35,6,35],[5,36,6,36],[5,37,6,37],[5,43,6,43],[5,45,6,45],[5,46,6,46],[5,44,6,44],[5,38,6,38],[5,39,6,39],[5,40,6,40],[5,41,6,41],[5,42,6,42]]}
["Hodnotící formulář - souhrnná tabulka projektů"]
["Číslo a název oblasti podpory, programu: č.1 oblast podpory Požární ochrana a prevence kriminality, program č. 1.1 Podpora jednotek požární ochrany obcí Libereckého kraje"]
["Rok vyhlášení: 2025"]
["Projekty navržené k podpoře"]
[]
["P. č. ","Obec/město\n","Žadatel","Název projektu","Popis projektu\n(účel projektu)","č. účelu","Výstupy projektu","Výstupy projektu\npo úpravách","Celk.\nvýdaje projektu Kč","Požadovaná výše dotace",null,"Vlastní zdroje příjemce",null,"Celk.\nvýdaje projektu Kč\npo úpravách","Výše dotace v Kč\npo úpravách","procento po úpravách","Admin. soulad (projekt je v souladu s účelem a podmínkami programu, je způsobilý pro další hodnocení) ANO/NE","Závazná kritéria hodnocení                 (body) /  %",null,null,null,null,"Spec. kritéria hodnocení              (body)  /  %",null,null,null,null,"Celk. počet bodů","OLP",null,"Ulice","Adresa","PSČ","Jmeno starosty","Pohlaví","IČ","DIČ","Číslo účtu","HK_Celková_výdaje_text","HK_Dotace_LK_text","HK_Dotace_ slovy","HK_procento-100% nebo 90% ","HK_Procento LK dotace","HK_Procento vlastní zdroje","VS","číslo usnesení","datum ZK","Kontrola délky textu"]
[null,null,null,null,null,null,null,null,null,"Kč","%","Kč","%",null,null,"%",null,"\n1\n",0.3,"\n2\n",0.1,"Σz ",3,0.1,4,0.5,"Σs  "]
[164,"Obec","Benešov u Semil","Obnova dýchací techniky pro JPO III Benešov u Semil","Účelem projektu je pořízení dvou kusů vzduchových přetlakových přístrojů MSA M1 SCB pro JPO III Benešov u Semil, pro zásahy spojené s využitím dýchací techniky - U6).","6c","Vzduchový přetlakový přístroj MSA M1 SCB - 2 ks","Vzduchový přetlakový přístroj MSA M1 SCB - 2 ks",52702,31600,{"$f":"ROUND(J8/I8*100,2)","v":59.96},{"$f":"I8-J8","v":21102},{"$f":"ROUND(L8/I8*100,2)","v":40.04},52702,31600,{"$f":"ROUND(O8/N8*100,2)","v":59.96},"ANO",15,{"$f":"R8*0.3","v":4.5},{"$f":"IF(K8<=30,\"15\",IF(K8<=50,\"7\",IF(K8<=70,\"0\",\"!!!\")))","v":"0"},{"$f":"T8*0.1","v":0},{"$f":"S8+U8","v":4.5},15,{"$f":"W8*0.1","v":1.5},7,{"$f":"Y8*0.5","v":3.5},{"$f":"X8+Z8","v":5},{"$f":"V8+AA8","v":9.5},"OLP/02024/2025",null,"125","Benešov u Semil","51206",{"$f":"_xlfn.XLOOKUP(C8,#REF!,#REF!,\"Nenalezeno!\")","v":{"$error":"#REF!"}},"starostka","00275590","CZ00275590","1263110329/0800",{"$f":"TEXT(N8,\"# ##0 Kč\")","v":"52 702 Kč"},{"$f":"TEXT(O8,\"# ##0,00 Kč\")","v":"31 600,00 Kč"},{"$f":"Slovy(O8)","v":"třicet jedentisíc šestset"},{"$f":"IF(O8<=300000,\"100%\",\"90%\")","v":"100%"},{"$f":"TEXT(P8,\"0,00\")& \"%\"","v":"59,96%"},{"$f":"TEXT(M8,\"0,00\")& \"%\"","v":"40,04%"},null,null,null,{"$f":"LEN(H8)","v":47}]
[168,"Obec","Benešov u Semil","Pořízení, obnova a doplnění vybavení JPO III Benešov u Semil","Účelem projektu je pořízení a obnova věcných prostředků požární ochrany - ochraných přileb. Vybavení je určeno pro JPO III Benešov u Semil. Nevyhovující kusy vybavení je třeba nahradit novými věcnými prostředky. U2)",2,"Přilba MSA Gallet F1xF Gold+ - 2ks","Přilba MSA Gallet F1xF Gold+ - 2ks",26596,15900,59.78,10696,40.22,26596,15900,59.78,"ANO",15,4.5,"0",0,4.5,15,1.5,15,7.5,9,13.5,"OLP/02028/2025",null,"125","Benešov u Semil","51206",{"$f":"_xlfn.XLOOKUP(C9,#REF!,#REF!,\"Nenalezeno!\")","v":{"$error":"#REF!"}},"starostka","00275590","CZ00275590","1263110329/0800","26 596 Kč","15 900,00 Kč",{"$f":"Slovy(O9)","v":"patnáct tisíc devětset"},"100%","59,78%","40,22%",null,null,null,34]
[163,"Obec","Bílá","Pořízení a obnova ochranných prostředků požární ochrany","Obec Bílá se na základě žádosti velitele jednotky obce rozhodla pokračovat v pořizování a obnově dalších ochranných prostředků pro zasahující hasiče. Důvod pořízení je vybavování nových členů jednotky a staří a opotřebování těchto prostředků.",2,"Zásahový oblek FireRexClasic FR3-kompletinvestiční - 4 ks, Nápis reflexní Hasiči Bílá - pro zásahové obleky\nGoodPRO - 4 ks, Kukla otvor - obličej - NOMEX - DEVA - 4 ks, Přilba zásahová Heros Titan - Rosenbauer- signální\nžlutá - 4 ks, Svítilna integrovaná LED pro přilbu Heros Titan - 4 ks, Zásahová obuv Fire Hero 3 - 4 ks","Zásahový oblek FireRexClasic FR3-kompletinvestiční - 4 ks, Nápis reflexní Hasiči Bílá - pro zásahové obleky\nGoodPRO - 4 ks, Kukla otvor - obličej - NOMEX - DEVA - 4 ks, Přilba zásahová Heros Titan - Rosenbauer- signální\nžlutá - 4 ks, Svítilna integrovaná LED pro přilbu Heros Titan - 4 ks, Zásahová obuv Fire Hero 3 - 4 ks",174800,87400,50,87400,50,174800,87400,50,"ANO",7,2.1,"7",0.70000000000000007,2.8000000000000003,15,1.5,15,7.5,9,11.8,"OLP/02023/2025",null,"76","Bílá","46343",{"$f":"_xlfn.XLOOKUP(C10,#REF!,#REF!,\"Nenalezeno!\")","v":{"$error":"#REF!"}},"starosta","00262668",null,"63229574/0600","174 800 Kč","87 400,00 Kč",{"$f":"Slovy(O10)","v":"osmdesát sedmtisíc čtyřista"},"100%","50,00%","50,00%",null,null,null,322]
[131,"Obec","Bílý Kostel nad Nisou","Pořízení prostředků požární ochrany - U4","U4) Pořízení, obnova, doplnění a opravy věcných prostředků požární ochrany pro čerpání vody zejména v souvislosti se záplavami a povodněmi",4,"Heron elektrocentrála benzínová 13HP/6,0kW (400V), 2x2,2kW (230V) - 1 ks, Ponorné kalové čerpadlo Rössle MEGA - 1 ks, Čerpadlo plovoucí POSEIDON 1200 Honda GCVx200 - 1 ks","Heron elektrocentrála benzínová 13HP/6,0kW (400V), 2x2,2kW (230V) - 1 ks, Ponorné kalové čerpadlo Rössle MEGA - 1 ks",85977,60000,69.790000000000006,25977,30.21,45187,31536,69.790000000000006,"ANO                              plovoucí čerpadlo Poseidon 1200 nesplňuje požadavek na minimální průtok 1500 l/min",7,2.1,"0",0,2.1,15,1.5,15,7.5,9,11.1,"OLP/01991/2025",null,"206","Bílý Kostel nad Nisou","46331",{"$f":"_xlfn.XLOOKUP(C11,#REF!,#REF!,\"Nenalezeno!\")","v":{"$error":"#REF!"}},"starosta","00672106","CZ00672106","94-217461/0710","45 187 Kč","31 536,00 Kč",{"$f":"Slovy(O11)","v":"třicet jedentisíc pětset třicet šest"},"100%","69,79%","30,21%",null,null,null,116]
[133,"Obec","Bílý Kostel nad Nisou","Pořízení prostředků požární ochrany - U6a","U6) Pořízení, obnova, doplnění, opravy a výstavba:\na)pořízení, obnova, doplnění a opravy věcných prostředků požární ochrany, ochranných prostředků k\nprovádění speciálních činností při zásazích v souvislosti s mimořádnými událostmi","6c","Hadice C52 s konc./20m PH zásah Fire Gold - 10 ks, Hadice B65 s konc./20m PH Fire\nOrange Al - 10 ks","Hadice C52 s konc./20m PH zásah Fire Gold - 10 ks, Hadice B65 s konc./20m PH Fire\nOrange Al - 10 ks",81213,56500,69.569999999999993,24713,30.43,81213,56500,69.569999999999993,"ANO",7,2.1,"0",0,2.1,15,1.5,7,3.5,5,7.1,"OLP/01994/2025",null,"206","Bílý Kostel nad Nisou","46331",{"$f":"_xlfn.XLOOKUP(C12,#REF!,#REF!,\"Nenalezeno!\")","v":{"$error":"#REF!"}},"starosta","00672106","CZ00672106","94-217461/0710","81 213 Kč","56 500,00 Kč",{"$f":"Slovy(O12)","v":"padesát šesttisíc pětset"},"100%","69,57%","30,43%",null,null,null,99]
[134,"Obec","Bílý Kostel nad Nisou","Pořízení prostředků požární ochrany – U6c","U6) Pořízení, obnova, doplnění, opravy a výstavba:\nc)pořízení, obnova, doplnění a opravy věcných prostředků požární ochrany mimo prostředků uvedených v U5) a U6)a)","6c","Přejezdový můstek - gumový 2xB - 2 ks, Proudnice kombinovaná TurboSupon 500 C52 - 2 ks, Rozdělovač B-CBC s kulovými uzávěry TKW - 1 ks, Savice 2,5m se šroubením Profi - (žlutá) + prodlouž. Šr - 4 ks, Sekeromotyka 2 kg - 2 ks, Fiskars X25 silná štípací sekera na dřevo - 1 ks, Lopatka dřevorubecká - malá - 1 ks, Koš sací PH - prodloužený náběh s motýlkem - 1 ks, Deska páteřní s popruhem - 1 ks, Lékárnička – Batoh vybavený dle vyhlášky 53/2010 III - 1 ks, Pila STIHL MS 362 C-M VW - 1 ks, Terč zastavovací svítící TCP01 - 1 ks, Kužel teleskopický svítící 450 mm - 3 ks, Lano ventilové 8x25 s karabinou - 2 ks, Upínací pás - popruh 5t 12 m×5 cm - 2 ks, Kleště štípací na tyče a svorníky 930 mm, průměr 13 mm - 1 ks, Sekera hasičská 2320 2,2kg - 1 ks, Sekera hasičská 2318 - 1 ks, Palice kovová 3 kg - 1 ks, Hák požární Al - 2 ks, Džberová stříkačka ruční plastová CTIF - 1 ks, Klíč 110/75 - 4 ks, Lano Static 11 barevné - 1 ks, Proudnice pěnotvorná S4 TKW bez uzávěru - 1 ks, Prodlužovací kabel na bubnu 20 m / 4 zásuvky / červený / PVC / 230 V / 1 mm2 - 1 ks, Přechod A110/B75 - 1 ks, Přechod C52/D25 kovaný - 1 ks, Hasicí přístroj práškový P6PMST 34A 6kg - 1 ks, Přiměšovač AWG Z4 - 1 ks, Savice přiměšovače D25 / 1,5m - 1 ks, Sběrač S110 a 2x B75 - 1 ks","Přejezdový můstek - gumový 2xB - 2 ks, Proudnice kombinovaná TurboSupon 500 C52 - 2 ks, Rozdělovač B-CBC s kulovými uzávěry TKW - 1 ks, Savice 2,5m se šroubením Profi - (žlutá) + prodlouž. Šr - 4 ks, Sekeromotyka 2 kg - 2 ks, Fiskars X25 silná štípací sekera na dřevo - 1 ks, Lopatka dřevorubecká - malá - 1 ks, Koš sací PH - prodloužený náběh s motýlkem - 1 ks, Deska páteřní s popruhem - 1 ks, Lékárnička – Batoh vybavený dle vyhlášky 53/2010 III - 1 ks, Pila STIHL MS 362 C-M VW - 1 ks, Terč zastavovací svítící TCP01 - 1 ks, Kužel teleskopický svítící 450 mm - 3 ks, Lano ventilové 8x25 s karabinou - 2 ks, Upínací pás - popruh 5t 12 m×5 cm - 2 ks, Kleště štípací na tyče a svorníky 930 mm, průměr 13 mm - 1 ks, Sekera hasičská 2320 2,2kg - 1 ks, Sekera hasičská 2318 - 1 ks, Palice kovová 3 kg - 1 ks, Hák požární Al - 2 ks, Džberová stříkačka ruční plastová CTIF - 1 ks, Klíč 110/75 - 4 ks, Lano Static 11 barevné - 1 ks, Proudnice pěnotvorná S4 TKW bez uzávěru - 1 ks, Prodlužovací kabel na bubnu 20 m / 4 zásuvky / červený / PVC / 230 V / 1 mm2 - 1 ks, Přechod A110/B75 - 1 ks, Přechod C52/D25 kovaný - 1 ks, Hasicí přístroj práškový P6PMST 34A 6kg - 1 ks, Přiměšovač AWG Z4 - 1 ks, Savice přiměšovače D25 / 1,5m - 1 ks, Sběrač S110 a 2x B75 - 1 ks",125314,75000,59.85,50314,40.15,125314,75000,59.85,"ANO",7,2.1,"0",0,2.1,15,1.5,7,3.5,5,7.1,"OLP/01995/2025",null,"206","Bílý Kostel nad Nisou","46331",{"$f":"_xlfn.XLOOKUP(C13,#REF!,#REF!,\"Nenalezeno!\")","v":{"$error":"#REF!"}},"starosta","00672106","CZ00672106","94-217461/0710","125 314 Kč","75 000,00 Kč",{"$f":"Slovy(O13)","v":"sedmdesát pěttisíc"},"100%","59,85%","40,15%",null,null,null,1256]
[171,"Obec","Bozkov","Pořízení navijáku pro JSDH Bozkov ","U6,c)pořízení, obnova, doplnění a opravy věcných prostředků požární ochrany mimo prostředků uvedených v U5) a U6)a).","6b","Naviják pro DA - 1 ks","Naviják pro DA - 1 ks",77755,46653,60,31102,40,77755,46653,60,"ANO",7,2.1,"0",0,2.1,15,1.5,7,3.5,5,7.1,"OLP/02032/2025",null,"270","Bozkov","51213",{"$f":"_xlfn.XLOOKUP(C14,#REF!,#REF!,\"Nenalezeno!\")","v":{"$error":"#REF!"}},"starosta","00275611","CZ00275611","94-50313451/0710","77 755 Kč","46 653,00 Kč",{"$f":"Slovy(O14)","v":"čtyřicet šesttisíc šestset padesát tři"},"100%","60,00%","40,00%",null,null,null,21]
[37,"Obec","Brniště","Pořízení věcných prostředků","Pořízení potřebného vybavení pro JSDH Brniště","6c","motykohrábě - 2 ks, Svítilna PARAT PX1 LED Ex - 10 ks, čerpadlo kalové HERON EMPH 80W SET se sacím\nkošem s klapkou - 1 ks, opasek polohovací pro hasiče - FIREMAN s\nrychlosponou Q-RS - 4 ks, držák svítilny PX1 pro přilbu DRAEGER HPS\n3500/SICOR EOM - 10 ks","motykohrábě - 2 ks, Svítilna PARAT PX1 LED Ex - 10 ks, čerpadlo kalové HERON EMPH 80W SET se sacím\nkošem s klapkou - 1 ks, opasek polohovací pro hasiče - FIREMAN s\nrychlosponou Q-RS - 4 ks, držák svítilny PX1 pro přilbu DRAEGER HPS\n3500/SICOR EOM - 10 ks",66891,33445,50,33446,50,66891,33445,50,"ANO",15,4.5,"7",0.70000000000000007,5.2,15,1.5,7,3.5,5,10.199999999999999,"OLP/01911/2025",null,"102","Brniště","47129",{"$f":"_xlfn.XLOOKUP(C15,#REF!,#REF!,\"Nenalezeno!\")","v":{"$error":"#REF!"}},"starosta","00260401",null,"94-517421/0710","66 891 Kč","33 445,00 Kč",{"$f":"Slovy(O15)","v":"třicet třitisíce čtyřista čtyřicet pět"},"100%","50,00%","50,00%",null,null,null,254]
[38,"Obec","Brniště","Pořízení zásahových kompletů","Pořízení hasičských zásahových kompletů a přileb pro potřeby JSDH Brniště",2,"Zásahové komplety - 4 ks, Přilby - 4 ks","Zásahové komplety - 4 ks, Přilby - 4 ks",58660,29330,50,29330,50,58660,29330,50,"ANO",15,4.5,"7",0.70000000000000007,5.2,15,1.5,15,7.5,9,14.2,"OLP/01912/2025",null,"102","Brniště","47129",{"$f":"_xlfn.XLOOKUP(C16,#REF!,#REF!,\"Nenalezeno!\")","v":{"$error":"#REF!"}},"starosta","00260401",null,"94-517421/0710","58 660 Kč","29 330,00 Kč",{"$f":"Slovy(O16)","v":"dvacet devěttisíc třista třicet"},"100%","50,00%","50,00%",null,null,null,39]
[12,"Obec","Bulovka","NÁKUP OCHRANNÝCH PROSTŘEDKŮ PO ","Vybavení členů výjezdové jednotky SDH Bulovka třívrstvými zásahovými obleky, botami a rukavicemi z",2,"zásahové boty - 4 ks, zásahové obleky třívrstvé - 2 ks, zásahové rukavice - 3 ks","zásahové boty - 4 ks, zásahové obleky třívrstvé - 2 ks, zásahové rukavice - 3 ks",75000,37000,49.33,38000,50.67,75000,37000,49.33,"ANO",5,1.5,"7",0.70000000000000007,2.2000000000000002,15,1.5,15,7.5,9,11.2,"OLP/01891/2025",null,"101","Bulovka","46401",{"$f":"_xlfn.XLOOKUP(C17,#REF!,#REF!,\"Nenalezeno!\")","v":{"$error":"#REF!"}},"starosta","00262692",null,"94-2112081/0710","75 000 Kč","37 000,00 Kč",{"$f":"Slovy(O17)","v":"třicet sedmtisíc"},"100%","49,33%","50,67%",null,null,null,80]
[115,"Obec","Bulovka","OBNOVA PROSTŘEDKŮ POŽÁRNÍ OCHRANY ","Dovybavení a obnova věcných prostředků PO VJ SDH Bulovka","6c","hadice C52 20m a spojky - 8 ks, hadice B75 20 m a spojky - 2 ks, hadice B65 20 m a spojky - 2 ks, rozdělovač pákový - 1 ks, proudnice - 1 ks","hadice C52 20m a spojky - 8 ks, hadice B75 20 m a spojky - 2 ks, hadice B65 20 m a spojky - 2 ks, rozdělovač pákový - 1 ks, proudnice - 1 ks",56600,28000,49.47,28600,50.53,56600,28000,49.47,"ANO",15,4.5,"7",0.70000000000000007,5.2,15,1.5,7,3.5,5,10.199999999999999,"OLP/01977/2025",null,"101","Bulovka","46401",{"$f":"_xlfn.XLOOKUP(C18,#REF!,#REF!,\"Nenalezeno!\")","v":{"$error":"#REF!"}},"starostka","00262692",null,"94-2112081/0710","56 600 Kč","28 000,00 Kč",{"$f":"Slovy(O18)","v":"dvacet osmtisíc"},"100%","49,47%","50,53%",null,null,null,140]
[116,"Obec","Bulovka","OPRAVA CAS","NUTNÉ PROVOZNÍ OPRAVY CAS","6b","OPRAVA CAS - 1 soubor","OPRAVA CAS - 1 soubor",50000,24000,48,26000,52,50000,24000,48,"ANO",7,2.1,"7",0.70000000000000007,2.8000000000000003,15,1.5,7,3.5,5,7.8000000000000007,"OLP/01978/2025",null,"101","Bulovka","46401",{"$f":"_xlfn.XLOOKUP(C19,#REF!,#REF!,\"Nenalezeno!\")","v":{"$error":"#REF!"}},"starostka","00262692",null,"94-2112081/0710","50 000 Kč","24 000,00 Kč",{"$f":"Slovy(O19)","v":"dvacet čtyřitisíce"},"100%","48,00%","52,00%",null,null,null,21]
[89,"Město","Česká Lípa","\"Nákup věcných prostředků - povodně - JSDHO Stará Lípa\"","Projekt bude využit na pořízení, obnovu, doplnění a opravy věcných prostředků požární ochrany pro čerpání vody, zejména v souvislosti se záplavami a povodněmi.",4,"Kalové čerpadlo STIHL WP 900 - 1 ks, Kalové elektrické čerpadlo MAST T8 - 1 ks","Kalové čerpadlo STIHL WP 900 - 1 ks, Kalové elektrické čerpadlo MAST T8 - 1 ks",68500,38000,55.47,30500,44.53,68500,38000,55.47,"ANO",15,4.5,"0",0,4.5,15,1.5,15,7.5,9,13.5,"OLP/01956/2025",null,"náměstí T. G. Masaryka 1/1","Česká Lípa","47001",{"$f":"_xlfn.XLOOKUP(C20,#REF!,#REF!,\"Nenalezeno!\")","v":{"$error":"#REF!"}},"starostka","00260428","CZ00260428","94-6214421/0710","68 500 Kč","38 000,00 Kč",{"$f":"Slovy(O20)","v":"třicet osmtisíc"},"100%","55,47%","44,53%",null,null,null,78]
[90,"Město","Česká Lípa","\"Požární ochrany - lesní požáry - JSDHO Stará Lípa\"","Projekt bude využit na obnovu, pořízení, doplnění a opravu věcných prostředků požární ochrany pro zásahy v souvislosti s likvidací lesních požárů, a to z důvodu předurčenosti jednotky v zařazení JPO II/I, dle poplachových plánů LK","6c","Hadice C52 PH FIRE GOLD 20m se spojkami - 6 ks, Hadice B75 PH FIRE GOLD 20n se spojkami - 4 ks","Hadice C52 PH FIRE GOLD 20m se spojkami - 6 ks, Hadice B75 PH FIRE GOLD 20n se spojkami - 4 ks",42258,21000,49.69,21258,50.31,42258,21000,49.69,"ANO",15,4.5,"7",0.70000000000000007,5.2,15,1.5,7,3.5,5,10.199999999999999,"OLP/01957/2025",null,"náměstí T. G. Masaryka 1/1","Česká Lípa","47001",{"$f":"_xlfn.XLOOKUP(C21,#REF!,#REF!,\"Nenalezeno!\")","v":{"$error":"#REF!"}},"starostka",260428,"CZ00260428","94-6214421/0710","42 258 Kč","21 000,00 Kč",{"$f":"Slovy(O21)","v":"dvacet jedentisíc"},"100%","49,69%","50,31%",null,null,null,94]
[119,"Město","Česká Lípa","\"Nákup ochranných prostředků PO - JSDHO Stará Lípa\"","Projekt bude využit na nákup a doplnění ochranných prostředků požární ochrany, který je nezbytně nutný pořídit z důvodu předurčenosti JSDHO v zařazení JPO II/I, dle poplachových plánů LK.",2,"Zásahový komplet jednovrstvý DEVA BUSFIRE - 4 ks, Zásahová obuv HAIX FIRE EAGLE HIGH - 4 ks, Kukla dvouvrstvá DEVOLD SPIRIT - 4 ks, Rukavice zásahové HUNTER Flexi - 4 ks, Rukavice rescue PENELOPE PLUS - 4 ks, Svítilna na přilbu PELI XP LED Z1 ATEX - 4 ks, Vesta REFLEX Pro s kapsami, včetně nápisů - 4 ks","Zásahový komplet jednovrstvý DEVA BUSFIRE - 4 ks, Zásahová obuv HAIX FIRE EAGLE HIGH - 4 ks, Kukla dvouvrstvá DEVOLD SPIRIT - 4 ks, Rukavice zásahové HUNTER Flexi - 4 ks, Rukavice rescue PENELOPE PLUS - 4 ks, Svítilna na přilbu PELI XP LED Z1 ATEX - 4 ks, Vesta REFLEX Pro s kapsami, včetně nápisů - 4 ks",134704,67000,49.74,67704,50.26,134704,67000,49.74,"ANO",15,4.5,"7",0.70000000000000007,5.2,15,1.5,15,7.5,9,14.2,"OLP/01979/2025",null,"náměstí T. G. Masaryka 1/1","Česká Lípa","47001",{"$f":"_xlfn.XLOOKUP(C22,#REF!,#REF!,\"Nenalezeno!\")","v":{"$error":"#REF!"}},"starostka","00260428","CZ00260428","94-6214421/0710","134 704 Kč","67 000,00 Kč",{"$f":"Slovy(O22)","v":"šedesát sedmtisíc"},"100%","49,74%","50,26%",null,null,null,304]
[145,"Město","Česká Lípa","„Nákup věcných prostředků - povodně – JSDHO Dobranov“","Projekt bude využit na doplnění věcných prostředků požární ochrany zejména v souvislosti se záplavami a povodněmi pro JSDHO Dobranov, kdy je tato jednotka primárně předurčena k ochraně\nobyvatelstva v rámci mimořádných událostí","6a","Nebrzděný přívěs AVZ 41 N2 750 kg 4170 x 2000 mm - 1 ks","Nebrzděný přívěs AVZ 41 N2 750 kg 4170 x 2000 mm - 1 ks",70000,40000,57.14,30000,42.86,70000,40000,57.14,"ANO",15,4.5,"0",0,4.5,15,1.5,15,7.5,9,13.5,"OLP/02000/2025",null,"náměstí T. G. Masaryka 1/1","Česká Lípa","47001",{"$f":"_xlfn.XLOOKUP(C23,#REF!,#REF!,\"Nenalezeno!\")","v":{"$error":"#REF!"}},"starostka","00260428","CZ00260428","94-6214421/0710","70 000 Kč","40 000,00 Kč",{"$f":"Slovy(O23)","v":"čtyřicet tisíc"},"100%","57,14%","42,86%",null,null,null,55]
[169,"Město","Česká Lípa","\"Nákup věcných prostředků PO - JSDHO Stará Lípa\"","Projekt bude využit na nákup a doplnění ochranných prostředků požární ochrany, který je nezbytně nutný pořídit z důvodu předurčenosti jednotky v zařazení JPO II/I, dle poplachových plánů",3,"Rescue hood PSS - záchranná vyváděcí kukla - 2 ks, Maska FPS 7730 M2-P-PC-EPDM, kandahár S-fix uni - 4 ks, Láhev kompozit 6,8/300bar, ventil Dräger EFV+potah\nna láhev L65B - 2 ks, Plicní automatika PSS-P (přetlak, krátká hadice) - 1 ks, Držák plicní autom","Rescue hood PSS - záchranná vyváděcí kukla - 2 ks, Maska FPS 7730 M2-P-PC-EPDM, kandahár S-fix uni - 4 ks, Láhev kompozit 6,8/300bar, ventil Dräger EFV+potah\nna láhev L65B - 2 ks, Plicní automatika PSS-P (přetlak, krátká hadice) - 1 ks, Držák plicní autom",102676,51000,49.67,51676,50.33,102676,51000,49.67,"ANO",15,4.5,"7",0.70000000000000007,5.2,15,1.5,15,7.5,9,14.2,"OLP/02029/2025",null,"náměstí T. G. Masaryka 1/1","Česká Lípa","47001",{"$f":"_xlfn.XLOOKUP(C24,#REF!,#REF!,\"Nenalezeno!\")","v":{"$error":"#REF!"}},"starostka","00260428","CZ00260428","94-6214421/0710","102 676 Kč","51 000,00 Kč",{"$f":"Slovy(O24)","v":"padesát jedentisíc"},"100%","49,67%","50,33%",null,null,null,255]
[47,"Obec","Český Dub","Pořízení a obnova osobních a ochranných prostředků PO","Pořízení a obnova osobních a ochranných prostředků PO",2,"zásahové rukavice (požáry) - 4 ks, zásahové rukavice (technické zásahy) - 4 ks, zásahový oblek vícevrstvý - 2 ks, zásahový oblek jednovrstvý - 2 ks, zásahová obuv - 2 ks, zásahová kukla - 4 ks, polohovací pás pro hasiče - 8 ks","zásahové rukavice (požáry) - 4 ks, zásahové rukavice (technické zásahy) - 4 ks, zásahový oblek vícevrstvý - 2 ks, zásahový oblek jednovrstvý - 2 ks, zásahová obuv - 2 ks, zásahová kukla - 4 ks, polohovací pás pro hasiče - 8 ks",120000,72000,60,48000,40,120000,72000,60,"ANO",15,4.5,"0",0,4.5,15,1.5,15,7.5,9,13.5,"OLP/01919/2025",null,"nám. Bedřicha Smetany 1","Český Dub","46343",{"$f":"_xlfn.XLOOKUP(C25,#REF!,#REF!,\"Nenalezeno!\")","v":{"$error":"#REF!"}},"starosta","00262722","CZ00262722","63421574/0600","120 000 Kč","72 000,00 Kč",{"$f":"Slovy(O25)","v":"sedmdesát dvatisíce"},"100%","60,00%","40,00%",null,null,null,226]
[48,"Město","Český Dub","Pořízení věcných prostředků PO pro likvidaci nebezpečných látek","Pořízení kompletních izolačních dýchacích přístrojů vč. tlakové láhve a masky",3,"izolační dýchací přístroj přetlakový - 4 ks, kompozitní tlaková láhev 6,8l 30MPa - 4 ks, ochranná maska k IDP - 4 ks, obal na tlakové láhve - 4 ks","izolační dýchací přístroj přetlakový - 4 ks, kompozitní tlaková láhev 6,8l 30MPa - 4 ks, ochranná maska k IDP - 4 ks, obal na tlakové láhve - 4 ks",208000,100000,48.08,108000,51.92,208000,100000,48.08,"ANO",15,4.5,"7",0.70000000000000007,5.2,15,1.5,15,7.5,9,14.2,"OLP/01920/2025",null,"nám. Bedřicha Smetany 1","Český Dub","46343",{"$f":"_xlfn.XLOOKUP(C26,#REF!,#REF!,\"Nenalezeno!\")","v":{"$error":"#REF!"}},"starosta","00262722","CZ00262722","63421574/0600","208 000 Kč","100 000,00 Kč",{"$f":"Slovy(O26)","v":"jednosto tisíc"},"100%","48,08%","51,92%",null,null,null,146]
[49,"Město","Český Dub","Pořízení věcných prostředků PO pro čerpání vody","Pořízení věcných prostředků PO pro čerpání vody, pořízení přenosného plovoucího čerpadla a hasičského vysavače",4,"přenosné plovoucí čerpadlo o min. průtoku 1500l/min. a výtlakem vody B75 - 1 ks, vysavač hasičský elektrický o min. průtoku\n20000l/hodinu a nádrží min. objem 70l vč.\nPříslušenství - 1 ks","přenosné plovoucí čerpadlo o min. průtoku 1500l/min. a výtlakem vody B75 - 1 ks, vysavač hasičský elektrický o min. průtoku\n20000l/hodinu a nádrží min. objem 70l vč.\nPříslušenství - 1 ks",142000,99400,70,42600,30,142000,99400,70,"ANO",15,4.5,"0",0,4.5,15,1.5,15,7.5,9,13.5,"OLP/01921/2025",null,"nám. Bedřicha Smetany 1","Český Dub","46343",{"$f":"_xlfn.XLOOKUP(C27,#REF!,#REF!,\"Nenalezeno!\")","v":{"$error":"#REF!"}},"starosta","00262722","CZ00262722","63421574/0600","142 000 Kč","99 400,00 Kč",{"$f":"Slovy(O27)","v":"devadesát devěttisíc čtyřista"},"100%","70,00%","30,00%",null,null,null,186]
[50,"Město","Český Dub","Pořízení věcných prostředků PO pro zásahy v souvislosti s likvidací lesních požárů","Pořízení věcných prostředků PO pro zásahy v souvislosti s likvidací lesních požárů",5,"batoh - D-program kompletní - 1 ks, hasící zádový vak o objemu min. 20l - 1 ks, tlumice - 2 ks, motykohrábě pro lesní požáry Gorgui - 2 ks, ochranná maska pro hasiče na lesní požár - 8 ks","batoh - D-program kompletní - 1 ks, hasící zádový vak o objemu min. 20l - 1 ks, tlumice - 2 ks, motykohrábě pro lesní požáry Gorgui - 2 ks, ochranná maska pro hasiče na lesní požár - 8 ks",71600,42960,60,28640,40,71600,42960,60,"ANO",15,4.5,"0",0,4.5,15,1.5,15,7.5,9,13.5,"OLP/01922/2025",null,"nám. Bedřicha Smetany 1","Český Dub","46343",{"$f":"_xlfn.XLOOKUP(C28,#REF!,#REF!,\"Nenalezeno!\")","v":{"$error":"#REF!"}},"starosta","00262722","CZ00262722","63421574/0600","71 600 Kč","42 960,00 Kč",{"$f":"Slovy(O28)","v":"čtyřicet dvatisíce devětset šedesát"},"100%","60,00%","40,00%",null,null,null,187]
[51,"Město","Český Dub","Oprava AZ 30 - výměna lan","Oprava AZ 30 - výměna poškozených lan na žebříkové sadě, kontrola příp. výměna tlakových hadic, výměna hydraulického oleje","6b","oprava AZ 30 - 1 ks","oprava AZ 30 - 1 ks",45000,27000,60,18000,40,45000,27000,60,"ANO",15,4.5,"0",0,4.5,15,1.5,0,0,1.5,6,"OLP/01923/2025",null,"nám. Bedřicha Smetany 1","Český Dub","46343",{"$f":"_xlfn.XLOOKUP(C29,#REF!,#REF!,\"Nenalezeno!\")","v":{"$error":"#REF!"}},"starosta","00262722","CZ00262722","63421574/0600","45 000 Kč","27 000,00 Kč",{"$f":"Slovy(O29)","v":"dvacet sedmtisíc"},"100%","60,00%","40,00%",null,null,null,19]
[152,"Město","Desná","Nákup osobních ochranných prostředků","U2) Doplnění a výměna osobních ochranných prostředků.","6c","Zásahový oblek - 2 ks, Přilba zásahová - 2 ks, Brodící holínky - 2 ks, Maska na lesní požáry - 4 ks, Rukavice zásahové - 4 ks, Rukavice záchranářské - 4 ks","Zásahový oblek - 2 ks, Přilba zásahová - 2 ks, Brodící holínky - 2 ks, Maska na lesní požáry - 4 ks, Rukavice zásahové - 4 ks, Rukavice záchranářské - 4 ks",89200,53520,60,35680,40,89200,53520,60,"ANO",15,4.5,"0",0,4.5,15,1.5,7,3.5,5,9.5,"OLP/02009/2025",null,"Krkonošská 318","Desná","46861",{"$f":"_xlfn.XLOOKUP(C30,#REF!,#REF!,\"Nenalezeno!\")","v":{"$error":"#REF!"}},"starosta","00262307","CZ00262307","963256359/0800","89 200 Kč","53 520,00 Kč",{"$f":"Slovy(O30)","v":"padesát třitisíce pětset dvacet"},"100%","60,00%","40,00%",null,null,null,155]
[153,"Město","Desná","Nákup věcných prostředků","U6c) Věcné prostředky, které doplní nebo nahradí stávající věcné prostředky jednotky","6c","motorová pila - 1 ks, přívěsný vozík s plachtou - 1 ks, tlumice - 3 ks, sada na čištění komínů - 1 ks, elektrocentrála - 1 ks,záchranné lano - 2 ks, výměna majáku na vozidle Scania CAS 20 - 1 ks ","motorová pila - 1 ks, přívěsný vozík s plachtou - 1 ks, tlumice - 3 ks, sada na čištění komínů - 1 ks, elektrocentrála - 1 ks,záchranné lano - 2 ks, výměna majáku na vozidle Scania CAS 20 - 1 ks ",199900,119940,60,79960,40,199900,119940,60,"ANO",15,4.5,"0",0,4.5,15,1.5,7,3.5,5,9.5,"OLP/02010/2025",null,"Krkonošská 318","Desná","46861",{"$f":"_xlfn.XLOOKUP(C31,#REF!,#REF!,\"Nenalezeno!\")","v":{"$error":"#REF!"}},"starosta","00262307","CZ00262307","963256359/0800","199 900 Kč","119 940,00 Kč",{"$f":"Slovy(O31)","v":"jednosto devatenáct tisíc devětset čtyřicet"},"100%","60,00%","40,00%",null,null,null,195]
[154,"Město","Desná","Oprava hasičárny Desná","U6f) Výměna motorů u pojízdných vrat a oprava elektrorozvodů v garážích jednotky hasičů","6f","montáž elektrických pohonů, včetně záložních zdrojů - 4 ks, oprava elektrorozvodů - 1 ks","montáž elektrických pohonů, včetně záložních zdrojů - 4 ks, oprava elektrorozvodů - 1 ks",181800,90900,50,90900,50,181800,90900,50,"ANO",15,4.5,"7",0.70000000000000007,5.2,15,1.5,0,0,1.5,6.7,"OLP/02011/2025",null,"Krkonošská 318","Desná","46861",{"$f":"_xlfn.XLOOKUP(C32,#REF!,#REF!,\"Nenalezeno!\")","v":{"$error":"#REF!"}},"starosta","00262307","CZ00262307","963256359/0800","181 800 Kč","90 900,00 Kč",{"$f":"Slovy(O32)","v":"devadesát tisíc devětset"},"100%","50,00%","50,00%",null,null,null,88]
[82,"Obec","Dětřichov","Nákup přenosného plovoucího čerpadla","Nákup přenosného plovoucího čerpadla",4,"Přenosné plovoucí čerpadlo - 1 ks","Přenosné plovoucí čerpadlo - 1 ks",56000,38000,67.86,18000,32.14,56000,38000,67.86,"ANO",7,2.1,"0",0,2.1,15,1.5,15,7.5,9,11.1,"OLP/01950/2025",null,"2","Dětřichov","46401",{"$f":"_xlfn.XLOOKUP(C33,#REF!,#REF!,\"Nenalezeno!\")","v":{"$error":"#REF!"}},"starostka","00831468",null,"24323461/0100","56 000 Kč","38 000,00 Kč",{"$f":"Slovy(O33)","v":"třicet osmtisíc"},"100%","67,86%","32,14%",null,null,null,33]
[83,"Obec","Dětřichov","Nákup ochranných prostředků PO","U2) Pořízení, obnova, doplnění osobních ochranných prostředků požární ochrany jednovrstvé a vícevrstvé zásahové obleky, zásahové boty, zásahové rukavice, polohovací opasky pro hasiče, ochranné kukly",2,"Zásahový oděv jednovrstvý - komplet - 4 ks, Zásahová obuv - 4 ks, Ochranná kukla - 4 ks, Rukavice zásahové - 4 ks, Opasek polohovací AP s karabinou - 4 ks, Nášivka HASIČI na zásahové kabáty - 4 ks","Zásahový oděv jednovrstvý - komplet - 4 ks, Zásahová obuv - 4 ks, Ochranná kukla - 4 ks, Rukavice zásahové - 4 ks, Opasek polohovací AP s karabinou - 4 ks, Nášivka HASIČI na zásahové kabáty - 4 ks",107470,64000,59.55,43470,40.450000000000003,107470,64000,59.55,"ANO",7,2.1,"0",0,2.1,15,1.5,15,7.5,9,11.1,"OLP/01951/2025",null,"2","Dětřichov","46401",{"$f":"_xlfn.XLOOKUP(C34,#REF!,#REF!,\"Nenalezeno!\")","v":{"$error":"#REF!"}},"starostka","00831468",null,"24323461/0100","107 470 Kč","64 000,00 Kč",{"$f":"Slovy(O34)","v":"šedesát čtyřitisíce"},"100%","59,55%","40,45%",null,null,null,196]
[63,"Obec","Dlouhý Most","Pořízení věcných prostředků požární ochrany pro SDH Dlouhý Most","Pořízení věcných prostředků požární ochrany - pořízení vybavení pro jednotku SDH","6c","zásahový kabát DEVA Bushfire - 1 ks, zásahové kalhoty DEVA Bushfire - 1 ks, zásahová obuv Holík - 1 ks, savice 1,6m - 3 ks, savice 2,5m  - 2 ks, Kužel teleskopický LED - 2 ks, Terč stavěcí plast LED - 2 ks, Lano - 1 ks, Sorbent Eco Dry 10 kg - 5 ks","zásahový kabát DEVA Bushfire - 1 ks, zásahové kalhoty DEVA Bushfire - 1 ks, zásahová obuv Holík - 1 ks, savice 1,6m - 3 ks, savice 2,5m  - 2 ks, Kužel teleskopický LED - 2 ks, Terč stavěcí plast LED - 2 ks, Lano - 1 ks, Sorbent Eco Dry 10 kg - 5 ks",30470,18280,59.99,12190,40.01,30470,18280,59.99,"ANO",7,2.1,"0",0,2.1,15,1.5,7,3.5,5,7.1,"OLP/01931/2025",null,"95","Dlouhý Most","46312",{"$f":"_xlfn.XLOOKUP(C35,#REF!,#REF!,\"Nenalezeno!\")","v":{"$error":"#REF!"}},"starostka","46744941",null,"505061933/0300","30 470 Kč","18 280,00 Kč",{"$f":"Slovy(O35)","v":"osmnáct tisíc dvěstě osmdesát"},"100%","59,99%","40,01%",null,null,null,248]
[226,"Město","Doksy","1.1 Podpora jednotek požární ochrany obcí Libereckého kraje","U2 - Pořízení, obnova, doplnění a opravy níže vyjmenovaných osobních ochranných prostředků požární ochrany",2,"zásahový oděv vícevrstvý - 2 komplety, zásahový oděv jednovrstvý - 4 komplety, obuv zásahová - 1 pár, svítilna Ledlencer P7 code - 4 ks, vesta výstražná dle GŘ-hasiči - 5 ks","zásahový oděv vícevrstvý - 2 komplety, zásahový oděv jednovrstvý - 4 komplety, obuv zásahová - 1 pár, svítilna Ledlencer P7 code - 4 ks, vesta výstražná dle GŘ-hasiči - 5 ks",99954,49000,49.02,50954,50.98,99954,49000,49.02,"ANO",15,4.5,"7",0.70000000000000007,5.2,15,1.5,15,7.5,9,14.2,"OLP/02076/2025",null,"náměstí Republiky 193","Doksy","47201",{"$f":"_xlfn.XLOOKUP(C36,#REF!,#REF!,\"Nenalezeno!\")","v":{"$error":"#REF!"}},"starosta","00260444","CZ00260444","94-816421/0710","99 954 Kč","49 000,00 Kč",{"$f":"Slovy(O36)","v":"čtyřicet devěttisíc"},"100%","49,02%","50,98%",null,null,null,173]
[227,"Město","Doksy","1.1 Podpora jednotek požární ochrany obcí Libereckého kraje","U6 - Pořízení, obnova, doplnění, opravy a výstavba\nU6f - oprava povrchu parkovacího stání mobilní požární techniky","6f","oprava povrchu podlahy v garáži pro výjezdovou techniku - 99 m2","oprava povrchu podlahy v garáži pro výjezdovou techniku - 99 m3",195191,115000,58.92,80191,41.08,195191,115000,58.92,"ANO",15,4.5,"0",0,4.5,15,1.5,0,0,1.5,6,"OLP/02077/2025",null,"náměstí Republiky 193","Doksy","47201",{"$f":"_xlfn.XLOOKUP(C37,#REF!,#REF!,\"Nenalezeno!\")","v":{"$error":"#REF!"}},"starosta","00260444","CZ00260444","94-816421/0710","195 191 Kč","115 000,00 Kč",{"$f":"Slovy(O37)","v":"jednosto patnáct tisíc"},"100%","58,92%","41,08%",null,null,null,63]
[230,"Město","Doksy","1.1 Podpora jednotek požární ochrany obcí Libereckého kraje","U6c - pořízení, obnova, doplnění a opravy věcných prostředků požární ochrany mimo prostředků uvedených v U5 a U6a.","6e","automatická pračka na min. 20kg prádla - 1 ks","automatická pračka na min. 20kg prádla - 1 ks",29990,15000,50.02,14990,49.98,29990,15000,50.02,"ANO",15,4.5,"0",0,4.5,15,1.5,0,0,1.5,6,"OLP/02078/2025",null,"náměstí Republiky 193","Doksy","47201",{"$f":"_xlfn.XLOOKUP(C38,#REF!,#REF!,\"Nenalezeno!\")","v":{"$error":"#REF!"}},"starosta","00260444","CZ00260444","94-816421/0710","29 990 Kč","15 000,00 Kč",{"$f":"Slovy(O38)","v":"patnáct tisíc"},"100%","50,02%","49,98%",null,null,null,45]
[216,"Město","Dubá","U2 - Město Dubá - osobní ochranné prostředky","Informace o projektu\nU2 - Pořízení nových osobních ochranných prostředků PO",2,"přilba - 4 ks, kukla dvouvrstvá - 4 ks, rukavice zásahové - 4 ks","přilba - 4 ks, kukla dvouvrstvá - 4 ks, rukavice zásahové - 4 ks",77200,46320,60,30880,40,77200,46320,60,"ANO",15,4.5,"0",0,4.5,15,1.5,15,7.5,9,13.5,"OLP/02068/2025",null,"Masarykovo náměstí 138/1","Dubá","47141",{"$f":"_xlfn.XLOOKUP(C39,#REF!,#REF!,\"Nenalezeno!\")","v":{"$error":"#REF!"}},"starostka","00260479","CZ00260479","129470556/0300","77 200 Kč","46 320,00 Kč",{"$f":"Slovy(O39)","v":"čtyřicet šesttisíc třista dvacet"},"100%","60,00%","40,00%",null,null,null,64]
[217,"Město","Dubá","U3 - Město Dubá – protichemický oblek","U3 - Pořízení věcných prostředků požární ochrany jednotek předurčených v Nařízení Libereckého kraje č. 1/2021 a v operativní dokumentaci Požárního poplachového plánu pro likvidaci úniků nebezpečných látek",3,"lehký protichemický oblek - 2 ks","lehký protichemický oblek - 2 ks",23400,16380,{"$f":"ROUND(J40/I40*100,2)","v":70},{"$f":"I40-J40","v":7020},{"$f":"ROUND(L40/I40*100,2)","v":30},23400,16380,{"$f":"ROUND(O40/N40*100,2)","v":70},"ANO",15,{"$f":"R40*0.3","v":4.5},{"$f":"IF(K40<=30,\"15\",IF(K40<=50,\"7\",IF(K40<=70,\"0\",\"!!!\")))","v":"0"},{"$f":"T40*0.1","v":0},{"$f":"S40+U40","v":4.5},15,{"$f":"W40*0.1","v":1.5},15,{"$f":"Y40*0.5","v":7.5},{"$f":"X40+Z40","v":9},{"$f":"V40+AA40","v":13.5},"OLP/02069/2025",null,"Masarykovo náměstí 138/1","Dubá","47141",{"$f":"_xlfn.XLOOKUP(C40,#REF!,#REF!,\"Nenalezeno!\")","v":{"$error":"#REF!"}},"starostka","00260479","CZ00260479","129470556/0300",{"$f":"TEXT(N40,\"# ##0 Kč\")","v":"23 400 Kč"},{"$f":"TEXT(O40,\"# ##0,00 Kč\")","v":"16 380,00 Kč"},{"$f":"Slovy(O40)","v":"šestnáct tisíc třista osmdesát"},{"$f":"IF(O40<=300000,\"100%\",\"90%\")","v":"100%"},{"$f":"TEXT(P40,\"0,00\")& \"%\"","v":"70,00%"},{"$f":"TEXT(M40,\"0,00\")& \"%\"","v":"30,00%"},null,null,null,{"$f":"LEN(H40)","v":32}]
[220,"Město","Dubá","U4 - Město Dubá – ponorné čerpadlo","U4 - Pořízení věcných prostředků požární ochrany pro čerpání vody zejména v souvislosti se záplavami a povodněmi - čerpadlo ponorné kalové elektrické o minimálním průtoku 600 l/min a výtlakem čerpadla\nopatřeným hadicovou spojkou B75",4,"Ponorné kalové čerpadlo Rosenbauer NAUTILUS - 1 ks","Ponorné kalové čerpadlo Rosenbauer NAUTILUS - 1 ks",59000,41300,70,17700,30,59000,41300,70,"ANO",15,4.5,"0",0,4.5,15,1.5,15,7.5,9,13.5,"OLP/02072/2025",null,"Masarykovo náměstí 138/1","Dubá","47141",{"$f":"_xlfn.XLOOKUP(C41,#REF!,#REF!,\"Nenalezeno!\")","v":{"$error":"#REF!"}},"starostka","00260479","CZ00260479","129470556/0300","59 000 Kč","41 300,00 Kč",{"$f":"Slovy(O41)","v":"čtyřicet jedentisíc třista"},"100%","70,00%","30,00%",null,null,null,50]
[237,"Město ","Dubá","U5 - Město Dubá - lesní požáry","U5 - pořízení a doplnění věcných prostředků požární ochrany pro zásahy v souvislosti s likvidací lesních požárů",5,"přilba - 4 ks, obuv - 1 ks","přilba - 4 ks, obuv - 1 ks",28100,16860,60,11240,40,28100,16860,60,"ANO",15,4.5,"0",0,4.5,15,1.5,15,7.5,9,13.5,"OLP/02086/2025",null,"Masarykovo náměstí 138/1","Dubá","47141",{"$f":"_xlfn.XLOOKUP(C42,#REF!,#REF!,\"Nenalezeno!\")","v":{"$error":"#REF!"}},"starostka","00260479","CZ00260479","129470556/0300","28 100 Kč","16 860,00 Kč",{"$f":"Slovy(O42)","v":"šestnáct tisíc osmset šedesát"},"100%","60,00%","40,00%",null,null,null,26]
[239,"Město","Dubá","U6c - Město Dubá – proudnice","U6c - pořízení věcných prostředků požární ochrany","6c","proudnice kombinovaná D25 Debolite 150 - 4 ks","proudnice kombinovaná D25 Debolite 150 - 4 ks",40000,24000,60,16000,40,40000,24000,60,"ANO",15,4.5,"0",0,4.5,15,1.5,7,3.5,5,9.5,"OLP/02088/2025",null,"Masarykovo náměstí 138/1","Dubá","47141",{"$f":"_xlfn.XLOOKUP(C43,#REF!,#REF!,\"Nenalezeno!\")","v":{"$error":"#REF!"}},"starostka","00260479","CZ00260479","129470556/0300","40 000 Kč","24 000,00 Kč",{"$f":"Slovy(O43)","v":"dvacet čtyřitisíce"},"100%","60,00%","40,00%",null,null,null,45]
[245,"Město ","Dubá","U6e - Město Dubá – pračka se sušičkou","U6e - technické vybavení hasičské zbrojnice - pračka se sušičkou","6e","Pračka se sušičkou LG WT1210BBF - 1 ks","Pračka se sušičkou LG WT1210BBF - 1 ks",50000,30000,60,20000,40,50000,30000,60,"ANO",15,4.5,"0",0,4.5,15,1.5,0,0,1.5,6,"OLP/02092/2025",null,"Masarykovo náměstí 138/1","Dubá","47141",{"$f":"_xlfn.XLOOKUP(C44,#REF!,#REF!,\"Nenalezeno!\")","v":{"$error":"#REF!"}},"starostka","00260479","CZ00260479","129470556/0300","50 000 Kč","30 000,00 Kč",{"$f":"Slovy(O44)","v":"třicet tisíc"},"100%","60,00%","40,00%",null,null,null,38]
[183,"Město","Frýdlant","Pořízení, obnova a doplnění osobních ochranných prostředků PO, JSDH Frýdlant (U2)","Pořízení osobních ochranných prostředků (OOP) pro 2 výjezd. družstva JSDH (Frýdlant, Frýdlant Větrov) z důvodů nutné obměny stávajícího vybavení po skončení doby životnosti nebo značně opotřebovaného vybavení a vybavení nových členů jednotky OOP",2,"Zásahový oblek třívrstvý - komplet - 2 ks, Ochranný oděv PS II - NOMEX - 8 ks, Výstražná ochranná vesta s nápisem HASIČI - 4 ks, Zásahové rukavice technické - 8 párů, Svítilna osobní s držákem - 8 ks","Zásahový oblek třívrstvý - komplet - 2 ks, Výstražná ochranná vesta s nápisem HASIČI - 4 ks, Zásahové rukavice technické - 8 párů, Svítilna osobní s držákem - 8 ks",146800,73400,50,73400,50,86800,43400,50,"ANO                                         oděv PS II není podporovaným OOPP v tomto účelu",15,4.5,"7",0.70000000000000007,5.2,15,1.5,15,7.5,9,14.2,"OLP/02043/2025",null,"nám. T. G. Masaryka 37","Frýdlant","46401",{"$f":"_xlfn.XLOOKUP(C45,#REF!,#REF!,\"Nenalezeno!\")","v":{"$error":"#REF!"}},"starosta","00262781","CZ00262781","94-2817081/0710","86 800 Kč","43 400,00 Kč",{"$f":"Slovy(O45)","v":"čtyřicet třitisíce čtyřista"},"100%","50,00%","50,00%",null,null,null,163]
[184,"Město","Frýdlant","Pořízení a doplnění věcných prostředků čerpání vody, JSDH Frýdlant (U4)","Pořízení a doplnění věcných prostředků požární ochrany pro čerpání vody v souvislosti se záplavami a povodněmi za účelem rozšíření schopností a zvýšení připravenosti jednotky SDH Frýdlant k provádění zásahů při záplavách a povodních.",4,"Čerpadlo přenosné plovoucí s minimálním\nvýkonem/průtokem 1 500 lt/min - 1 ks, Ponorné kalové čerpadlo elektrické s minimálním\nvýkonem/průtokem 600 lt/min - 1 ks, Přenosný zdroj elektrické energie k ponornému\nkalovému elektrickému čerpadlu s minimálním\nvýkonem 4 kW - 1 ks","Čerpadlo přenosné plovoucí s minimálním\nvýkonem/průtokem 1 500 lt/min - 1 ks, Ponorné kalové čerpadlo elektrické s minimálním\nvýkonem/průtokem 600 lt/min - 1 ks, Přenosný zdroj elektrické energie k ponornému\nkalovému elektrickému čerpadlu s minimálním\nvýkonem 4 kW - 1 ks",149000,104300,70,44700,30,149000,104300,70,"ANO",15,4.5,"0",0,4.5,15,1.5,15,7.5,9,13.5,"OLP/02044/2025",null,"nám. T. G. Masaryka 37","Frýdlant","46401",{"$f":"_xlfn.XLOOKUP(C46,#REF!,#REF!,\"Nenalezeno!\")","v":{"$error":"#REF!"}},"starosta","00262781","CZ00262781","94-2817081/0710","149 000 Kč","104 300,00 Kč",{"$f":"Slovy(O46)","v":"jednosto čtyřitisíce třista"},"100%","70,00%","30,00%",null,null,null,271]
[195,"Město","Frýdlant","Oprava CAS 24 Renault, JSDH Frýdlant (U6b)","Oprava cisternové automob. stříkačky CAS 24 Renault JSDH Frýdlant po dlouholetém užívání při zásazích, objem nádrže 2 500 lt, r. v. 2006. Cílem je předat opravenou CAS k užívání druhému organizovanému výjezdu JSDH a vyřadit z užívání CAS Karosa.","6b","Provedení opravy nástavby CAS 24 Renault JSDH\nFrýdlant (RZ 2L5 6282) - 1 oprava","Provedení opravy nástavby CAS 24 Renault JSDH\nFrýdlant (RZ 2L5 6282) - 1 oprava",500000,300000,60,200000,40,500000,300000,60,"ANO",15,4.5,"0",0,4.5,15,1.5,7,3.5,5,9.5,"OLP/02050/2025",null,"nám. T. G. Masaryka 37","Frýdlant","46401",{"$f":"_xlfn.XLOOKUP(C47,#REF!,#REF!,\"Nenalezeno!\")","v":{"$error":"#REF!"}},"starosta","00262781","CZ00262781","94-2817081/0710","500 000 Kč","300 000,00 Kč",{"$f":"Slovy(O47)","v":"třista tisíc"},"100%","60,00%","40,00%",null,null,null,79]
[196,"Město","Frýdlant","Pořízení a doplnění věcných prostředků pro likvidaci lesních požárů, JSDH Frýdlant (U5)","Pořízení a doplnění věcných a osobních ochranných prostředků pro zásahy v souvislosti s likvidací lesních požárů za účelem rozšíření schopností a zvýšení připravenosti 2 organiz. výjezdů JSDH Frýdlant provádět zásahy v souvislosti s lesními požáry",5,"Batoh na D program s vybavením - 1 ks, Hasící zádový vak s objemem min. 20 litrů - 2 ks, Multifunkční nářadí (motykohrábě) - 2 ks, Tlumice - 2 ks, Přilba pro hasiče při lesních požárech - 8 ks, Jednovrstvý zásahový oblek/komplet pro venkovní\nprostředí a lesní požáry - 8 ks","Batoh na D program s vybavením - 1 ks, Hasící zádový vak s objemem min. 20 litrů - 2 ks, Multifunkční nářadí (motykohrábě) - 2 ks, Tlumice - 2 ks, Přilba pro hasiče při lesních požárech - 8 ks, Jednovrstvý zásahový oblek/komplet pro venkovní\nprostředí a lesní požáry - 8 ks",220800,132480,60,88320,40,220800,132480,60,"ANO",15,4.5,"0",0,4.5,15,1.5,15,7.5,9,13.5,"OLP/02051/2025",null,"nám. T. G. Masaryka 37","Frýdlant","46401",{"$f":"_xlfn.XLOOKUP(C48,#REF!,#REF!,\"Nenalezeno!\")","v":{"$error":"#REF!"}},"starosta","00262781","CZ00262781","94-2817081/0710","220 800 Kč","132 480,00 Kč",{"$f":"Slovy(O48)","v":"jednosto třicet dvatisíce čtyřista osmdesát"},"100%","60,00%","40,00%",null,null,null,273]
[211,"Město","Frýdlant","Pořízení věcných prostředků pro doplnění dýchacích, pěnotvorných a osvětlovacích systémů, JSDH Frýdlant (U6c)","Pořízení věcných prostředků pro obnovu dýchacích a doplnění pěnotvorných a osvětlovacích systémů do výbavy jednotky SDH Frýdlant z důvodů končící doby životnosti (dých. technika) nebo rozšíření schopností jednotky či zvýšení úrovně bezpečnosti práce","6c","Tlaková kompozitní láhev k IDP 300 bar - 4 ks, Přenosné pěnotvorné zařízení PRO/pak - 1 ks, Mobilní AKU osvětlovací systém - 1 ks","Tlaková kompozitní láhev k IDP 300 bar - 4 ks, Přenosné pěnotvorné zařízení PRO/pak - 1 ks, Mobilní AKU osvětlovací systém - 1 ks",117000,70200,60,46800,40,117000,70200,60,"ANO",15,4.5,"0",0,4.5,15,1.5,7,3.5,5,9.5,"OLP/02061/2025",null,"nám. T. G. Masaryka 37","Frýdlant","46401",{"$f":"_xlfn.XLOOKUP(C49,#REF!,#REF!,\"Nenalezeno!\")","v":{"$error":"#REF!"}},"starosta","00262781","CZ00262781","94-2817081/0710","117 000 Kč","70 200,00 Kč",{"$f":"Slovy(O49)","v":"sedmdesát tisíc dvěstě"},"100%","60,00%","40,00%",null,null,null,129]
[120,"Obec","Habartice","Nákup věcných prostředků požární ochrany","U6)c) Pořízení , obnova, doplnění a opravy věcných prostředků požární ochrany mimo prostředků uvedených v U5) a U6)a) - proudnice, rukavice, svítilny, reflektor, tlaková lahev, dopravní kužel,","6c","proudnice kombinovaná C52 s koncovkou - 1 ks, ochranné rukavice proti prořezu - 4 ks, pracovní kožené rukavice s podšívkou - 4 ks, ruční USB nabíjecí LED svítilna s příslušenstvím - 2 ks, LED reflektor SHARE 20V - nabíjecí - 2 ks, lahev tlaková ocelová 6l/30Mpa DRAGER - 1 ks, dopravní výstražný kužel - skládací - 1 ks ","proudnice kombinovaná C52 s koncovkou - 1 ks, ochranné rukavice proti prořezu - 4 ks, pracovní kožené rukavice s podšívkou - 4 ks, ruční USB nabíjecí LED svítilna s příslušenstvím - 2 ks, LED reflektor SHARE 20V - nabíjecí - 2 ks, lahev tlaková ocelová 6l/30Mpa DRAGER - 1 ks, dopravní výstražný kužel - skládací - 1 ks ",33143,18891,57,14252,43,33143,18891,57,"ANO",15,4.5,"0",0,4.5,15,1.5,7,3.5,5,9.5,"OLP/01980/2025",null,"191","Habartice","46373",{"$f":"_xlfn.XLOOKUP(C50,#REF!,#REF!,\"Nenalezeno!\")","v":{"$error":"#REF!"}},"starosta","00262790",null,"6328461/0100","33 143 Kč","18 891,00 Kč",{"$f":"Slovy(O50)","v":"osmnáct tisíc osmset devadesát jedna"},"100%","57,00%","43,00%",null,null,null,320]
[132,"Město","Harrachov","Doplnění osobních ochranných prostředků","U2) doplnění osobních ochranných prostředků požární ochrany",2,"Zásahová obuv - 4 páry, Rukavice zásahové - 4 páry, Zásahová přilba - 2 ks, Zásahová přilba - 4 ks, Rukavice rescue - 4 páry, Svítilna ruční - 4 ks, Vesta výstražná - HASIČI - 3 ks, Vesta výstražná - ZDRAVOTNÍK - 1 ks","Zásahová obuv - 4 páry, Rukavice zásahové - 4 páry, Zásahová přilba - 2 ks, Zásahová přilba - 4 ks, Rukavice rescue - 4 páry, Svítilna ruční - 4 ks, Vesta výstražná - HASIČI - 3 ks, Vesta výstražná - ZDRAVOTNÍK - 1 ks",106703,53351,50,53352,50,106703,53351,50,"ANO",15,4.5,"7",0.70000000000000007,5.2,15,1.5,15,7.5,9,14.2,"OLP/01993/2025",null,"Harrachov 150","Harrachov","51246",{"$f":"_xlfn.XLOOKUP(C51,#REF!,#REF!,\"Nenalezeno!\")","v":{"$error":"#REF!"}},"starosta","00275697","CZ00275697","1263085389/0800","106 703 Kč","53 351,00 Kč",{"$f":"Slovy(O51)","v":"padesát třitisíce třista padesát jedna"},"100%","50,00%","50,00%",null,null,null,217]
[179,"Město","Hodkovice nad Mohelkou","Vybavení hasičské zbrojnice","zvýšení akceschopnosti jednotky sboru dobrovolných hasičů","6f","podlaha garáže - zátěžové dlaždice 500x500x8 mm - 1080 ks","podlaha garáže - zátěžové dlaždice 500x500x8 mm - 1080 ks",183600,110160,60,73440,40,183600,110160,60,"ANO",15,4.5,"0",0,4.5,15,1.5,0,0,1.5,6,"OLP/02040/2025",null,"nám. T. G. Masaryka 1","Hodkovice nad Mohelkou","46342",{"$f":"_xlfn.XLOOKUP(C52,#REF!,#REF!,\"Nenalezeno!\")","v":{"$error":"#REF!"}},"starostka","00262820","CZ00262820","984945399/0800","183 600 Kč","110 160,00 Kč",{"$f":"Slovy(O52)","v":"jednosto deset tisíc jednosto šedesát"},"100%","60,00%","40,00%",null,null,null,57]
[180,"Město","Hodkovice nad Mohelkou","Osobní ochranné prostředky","Zvýšení akceschopnosti jednotky sboru dobrovolných hasičů v Hodkovicích nad Mohelkou","2","přilby Galet F2 - 4 ks, zásahový oděv - 4 ks, zásahová obuv - 4 ks, zásahové rukavice - 4 ks, žárové rukavice - 4 ks ","přilby Galet F2 - 4 ks, zásahový oděv - 4 ks, zásahová obuv - 4 ks, zásahové rukavice - 4 ks, žárové rukavice - 4 ks ",175820,100000,56.88,75820,43.12,175820,100000,56.88,"ANO",15,4.5,"0",0,4.5,15,1.5,15,7.5,9,13.5,"OLP/02041/2025",null,"nám. T. G. Masaryka 1","Hodkovice nad Mohelkou","46342",{"$f":"_xlfn.XLOOKUP(C53,#REF!,#REF!,\"Nenalezeno!\")","v":{"$error":"#REF!"}},"starostka","00262820","CZ00262820","984945399/0800","175 820 Kč","100 000,00 Kč",{"$f":"Slovy(O53)","v":"jednosto tisíc"},"100%","56,88%","43,12%",null,null,null,117]
[3,"Městys","Holany","Pořízení věcných prostředků PO (U6a)","Udržení a zvýšení akceschopnosti jednotky PO","6c","Nákup izolačních dýchacích přístrojů - 2 ks, Nákup tlakových láhví pro IDP - 3 ks, Nákup skříňky s elektronástroji - 1 ks,  Nákup skříňky s nástroji - 1 ks, Nákup ručních svítilen - 2 ks, Nákup lan typu A s vaky - 3 ks, Nákup přetlakového ventilu - 1 ks, Nákup přiměšovače - 1 ks ","Nákup izolačních dýchacích přístrojů - 2 ks, Nákup tlakových láhví pro IDP - 3 ks, Nákup skříňky s elektronástroji - 1 ks,  Nákup skříňky s nástroji - 1 ks, Nákup ručních svítilen - 2 ks, Nákup lan typu A s vaky - 3 ks, Nákup přetlakového ventilu - 1 ks, Nákup přiměšovače - 1 ks ",200676,100000,49.83,100676,50.17,200676,100000,49.83,"ANO",15,4.5,"7",0.70000000000000007,5.2,15,1.5,7,3.5,5,10.199999999999999,"OLP/01886/2025",null,"Holany 43","Holany","47002",{"$f":"_xlfn.XLOOKUP(C54,#REF!,#REF!,\"Nenalezeno!\")","v":{"$error":"#REF!"}},"starostka","00260525","CZ00260525","94-1210421/0710","200 676 Kč","100 000,00 Kč",{"$f":"Slovy(O54)","v":"jednosto tisíc"},"100%","49,83%","50,17%",null,null,null,280]
[204,"Městys","Holany","Pořízení ochranných prostředků PO (U2) / ","Udržení akceschopnosti jednotky PO",2,"nákup zásahových oděvů - 4 ks, nákup zásahových rukavic - 4 ks","nákup zásahových oděvů - 4 ks, nákup zásahových rukavic - 4 ks",103316,61990,60,41326,40,103316,61990,60,"ANO",15,4.5,"0",0,4.5,15,1.5,15,7.5,9,13.5,"OLP/02055/2025",null,"Holany 43","Holany","47002",{"$f":"_xlfn.XLOOKUP(C55,#REF!,#REF!,\"Nenalezeno!\")","v":{"$error":"#REF!"}},"starostka","00260525","CZ00260525","94-1210421/0710","103 316 Kč","61 990,00 Kč",{"$f":"Slovy(O55)","v":"šedesát jedentisíc devětset devadesát"},"100%","60,00%","40,00%",null,null,null,62]
[144,"Obec","Horní Branná","Oprava vozidla CAS JSDH Horní Branná","U6b. Nutná oprava vývěvy, vřetenových ventilů čerpadla, majákové rampy na CAS 20, pro zvýšení bezpečnosti montáž couvací kamery, přídavných LED výstražných svítidel a pořízení sněhových řetězů.","6b","Majáková rampa Holomý - 1 ks, Přetěsnění pístové vývěvy - 1 ks, Výměna vřetenových ventilů čerpadla THT TO 3000 - 4 ks, Dodání a montáž couvací kamery pro CAS 20 - 1 ks, Dodání a montáž LED výstražných svítidel na CAS 20 - 4 ks, Tlakový vzduch pro odvodnění čerpadla - 1 ks, Sněhové řetězy PEWAG - 1 ks ","Majáková rampa Holomý - 1 ks, Přetěsnění pístové vývěvy - 1 ks, Výměna vřetenových ventilů čerpadla THT TO 3000 - 4 ks, Dodání a montáž couvací kamery pro CAS 20 - 1 ks, Dodání a montáž LED výstražných svítidel na CAS 20 - 4 ks, Tlakový vzduch pro odvodnění čerpadla - 1 ks, Sněhové řetězy PEWAG - 1 ks ",145000,72500,50,72500,50,145000,72500,50,"ANO",7,2.1,"7",0.70000000000000007,2.8000000000000003,15,1.5,7,3.5,5,7.8000000000000007,"OLP/01909/2025",null,"262","Horní Branná","51236",{"$f":"_xlfn.XLOOKUP(C56,#REF!,#REF!,\"Nenalezeno!\")","v":{"$error":"#REF!"}},"starosta","00275735","CZ00275735","94-51412451/0710","145 000 Kč","72 500,00 Kč",{"$f":"Slovy(O56)","v":"sedmdesát dvatisíce pětset"},"100%","50,00%","50,00%",null,null,null,303]
[148,"Obec","Horní Branná","Přístavba hasičské zbrojnice JSDH Horní Branná","U6f.Přístavba garáže hasičské zbrojnice pro parkování CAS 20 JSDH Horní Branná, do současné garáže se CAS nevejde a je řešeno dočasné a provizorní parkování mimo prostory hasičské zbrojnice, kam mají členové i delší dojezd než k hasičské zbrojnici","6f","přístavba hasičárny - 1 ks","přístavba hasičárny - 1 ks",4232773,500000,11.81,3732773,88.19,4232773,500000,11.81,"ANO",7,2.1,"15",1.5,3.6,15,1.5,0,0,1.5,5.0999999999999996,"OLP/02002/2025",null,"262","Horní Branná","51236",{"$f":"_xlfn.XLOOKUP(C57,#REF!,#REF!,\"Nenalezeno!\")","v":{"$error":"#REF!"}},"starosta","00275735","CZ00275735","94-51412451/0710","4 232 773 Kč","500 000,00 Kč",{"$f":"Slovy(O57)","v":"pětset tisíc"},"90%","11,81%","88,19%",null,null,null,26]
[260,"Město","Hrádek nad Nisou","JSDHO Hrádek nad Nisou - Oprava teleskopického osvětlovacího stožáru CAS 20","Účel U6b)","6b","Oprava teleskopického osvětlovacího stožáru CAS - 1 ks","Oprava teleskopického osvětlovacího stožáru CAS - 1 ks",56374,28187,50,28187,50,56374,28187,50,"ANO",15,4.5,"7",0.70000000000000007,5.2,15,1.5,7,3.5,5,10.199999999999999,"OLP/02101/2025",null,"Horní náměstí 73","Hrádek nad Nisou","46334",{"$f":"_xlfn.XLOOKUP(C58,#REF!,#REF!,\"Nenalezeno!\")","v":{"$error":"#REF!"}},"starosta","00262854","CZ00262854","984856329/0800","56 374 Kč","28 187,00 Kč",{"$f":"Slovy(O58)","v":"dvacet osmtisíc jednosto osmdesát sedm"},"100%","50,00%","50,00%",null,null,null,54]
[261,"Město","Hrádek nad Nisou","JSDHO Hrádek nad Nisou - Pořízení a obnova osobních ochranných prostředků požární ochrany","Účel - U2",2,"Zásahový oblek jednovrstvý - 4 ks, Zásahový oblek třívrstvý -  4 ks, Požární přilba - 7 ks, Zásahové rukavice - 4 ks, Lehká technická víceúčelová přilba - 4 ks, Čelní svítilna pro lehkou víceúčelovou přilbu - 8 ks","Zásahový oblek jednovrstvý - 4 ks, Zásahový oblek třívrstvý -  4 ks, Požární přilba - 7 ks, Zásahové rukavice - 4 ks, Lehká technická víceúčelová přilba - 4 ks, Čelní svítilna pro lehkou víceúčelovou přilbu - 8 ks",347279,173639,50,173640,50,347279,173639,50,"ANO",15,4.5,"7",0.70000000000000007,5.2,15,1.5,15,7.5,9,14.2,"OLP/02102/2025",null,"Horní náměstí 73","Hrádek nad Nisou","46334",{"$f":"_xlfn.XLOOKUP(C59,#REF!,#REF!,\"Nenalezeno!\")","v":{"$error":"#REF!"}},"starosta","00262854","CZ00262854","984856329/0800","347 279 Kč","173 639,00 Kč",{"$f":"Slovy(O59)","v":"jednosto sedmdesát třitisíce šestset třicet devět"},"100%","50,00%","50,00%",null,null,null,213]
[25,"Obec","Chuchelna","U5) Pořizení, obnova, doplnění a opravy věcných prostředků PO\npro zásahy a likvidací lesních požárů. - NEPLATNÝ PODPIS","Pořízení věcných prostředků PO pro zásahy s likvidací lesních požárů. Zvýšení efektivity a akceschopnosti. Finanční podpora LK je vítaným příjmem do obecního rozpočtu",5,"Batoh Bag classic - 1 ks, Hasičský zádový vak Ermak 20 l - 1 ks","Batoh Bag classic - 1 ks, Hasičský zádový vak Ermak 20 l - 1 ks",39738,15895,40,23843,60,39738,15895,40,"ANO",7,2.1,"7",0.70000000000000007,2.8000000000000003,15,1.5,15,7.5,9,11.8,"OLP/01900/2025",null,"296","Chuchelna","51301",{"$f":"_xlfn.XLOOKUP(C60,#REF!,#REF!,\"Nenalezeno!\")","v":{"$error":"#REF!"}},"starostka","00275760",null,"107773716/0300","39 738 Kč","15 895,00 Kč",{"$f":"Slovy(O60)","v":"patnáct tisíc osmset devadesát pět"},"100%","40,00%","60,00%",null,null,null,63]
[26,"Obec","Chuchelna","Pořízení osobních ochranných prostředků požární ochrany 2025 ","U2) Pořízení, obnova, doplnění a opravy osobních ochranných prostředků požární ochrany",2,"Zásahový oblek Bushfire - 1 ks, ZásAhová obuv Demon Fire - 1 pár, Přilba technická Drager - 4 ks, Příslušenství k přilbě Drager - držák - 4 ks, Příslušenství k přilbě Drager - svítilna - 4 ks","Zásahový oblek Bushfire - 1 ks, ZásAhová obuv Demon Fire - 1 pár, Přilba technická Drager - 4 ks, Příslušenství k přilbě Drager - držák - 4 ks, Příslušenství k přilbě Drager - svítilna - 4 ks",48766,19506,40,29260,60,48766,19506,40,"ANO",7,2.1,"7",0.70000000000000007,2.8000000000000003,15,1.5,15,7.5,9,11.8,"OLP/01901/2025",null,"296","Chuchelna","51301",{"$f":"_xlfn.XLOOKUP(C61,#REF!,#REF!,\"Nenalezeno!\")","v":{"$error":"#REF!"}},"starostka","00275760",null,"107773716/0300","48 766 Kč","19 506,00 Kč",{"$f":"Slovy(O61)","v":"devatenáct tisíc pětset šest"},"100%","40,00%","60,00%",null,null,null,191]
[113,"Město","Jablonec nad Jizerou","U5) Pořízení a obnova prostředků požární ochrany","Pořízení a obnova prostředků požární ochrany pro úspěšné zdolávání lesních požárů",5,"Rukavice pracovní - 4 páry, Přilba zásahová lehká - 4 ks","Rukavice pracovní - 4 páry, Přilba zásahová lehká - 4 ks",26591,15955,60,10636,40,26591,15955,60,"ANO",15,4.5,"0",0,4.5,15,1.5,15,7.5,9,13.5,"OLP/01975/2025",null,"Jablonec nad Jizerou 277","Jablonec nad Jizerou","51243",{"$f":"_xlfn.XLOOKUP(C62,#REF!,#REF!,\"Nenalezeno!\")","v":{"$error":"#REF!"}},"starosta","00275778","CZ00275778","1263087309/0800","26 591 Kč","15 955,00 Kč",{"$f":"Slovy(O62)","v":"patnáct tisíc devětset padesát pět"},"100%","60,00%","40,00%",null,null,null,56]
[114,"Město","Jablonec nad Jizerou","U2) Pořízení a obnova osobních ochranných prostředků ","Pořízení a obnova OOP pro zásahovou jednotku SDH Jablonec nad Jizerou",2,"Komplet zásahový - 4 ks, Rukavice na lesní požáry - 4 páry, Rukavice zásahové - 4 páry, Přilba zásahová - 4 ks, Obuv zásahová - 4 páry, Svítilna - 4 ks, Nabíječka k svítilně - 2 ks ","Komplet zásahový - 4 ks, Rukavice na lesní požáry - 4 páry, Rukavice zásahové - 4 páry, Přilba zásahová - 4 ks, Obuv zásahová - 4 páry, Svítilna - 4 ks, Nabíječka k svítilně - 2 ks ",157974,94782,60,63192,40,157974,94782,60,"ANO",15,4.5,"0",0,4.5,15,1.5,15,7.5,9,13.5,"OLP/01976/2025",null,"Jablonec nad Jizerou 277","Jablonec nad Jizerou","51243",{"$f":"_xlfn.XLOOKUP(C63,#REF!,#REF!,\"Nenalezeno!\")","v":{"$error":"#REF!"}},"starosta","00275778","CZ00275778","1263087309/0800","157 974 Kč","94 782,00 Kč",{"$f":"Slovy(O63)","v":"devadesát čtyřitisíce sedmset osmdesát dva"},"100%","60,00%","40,00%",null,null,null,181]
[122,"Město","Jablonec nad Jizerou","U6c) Pořízení a obnova věcných prostředků PO NENÍ ČASOVÉ RAZÍTKO","Doplnění a obnova vybavení zásahové jednotky SDH Jablonec nad Jizerou","6c","Lišta k motorové pile - 5 ks, Řetěz k motorové pile - 10 ks, Pilník k motorové pile - 8 ks, Čisticí prostředky řada F3 - 5 litrů,  Čisticí prostředky řada F5 - 10 litrů, Čisticí prostředky řada F6 - 5 litrů, Čisticí prostředky řada F15 - 5 litrů","Lišta k motorové pile - 5 ks, Řetěz k motorové pile - 10 ks, Pilník k motorové pile - 8 ks, Čisticí prostředky řada F3 - 5 litrů,  Čisticí prostředky řada F5 - 10 litrů, Čisticí prostředky řada F6 - 5 litrů, Čisticí prostředky řada F15 - 5 litrů",28020,16812,60,11208,40,28020,16812,60,"ANO",15,4.5,"0",0,4.5,15,1.5,7,3.5,5,9.5,"OLP/01982/2025",null,"Jablonec nad Jizerou 277","Jablonec nad Jizerou","51243",{"$f":"_xlfn.XLOOKUP(C64,#REF!,#REF!,\"Nenalezeno!\")","v":{"$error":"#REF!"}},"starosta","00275778","CZ00275778","1263087309/0800","28 020 Kč","16 812,00 Kč",{"$f":"Slovy(O64)","v":"šestnáct tisíc osmset dvanáct"},"100%","60,00%","40,00%",null,null,null,245]
[125,"Město","Jablonec nad Jizerou","U6b)  Opravy mobilní techniky","Neopravená a nefunkční technika je výjezdové jednotce k ničemu - opravit se musí","6b","Pneumatika - 7 ks","Pneumatika - 7 ks",198457,119074,60,79383,40,198457,119074,60,"ANO",15,4.5,"0",0,4.5,15,1.5,7,3.5,5,9.5,"OLP/01985/2025",null,"Jablonec nad Jizerou 277","Jablonec nad Jizerou","51243",{"$f":"_xlfn.XLOOKUP(C65,#REF!,#REF!,\"Nenalezeno!\")","v":{"$error":"#REF!"}},"starosta","00275778","CZ00275778","1263087309/0800","198 457 Kč","119 074,00 Kč",{"$f":"Slovy(O65)","v":"jednosto devatenáct tisíc sedmdesát čtyři"},"100%","60,00%","40,00%",null,null,null,17]
[130,"Statutární město ","Jablonec nad Nisou","Jablonec nad Nisou – nákup ochranných prostředků pro JSDHO 2025","U2 - pořízeních ochranných prostředků pro JSDHO Kokonín, Proseč nad Nisou a Jablonecké Paseky",2,"zásahová kukla - 4 ks, zásahové rukavice - 4 páry, Technické rukavice - 4 páry, Svítilna na přilbu - 8 ks, Držák svítilny - 8 ks, Zásahový oblek třívrstvý - 5 komplet, Zásahové kalhoty třívrstvé - 1 ks","zásahová kukla - 4 ks, zásahové rukavice - 4 páry, Technické rukavice - 4 páry, Svítilna na přilbu - 8 ks, Držák svítilny - 8 ks, Zásahový oblek třívrstvý - 5 komplet, Zásahové kalhoty třívrstvé - 1 ks",148500,89000,59.93,59500,40.07,148500,89000,59.93,"ANO",15,4.5,"0",0,4.5,15,1.5,15,7.5,9,13.5,"OLP/01990/2025",null,"Mírové náměstí 3100/19","Jablonec nad Nisou","46601",{"$f":"_xlfn.XLOOKUP(C66,#REF!,#REF!,\"Nenalezeno!\")","v":{"$error":"#REF!"}},"starosta","00262340","CZ00262340","9005-228451/0100","148 500 Kč","89 000,00 Kč",{"$f":"Slovy(O66)","v":"osmdesát devěttisíc"},"100%","59,93%","40,07%",null,null,null,201]
[135,"Statutární město ","Jablonec nad Nisou","Jablonec nad Nisou - prostředky pro likvidaci lesních požárů - JSDHO - 2025","U5 - obnova a doplnění prostředků využívaných v souvislosti s likvidací lesních požárů pro Jednotky JSDHO Jablonec nad Nisou.",5,"zásahový oblek jednotvrstvý - 7 ks, nástroj ženijní kombinovaný - 4 ks, tlumice -  4 ks, vak hasící - 1 ks,  přilba zásahová pro technické zásahy - 8 ks, rukavice k použití při lesních požárech - 4 páry, svítilna na přilbu - 4 ks","zásahový oblek jednotvrstvý - 7 ks, nástroj ženijní kombinovaný - 4 ks, tlumice -  4 ks, vak hasící - 1 ks,  přilba zásahová pro technické zásahy - 8 ks, rukavice k použití při lesních požárech - 4 páry, svítilna na přilbu - 4 ks",150900,90000,59.64,60900,40.36,150900,90000,59.64,"ANO",15,4.5,"0",0,4.5,15,1.5,15,7.5,9,13.5,"OLP/01996/2025",null,"Mírové náměstí 3100/19","Jablonec nad Nisou","46601",{"$f":"_xlfn.XLOOKUP(C67,#REF!,#REF!,\"Nenalezeno!\")","v":{"$error":"#REF!"}},"starosta","00262340","CZ00262340","9005-228451/0100","150 900 Kč","90 000,00 Kč",{"$f":"Slovy(O67)","v":"devadesát tisíc"},"100%","59,64%","40,36%",null,null,null,229]
[136,"Statutární město ","Jablonec nad Nisou","Jablonec nad Nisou - věcné prostředky pro JSDHO Jablonecké Paseky - 2025","U 6a - obměna hydraulických hadic k sadě HVZ LUKAS, kterou využívá JSDHO Jablonecké Paseky při likvidaci následků dopravních nehod v rámci své předurčenosti","6a","obměna hydraulických hadic -1 komplet","obměna hydraulických hadic -1 komplet",59544,41000,68.86,18544,31.14,59544,41000,68.86,"ANO",15,4.5,"0",0,4.5,15,1.5,15,7.5,9,13.5,"OLP/01997/2025",null,"Mírové náměstí 3100/19","Jablonec nad Nisou","46601",{"$f":"_xlfn.XLOOKUP(C68,#REF!,#REF!,\"Nenalezeno!\")","v":{"$error":"#REF!"}},"starosta","00262340","CZ00262340","9005-228451/0100","59 544 Kč","41 000,00 Kč",{"$f":"Slovy(O68)","v":"čtyřicet jedentisíc"},"100%","68,86%","31,14%",null,null,null,37]
[141,"Statutární město ","Jablonec nad Nisou","Jablonec nad Nisou - JSDHO Proseč nad Nisou - pořízení nové CAS (V1)","U1 - pořízení nové CAS pro JDSHO Proseč nad Nisou",1,"pořízení CAS - 1 ks","pořízení CAS - 1 ks",10057955,1500000,14.91,8557955,85.09,10057955,1500000,14.91,"ANO",15,4.5,"15",1.5,6,15,1.5,15,7.5,9,15,"OLP/01998/2025",null,"Mírové náměstí 3100/19","Jablonec nad Nisou","46601",{"$f":"_xlfn.XLOOKUP(C69,#REF!,#REF!,\"Nenalezeno!\")","v":{"$error":"#REF!"}},"starosta","00262340","CZ00262340","9005-228451/0100","10 057 955 Kč","1 500 000,00 Kč",{"$f":"Slovy(O69)","v":"jedenmilion pětset tisíc"},"90%","14,91%","85,09%",null,null,null,19]
[142,"Statutární město ","Jablonec nad Nisou","Jablonec nad Nisou - věcné prostředky pro JSDHO - 2025","U6c - obnova a doplnění věcných prostředků pro JSDHO Jablonec nad Nisou","6c","Radiostanice přenosná - 1 ks, Dobíječ k radiostanici - 4 ks, Nabíječka do vozu pro\ntermokameru - 1 ks, Hadice C - 4 ks, Hadice B - 4 ks, Ochranný oděv protichemický - 6 ks, Elektrocentrála - 2 ks, Baterie do radiostanice - 5 ks, Autonabíječe svítilen - 2 ks, Hadice D - 4 ks, Prodlužovací kabel na bubnu - 4 ks, Lano static - 2 ks, Radiostanice DP - 2 ks","Radiostanice přenosná - 1 ks, Dobíječ k radiostanici - 4 ks, Nabíječka do vozu pro\ntermokameru - 1 ks, Hadice C - 4 ks, Hadice B - 4 ks, Ochranný oděv protichemický - 6 ks, Elektrocentrála - 2 ks, Baterie do radiostanice - 5 ks, Autonabíječe svítilen - 2 ks, Hadice D - 4 ks, Prodlužovací kabel na bubnu - 4 ks, Lano static - 2 ks, Radiostanice DP - 2 ks",324668,193000,59.45,131668,40.549999999999997,324668,193000,59.45,"ANO",15,4.5,"0",0,4.5,15,1.5,7,3.5,5,9.5,"OLP/01999/2025",null,"Mírové náměstí 3100/19","Jablonec nad Nisou","46601",{"$f":"_xlfn.XLOOKUP(C70,#REF!,#REF!,\"Nenalezeno!\")","v":{"$error":"#REF!"}},"starosta","00262340","CZ00262340","9005-228451/0100","324 668 Kč","193 000,00 Kč",{"$f":"Slovy(O70)","v":"jednosto devadesát třitisíce"},"100%","59,45%","40,55%",null,null,null,354]
[150,"Město","Jablonné v Podještědí","U2 – Nákup ochranných prostředků PO","Vybavení jednotky sboru dobrovolných hasičů prostředky požární ochrany nutnou při zásazích",2,"Zásahový oblek DEVA PATRIOT + nápis - 3 ks, Zásahový oblek jednovrstvý BUSHFIRE + nápis - 3 ks, Zásahová lehká přilba HPS 3500 - 4 ks, Zásahová přilba DRAEGER HPS 7000 - 4 ks, Zásahová obuv HAIX FIRE - 3 ks","Zásahový oblek DEVA PATRIOT + nápis - 3 ks, Zásahový oblek jednovrstvý BUSHFIRE + nápis - 3 ks, Zásahová lehká přilba HPS 3500 - 4 ks, Zásahová přilba DRAEGER HPS 7000 - 4 ks, Zásahová obuv HAIX FIRE - 3 ks",205120,123072,60,82048,40,205120,123072,60,"ANO",15,4.5,"0",0,4.5,15,1.5,15,7.5,9,13.5,"OLP/02007/2025",null,"náměstí Míru 22","Jablonné v Podještědí","47125",{"$f":"_xlfn.XLOOKUP(C71,#REF!,#REF!,\"Nenalezeno!\")","v":{"$error":"#REF!"}},"starosta","00260576","CZ00260576","903269369/0800","205 120 Kč","123 072,00 Kč",{"$f":"Slovy(O71)","v":"jednosto dvacet třitisíce sedmdesát dva"},"100%","60,00%","40,00%",null,null,null,206]
[151,"Město","Jablonné v Podještědí","U6c) - pořízení, obnova, doplnění a oprava techniky","Nákup, pořízení ,obnova, doplnění a oprava techniky","6b","Pneumatiky MATADOR DR1 - 8 ks","Pneumatiky MATADOR DR1 - 8 ks",69280,41568,{"$f":"ROUND(J72/I72*100,2)","v":60},{"$f":"I72-J72","v":27712},{"$f":"ROUND(L72/I72*100,2)","v":40},69280,41568,{"$f":"ROUND(O72/N72*100,2)","v":60},"ANO",15,{"$f":"R72*0.3","v":4.5},{"$f":"IF(K72<=30,\"15\",IF(K72<=50,\"7\",IF(K72<=70,\"0\",\"!!!\")))","v":"0"},{"$f":"T72*0.1","v":0},{"$f":"S72+U72","v":4.5},15,{"$f":"W72*0.1","v":1.5},7,{"$f":"Y72*0.5","v":3.5},{"$f":"X72+Z72","v":5},{"$f":"V72+AA72","v":9.5},"OLP/02008/2025",null,"náměstí Míru 22","Jablonné v Podještědí","47125",{"$f":"_xlfn.XLOOKUP(C72,#REF!,#REF!,\"Nenalezeno!\")","v":{"$error":"#REF!"}},"starosta","00260576","CZ00260576","903269369/0800",{"$f":"TEXT(N72,\"# ##0 Kč\")","v":"69 280 Kč"},{"$f":"TEXT(O72,\"# ##0,00 Kč\")","v":"41 568,00 Kč"},{"$f":"Slovy(O72)","v":"čtyřicet jedentisíc pětset šedesát osm"},{"$f":"IF(O72<=300000,\"100%\",\"90%\")","v":"100%"},{"$f":"TEXT(P72,\"0,00\")& \"%\"","v":"60,00%"},{"$f":"TEXT(M72,\"0,00\")& \"%\"","v":"40,00%"},null,null,null,{"$f":"LEN(H72)","v":29}]
[109,"Obec","Jindřichovice pod Smrkem","Doplnění prostředků DT a první pomoci pro JSDH Jindřichovice p.Sm.","U1)-U6 a-f. Účelem projektu je pokračovat v doplnění prostředků DT o náhradní lahve Draeger a prostředky pvní pomoci u předurčenosti jednotky pro pomoc s AED","6c","Doplnění lahví DT Draeger - 4 ks, Záchranářský batoh - 1 ks, Páteřní deska - nosítka - 1 ks","Doplnění lahví DT Draeger - 4 ks, Záchranářský batoh - 1 ks, Páteřní deska - nosítka - 1 ks",39435,23661,60,15774,40,39435,23661,60,"ANO",15,4.5,"0",0,4.5,15,1.5,7,3.5,5,9.5,"OLP/01973/2025",null,"245","Jindřichovice pod Smrkem","46365",{"$f":"_xlfn.XLOOKUP(C73,#REF!,#REF!,\"Nenalezeno!\")","v":{"$error":"#REF!"}},"starosta","00672025","CZ00672025","94-2917461/0710","39 435 Kč","23 661,00 Kč",{"$f":"Slovy(O73)","v":"dvacet třitisíce šestset šedesát jedna"},"100%","60,00%","40,00%",null,null,null,91]
[253,"Obec","Jindřichovice pod Smrkem","Oprava podlahy v hasičské zbrojnici","U6f - Oprava podlahy pro stání hasičské cisterny v hasičské zbrojnici a instalace nových okapních svodů na budovu hasičské zbrojnice v Jindřichovicích pod Smrkem.","6f","Podlaha - 83 m2, Okapní žlaby - 49 m","Podlaha - 83 m2, Okapní žlaby - 49 m",870162,522097,60,348065,40,870162,522097,60,"ANO",15,4.5,"0",0,4.5,15,1.5,0,0,1.5,6,"OLP/02100/2025",null,"245","Jindřichovice pod Smrkem","46365",{"$f":"_xlfn.XLOOKUP(C74,#REF!,#REF!,\"Nenalezeno!\")","v":{"$error":"#REF!"}},"starosta","00672025","CZ00672025","94-2917461/0710","870 162 Kč","522 097,00 Kč",{"$f":"Slovy(O74)","v":"pětset dvacet dvatisíce devadesát sedm"},"90%","60,00%","40,00%",null,null,null,36]
[84,"Obec","Kořenov","Pořízení ochranných prostředků pro JPO III Příchovice","U2) Pořízení, obnova a doplnění ochranných prostředků požární ochrany",2,"Zásahový oblek - 3 ks, Zásahová obuv - 3 páry, Zásahová přilba - 1 kus, Záchranářské rukavice - 4 páry, Ochranná kukla - 4 ks","Zásahový oblek - 3 ks, Zásahová obuv - 3 páry, Zásahová přilba - 1 kus, Záchranářské rukavice - 4 páry, Ochranná kukla - 4 ks",80841,48505,60,32336,40,80841,48505,60,"ANO",15,4.5,"0",0,4.5,15,1.5,15,7.5,9,13.5,"OLP/01953/2025",null,"480","Kořenov","46849",{"$f":"_xlfn.XLOOKUP(C75,#REF!,#REF!,\"Nenalezeno!\")","v":{"$error":"#REF!"}},"starosta","00262421","CZ00262421","1925451/0100","80 841 Kč","48 505,00 Kč",{"$f":"Slovy(O75)","v":"čtyřicet osmtisíc pětset pět"},"100%","60,00%","40,00%",null,null,null,125]
[46,"Město","Krásný Les","Doplnění osobních ochranných prostředků požární ochrany JPO5 Krásný Les","U2 - obnova a doplnění osobních ochranných prostředků požární ochrany",2,"jednovrtstvý zásahový oblek - 3 ks, Zásahová obuv - 3 ks, zásahové rukavice - 2 ks","jednovrtstvý zásahový oblek - 3 ks, Zásahová obuv - 3 ks, zásahové rukavice - 2 ks",50000,25000,50,25000,50,50000,25000,50,"ANO",7,2.1,"7",0.70000000000000007,2.8000000000000003,15,1.5,15,7.5,9,11.8,"OLP/01918/2025",null,"257","Krásný Les","46401",{"$f":"_xlfn.XLOOKUP(C76,#REF!,#REF!,\"Nenalezeno!\")","v":{"$error":"#REF!"}},null,"00672009",null,"19727461/0100","50 000 Kč","25 000,00 Kč",{"$f":"Slovy(O76)","v":"dvacet pěttisíc"},"100%","50,00%","50,00%",null,null,null,82]
[21,"Obec","Kravaře","U5) Doplnění vybavení pro likvidaci lesních požárů","Vybavení CAS 24 a CAS 30 prostředky pro zefektivnění likvidace lesních požárů.",5,"Motykohrábě - 2 ks, Zádový hasící vak - 2 ks, Rozdělovač DCD - 1 ks, Proudnice D - 2 ks","Motykohrábě - 1 ks, Zádový hasící vak - 1 ks, Rozdělovač DCD - 1 ks, Proudnice D - 2 ks",52118,31270,60,20848,40,38818,23290,60,"ANO                                    lze pořídit pouze 1 ks motykohrábí a 1 ks zádového hasicího vaku",15,4.5,"0",0,4.5,15,1.5,15,7.5,9,13.5,"OLP/01898/2025",null,"náměstí 166","Kravaře","47103",{"$f":"_xlfn.XLOOKUP(C77,#REF!,#REF!,\"Nenalezeno!\")","v":{"$error":"#REF!"}},"starosta","00260657",null,"2006-2117421/0710","38 818 Kč","23 290,00 Kč",{"$f":"Slovy(O77)","v":"dvacet třitisíce dvěstě devadesát"},"100%","60,00%","40,00%",null,null,null,87]
[22,"Obec","Kravaře","U2) obnova a doplnění vybavení osobními ochrannými pracovními prostředky","U2) obnova a doplnění vybavení osobními ochrannými pracovními prostředky",2,"Třívrstvý zásahový oděv - 2 ks, Zásahové rukavice - 4 ks, Dvouvrstvá zásahová kukla - 4 ks, Svítilna k přilbě - 4 ks","Třívrstvý zásahový oděv - 2 ks, Zásahové rukavice - 4 ks, Dvouvrstvá zásahová kukla - 4 ks, Svítilna k přilbě - 4 ks",64648,38788,60,25860,40,64648,38788,60,"ANO",15,4.5,"0",0,4.5,15,1.5,15,7.5,9,13.5,"OLP/01899/2025",null,"náměstí 166","Kravaře","47103",{"$f":"_xlfn.XLOOKUP(C78,#REF!,#REF!,\"Nenalezeno!\")","v":{"$error":"#REF!"}},"starosta","00260657",null,"2006-2117421/0710","64 648 Kč","38 788,00 Kč",{"$f":"Slovy(O78)","v":"třicet osmtisíc sedmset osmdesát osm"},"100%","60,00%","40,00%",null,null,null,116]
[33,"Obec","Kravaře","U4 Obnova vybavení jednotky pro řešení povodní a mimořádných událostí\nspojených s vodou","Nákup čerpadla a vysavače pro účel nasazení při mimořádných událostech spojených se záplavami nebo povodněmi nebo haváriemi spojených s vodou.",4,"Vysavač průmyslový - 1 ks, Kalové čerpadlo se spalovacím motorem - 1 ks","Vysavač průmyslový - 1 ks",98073,58843,60,39230,40,84458,50674,60,"ANO                                     kalové čerpadlo nesplňuje požadavek na minimální průtok 1150 l/min",15,4.5,"0",0,4.5,15,1.5,15,7.5,9,13.5,"OLP/01907/2025",null,"náměstí 166","Kravaře","47103",{"$f":"_xlfn.XLOOKUP(C79,#REF!,#REF!,\"Nenalezeno!\")","v":{"$error":"#REF!"}},"starosta","00260657",null,"2006-2117421/0710","84 458 Kč","50 674,00 Kč",{"$f":"Slovy(O79)","v":"padesát tisíc šestset sedmdesát čtyři"},"100%","60,00%","40,00%",null,null,null,25]
[34,"Obec","Kravaře","U6 e) - Vybavení hasičské zbrojnice vysokotlakým čističem WAP","Účelem poskytnutí dotace bude pořízení horkovodního vysokotlakého čističe WAP.","6e","Horkovodní vysokotlaký čistič WAP - 1 ks","Horkovodní vysokotlaký čistič WAP - 1 ks",104000,62400,60,41600,40,104000,62400,60,"ANO",15,4.5,"0",0,4.5,15,1.5,0,0,1.5,6,"OLP/01908/2025",null,"náměstí 166","Kravaře","47103",{"$f":"_xlfn.XLOOKUP(C80,#REF!,#REF!,\"Nenalezeno!\")","v":{"$error":"#REF!"}},"starosta","00260657",null,"2006-2117421/0710","104 000 Kč","62 400,00 Kč",{"$f":"Slovy(O80)","v":"šedesát dvatisíce čtyřista"},"100%","60,00%","40,00%",null,null,null,40]
[81,"Obec","Kravaře","U6a) pořízení a obnova technických prostředků","Doplnění a obnova výbavy jednotky pro zvýšení akceschopnosti a pro naplnění požadavků výbavy CAS dle platných legislativních požadavků a k plnění základních úkolů jednotek uložených zákonem o PO","6c","Náhradní zdroje do svítilen Survivor - 3 ks, Náhradní zdroje do RDST GP - 2 ks, Náhradní zdroj do RDST DP - 1 ks, Hadicový sběrač - 1 ks, Osvětlovací systém PELI - 1 ks, Proudnice na střední pěnu - 1 ks, Přenosný přiměšovač - 1 ks, Svítilna Survivor - 3 ks, Skříňka s elektronástroji - 1 ks, Suchý oblek do vody SET - 2 ks, Vesta plovací - 2 ks, Přilba vodácká - 2 ks, Rukavice pro komínové požáry do 1000°C - 1 pár","Náhradní zdroje do svítilen Survivor - 3 ks, Náhradní zdroje do RDST GP - 2 ks, Náhradní zdroj do RDST DP - 1 ks, Hadicový sběrač - 1 ks, Osvětlovací systém PELI - 1 ks, Proudnice na střední pěnu - 1 ks, Přenosný přiměšovač - 1 ks, Svítilna Survivor - 3 ks, Skříňka s elektronástroji - 1 ks, Suchý oblek do vody SET - 2 ks, Vesta plovací - 2 ks, Přilba vodácká - 2 ks, Rukavice pro komínové požáry do 1000°C - 1 pár",187939,100000,53.21,87939,46.79,187939,100000,53.21,"ANO",15,4.5,"0",0,4.5,15,1.5,7,3.5,5,9.5,"OLP/01949/2025",null,"náměstí 166","Kravaře","47103",{"$f":"_xlfn.XLOOKUP(C81,#REF!,#REF!,\"Nenalezeno!\")","v":{"$error":"#REF!"}},"starosta","00260657",null,"2006-2117421/0710","187 939 Kč","100 000,00 Kč",{"$f":"Slovy(O81)","v":"jednosto tisíc"},"100%","53,21%","46,79%",null,null,null,415]
[57,"Obec","Krompach","U2 - Obnova a doplnění osobních ochranných prostředků členů požární jednotky obce Krompach.","Cílem projektu je pořízení osobních ochranných prostředků, především svítilen, které ve vybavení jednotky schází a zvýší tak její akceschopnost především při zdolávání mimořádných událostí v otevřeném prostředí (lesní požáry, technická pomoc apod.)",2,"0032687:kabát zásahový jednovrstvý FR2 FireFalcon - STAR, 182/52 [OH 102-106 cm], 217 63 S - 4 ks, 0032749:kalhoty zásahové jednovrstvé FR2 FireFalcon - STAR, 182/52 [OP 93-98 cm], 217 12 S - 4 ks, 0017325:obuv zásahová Red Fighter - podešev Michelin, 43, 208 99 - 4 páry, 65991:přilba GALLET F2 XR žlutá fotoluminiscenční vnější brýle, držák, 21 000 400-YP001 vnější brýle, držák, samolepy - 4 ks, 65459:svítilna ruční nabíjecí ADALIT L-90 R POWER F\nLED Ex bez nabíječe, L.90RPF - 4 ks, 65461:nabíječka 12/24V pro svítilnu ADALIT L-90, CVL90.1 - 4 ks, 66197:svítilna ADALIT L-20F LED Ex, včetně držáku na přilbu, L.20F - 4 ks, 61227:kukla dvouvrstvá DEVOLD SPIRIT s otvorem na obličej, 120 817 950 - 4 ks","0032687:kabát zásahový jednovrstvý FR2 FireFalcon - STAR, 182/52 [OH 102-106 cm], 217 63 S - 4 ks, 0032749:kalhoty zásahové jednovrstvé FR2 FireFalcon - STAR, 182/52 [OP 93-98 cm], 217 12 S - 4 ks, 0017325:obuv zásahová Red Fighter - podešev Michelin, 43, 208 99 - 4 páry, 65991:přilba GALLET F2 XR žlutá fotoluminiscenční vnější brýle, držák, 21 000 400-YP001 vnější brýle, držák, samolepy - 4 ks, 65459:svítilna ruční nabíjecí ADALIT L-90 R POWER F\nLED Ex bez nabíječe, L.90RPF - 4 ks, 65461:nabíječka 12/24V pro svítilnu ADALIT L-90, CVL90.1 - 4 ks, 66197:svítilna ADALIT L-20F LED Ex, včetně držáku na přilbu, L.20F - 4 ks, 61227:kukla dvouvrstvá DEVOLD SPIRIT s otvorem na obličej, 120 817 950 - 4 ks",131880,79128,60,52752,40,131880,79128,60,"ANO",7,2.1,"0",0,2.1,15,1.5,15,7.5,9,11.1,"OLP/01928/2025",null,"49","Krompach","47157",{"$f":"_xlfn.XLOOKUP(C82,#REF!,#REF!,\"Nenalezeno!\")","v":{"$error":"#REF!"}},"starostka","00673421","CZ00673421","903996339/0800","131 880 Kč","79 128,00 Kč",{"$f":"Slovy(O82)","v":"sedmdesát devěttisíc jednosto dvacet osm"},"100%","60,00%","40,00%",null,null,null,705]
[167,"Obec","Kruh","Nákup ochranných prostředků","U2) Obnova a doplnění osobních ochranných prostředků požární ochrany",2,"AP1 s karabinou - pracovní polohovací pás - 2 ks, Vesta výstražná s nápisem dle GŘ HZS - 1 ks, Red Fighter zásahová obuv - 3 ks, SICOR EOM lehká zásahová přilba s brýlemi - 4 ks, Ochranný textilní kryt na brýle - 4 ks, Reflexní polep přilby EOM s potiskem - 4 ks, svítilna NightStick XPP-5418GX - 4 ks, držák svítilny NightStick XPP-5418GX - 4 ks","AP1 s karabinou - pracovní polohovací pás - 2 ks, Vesta výstražná s nápisem dle GŘ HZS - 1 ks, Red Fighter zásahová obuv - 3 ks, SICOR EOM lehká zásahová přilba s brýlemi - 4 ks, Ochranný textilní kryt na brýle - 4 ks, Reflexní polep přilby EOM s potiskem - 4 ks, svítilna NightStick XPP-5418GX - 4 ks, držák svítilny NightStick XPP-5418GX - 4 ks",48345,24172,50,24173,50,48345,24172,50,"ANO",7,2.1,"7",0.70000000000000007,2.8000000000000003,15,1.5,15,7.5,9,11.8,"OLP/02027/2025",null,"165","Kruh","51401",{"$f":"_xlfn.XLOOKUP(C83,#REF!,#REF!,\"Nenalezeno!\")","v":{"$error":"#REF!"}},"starosta","00275859","CZ00275859","3820581/0100","48 345 Kč","24 172,00 Kč",{"$f":"Slovy(O83)","v":"dvacet čtyřitisíce jednosto sedmdesát dva"},"100%","50,00%","50,00%",null,null,null,346]
[186,"Obec","Kryštofovo Údolí","Dovybavení JSDH Kryštofovo Údolí ochrannými prostředky","Dovybavení JSDH chybějícími ochrannými prostředky",2,"Přilba MSA Gallet F2 XR - 4 ks, Rukavice zásahové Brela Easy - 3 ks, Kompletní zásahový oblek Patriot Elite - 3 ks, Reflexní nápis - 3 ks","Přilba MSA Gallet F2 XR - 4 ks, Rukavice zásahové Brela Easy - 3 ks, Kompletní zásahový oblek Patriot Elite - 3 ks, Reflexní nápis - 3 ks",92495,55496,60,36999,40,92495,55496,60,"ANO",7,2.1,"0",0,2.1,15,1.5,15,7.5,9,11.1,"OLP/02045/2025",null,"Kryštofovo Údolí 166","Kryštofovo Údolí","46001",{"$f":"_xlfn.XLOOKUP(C84,#REF!,#REF!,\"Nenalezeno!\")","v":{"$error":"#REF!"}},"starostka","00671991",null,"20429461/0100","92 495 Kč","55 496,00 Kč",{"$f":"Slovy(O84)","v":"padesát pěttisíc čtyřista devadesát šest"},"100%","60,00%","40,00%",null,null,null,137]
[189,"Obec","Kryštofovo Údolí","Dovybavení JSDH Kryštofovo Údolí věcnými prostředky","Níže uvedené věcné prostředky ve vybavení JSDH Kryštofovo Údolí zcela chybí","6c","Láhev ocelová 6l/300 Extra 5/8kg - 1 ks, Set dýchací přístroj PSS4000/O/FPSS - 2 ks","Láhev ocelová 6l/300 Extra 5/8kg - 1 ks, Set dýchací přístroj PSS4000/O/FPSS - 2 ks",95695,57416,60,38279,40,95695,57416,60,"ANO",7,2.1,"0",0,2.1,15,1.5,7,3.5,5,7.1,"OLP/02048/2025",null,"Kryštofovo Údolí 166","Kryštofovo Údolí","46001",{"$f":"_xlfn.XLOOKUP(C85,#REF!,#REF!,\"Nenalezeno!\")","v":{"$error":"#REF!"}},"starostka","00671991",null,"20429461/0100","95 695 Kč","57 416,00 Kč",{"$f":"Slovy(O85)","v":"padesát sedmtisíc čtyřista šestnáct"},"100%","60,00%","40,00%",null,null,null,83]
[52,"Obec","Kunratice u Cvikova","Oprava vozidla CAS TATRA 815","U6b - Oprava vozidla CAS TATRA 815 (karosérie).","6b","Oprava vozidla CAS TATRA 815 - 1 ks","Oprava vozidla CAS TATRA 815 - 1 ks",90000,54000,60,36000,40,90000,54000,60,"ANO",15,4.5,"0",0,4.5,15,1.5,7,3.5,5,9.5,"OLP/01924/2025",null,"145","Kunratice u Cvikova","47155",{"$f":"_xlfn.XLOOKUP(C86,#REF!,#REF!,\"Nenalezeno!\")","v":{"$error":"#REF!"}},"starosta","00524301",null,"903264349/0800","90 000 Kč","54 000,00 Kč",{"$f":"Slovy(O86)","v":"padesát čtyřitisíce"},"100%","60,00%","40,00%",null,null,null,35]
[159,"Obec","Kunratice u Cvikova","Pořízení věcných prostředků požární ochrany a technického vybavení hasičských zbrojnic - svolávací systém","Pořízení nového svolávacího systému hasičů.","6e","Svolávací systém - 1 ks","Svolávací systém - 1 ks",27000,16200,60,10800,40,27000,16200,60,"ANO",15,4.5,"0",0,4.5,15,1.5,0,0,1.5,6,"OLP/02013/2025",null,"145","Kunratice u Cvikova","47155",{"$f":"_xlfn.XLOOKUP(C87,#REF!,#REF!,\"Nenalezeno!\")","v":{"$error":"#REF!"}},"starosta","00524301",null,"903264349/0800","27 000 Kč","16 200,00 Kč",{"$f":"Slovy(O87)","v":"šestnáct tisíc dvěstě"},"100%","60,00%","40,00%",null,null,null,23]
[206,"Obec","Lázně Libverda","Obnova osobních ochranných prostředků požární ochrany pro JPO III Obce Lázně Libverda","Účel podpory U2 - Obnova osobních ochranných prostředků požární ochrany pro JPO III Obce Lázně Libverda",2,"Komplet zásahový oděv DEVA PATRIOT ELITE CZ - 4 ks, Prsačky DUNLOP - 2 ks, U2","Komplet zásahový oděv DEVA PATRIOT ELITE CZ - 4 ks",89200,44600,50,44600,50,84800,42400,50,"ANO                                         prsačky nejsou podporovaným OOPP v tomto účelu",15,4.5,"7",0.70000000000000007,5.2,15,1.5,15,7.5,9,14.2,"OLP/02057/2025",null,"16","Lázně Libverda","46362",{"$f":"_xlfn.XLOOKUP(C88,#REF!,#REF!,\"Nenalezeno!\")","v":{"$error":"#REF!"}},"starosta","00671983","CZ00671983","984940379/0800","84 800 Kč","42 400,00 Kč",{"$f":"Slovy(O88)","v":"čtyřicet dvatisíce čtyřista"},"100%","50,00%","50,00%",null,null,null,50]
[213,"Obec","Lázně Libverda","Pořízení věcných prostředků požární ochrany pro JPO III Obce Lázně Libverda","Účel podpory U6c - Doplnění přetlakové dýchací techniky pro JPO III Obce Lázně Libverda.","6c","Dýchací přístroj DRAEGER PSS 4000 set - 2 ks, Tlaková lahev kompozitní - 1 ks","Dýchací přístroj DRAEGER PSS 4000 set - 2 ks, Tlaková lahev kompozitní - 1 ks",117400,58700,50,58700,50,117400,58700,50,"ANO",15,4.5,"7",0.70000000000000007,5.2,15,1.5,7,3.5,5,10.199999999999999,"OLP/02063/2025",null,"16","Lázně Libverda","46362",{"$f":"_xlfn.XLOOKUP(C89,#REF!,#REF!,\"Nenalezeno!\")","v":{"$error":"#REF!"}},"starosta","00671983","CZ00671983","984940379/0800","117 400 Kč","58 700,00 Kč",{"$f":"Slovy(O89)","v":"padesát osmtisíc sedmset"},"100%","50,00%","50,00%",null,null,null,77]
[218,"Obec","Lažany","Nákup ochranných prostředků pro JSDHO Lažany","V rámci projektu budou pořízeny nové ochranné osobní prostředky pro JSDHO Lažany. Nové ochranné prostředky nahradí poškozené či opotřebené vybavení, a to pro zajištění maximální bezpečnosti hasičů při\nzásahu.",2,"Jednovrstvý zásahový oblek - 2 ks","Jednovrstvý zásahový oblek - 2 ks",27494,16000,58.19,11494,41.81,27494,16000,58.19,"ANO",7,2.1,"0",0,2.1,15,1.5,15,7.5,9,11.1,"OLP/02070/2025",null,"67","Lažany","46345",{"$f":"_xlfn.XLOOKUP(C90,#REF!,#REF!,\"Nenalezeno!\")","v":{"$error":"#REF!"}},"starosta","00671975",null,"20824461/0100","27 494 Kč","16 000,00 Kč",{"$f":"Slovy(O90)","v":"šestnáct tisíc"},"100%","58,19%","41,81%",null,null,null,33]
[76,"Statutární město","Liberec","Nákup osobních ochranných prostředků požární ochrany","U2)Nákup osobních ochranných prostředků požární ochrany pro jednotky dobrovolných hasičů města Liberec.",2,"Zásahový oblek třívrstvý - 13ks, Zásahová obuv - 8 ks, Zásahové rukavice - 14 ks, Rukavice pro technické zásahy - 22 ks, Polohovací opasek - 9 ks","Zásahový oblek třívrstvý - 13ks, Zásahová obuv - 8 ks, Zásahové rukavice - 14 ks, Rukavice pro technické zásahy - 22 ks, Polohovací opasek - 9 ks",460000,276000,60,184000,40,460000,276000,60,"ANO",15,4.5,"0",0,4.5,15,1.5,15,7.5,9,13.5,"OLP/01944/2025",null,"nám. Dr. E. Beneše 1/1","Liberec","46001",{"$f":"_xlfn.XLOOKUP(C91,#REF!,#REF!,\"Nenalezeno!\")","v":{"$error":"#REF!"}},"starosta","00262978","CZ00262978","1089692/0800","460 000 Kč","276 000,00 Kč",{"$f":"Slovy(O91)","v":"dvěstě sedmdesát šesttisíc"},"100%","60,00%","40,00%",null,null,null,145]
[79,"Statutární město","Liberec","Oprava cisternových automobilových stříkaček JSDH Pilínkov, JSDH Růžodol a JSDH Vratislavice nad Nisou.","Oprava cisternových automobilových stříkaček JSDH Pilínkov, JSDH Růžodol a JSDH Vratislavice nad Nisou","6b","Oprava CAS JSDH Pilínkov - 1 ks, Oprava CAS JSDH Růžodol - 1 ks, Oprava CAS JSDH Vratislavice nad Nisou - 1 ks","Oprava CAS JSDH Pilínkov - 1 ks, Oprava CAS JSDH Růžodol - 1 ks, Oprava CAS JSDH Vratislavice nad Nisou - 1 ks",182000,109200,60,72800,40,182000,109200,60,"ANO",15,4.5,"0",0,4.5,15,1.5,7,3.5,5,9.5,"OLP/01947/2025",null,"nám. Dr. E. Beneše 1/1","Liberec","46001",{"$f":"_xlfn.XLOOKUP(C92,#REF!,#REF!,\"Nenalezeno!\")","v":{"$error":"#REF!"}},"starosta","00262978","CZ00262978","1089692/0800","182 000 Kč","109 200,00 Kč",{"$f":"Slovy(O92)","v":"jednosto devěttisíc dvěstě"},"100%","60,00%","40,00%",null,null,null,110]
[103,"Statutární město","Liberec","Nákup věcných prostředků požární ochrany","U6c) Pořízení, obnova, doplnění a opravy věcných prostředků ochrany","6c","Termo kamera - 1 ks, Sací koš plovoucí - 1 ks, Proudnice C kombi AWG - 2 ks, Variabilní vyprošťovací nástroj - 1 ks, Oblouk opěrný B75 AWG - 1 ks, Proudnice kombinovaná B 75 - 1 ks, Trhací hák - 1 ks, Žebřík záchranářský čtyřdílný - 1 ks, Deflektor C 52 - 2 ks, Páteřní deska - 1 ks, Vesta plovací - 2 ks, Pláštěnka hasičská - 4 ks, Savice A 110 - 2 ks, Upínací pás- multifunkční popruh - 2 ks, Batoh na lano - 2 ks, Hadice B 75 - 2 ks, Hadice B 65 - 2 ks, Lékárnička – záchranářský batoh - 1 ks","Termo kamera - 1 ks, Sací koš plovoucí - 1 ks, Proudnice C kombi AWG - 2 ks, Variabilní vyprošťovací nástroj - 1 ks, Oblouk opěrný B75 AWG - 1 ks, Proudnice kombinovaná B 75 - 1 ks, Trhací hák - 1 ks, Žebřík záchranářský čtyřdílný - 1 ks, Deflektor C 52 - 2 ks, Páteřní deska - 1 ks, Vesta plovací - 2 ks, Pláštěnka hasičská - 4 ks, Savice A 110 - 2 ks, Upínací pás- multifunkční popruh - 2 ks, Batoh na lano - 2 ks, Hadice B 75 - 2 ks, Hadice B 65 - 2 ks, Lékárnička – záchranářský batoh - 1 ks",178000,106800,60,71200,40,178000,106800,60,"ANO",15,4.5,"0",0,4.5,15,1.5,7,3.5,5,9.5,"OLP/01968/2025",null,"nám. Dr. E. Beneše 1/1","Liberec","46001",{"$f":"_xlfn.XLOOKUP(C93,#REF!,#REF!,\"Nenalezeno!\")","v":{"$error":"#REF!"}},"starosta","00262978","CZ00262978","1089692/0800","178 000 Kč","106 800,00 Kč",{"$f":"Slovy(O93)","v":"jednosto šesttisíc osmset"},"100%","60,00%","40,00%",null,null,null,495]
[107,"Statutární město","Liberec","Nákup věcných prostředků pro zásahy v souvislosti s liokvidací lesních požárů","Pořízení, obnova, doplnění a opravy věcných prostředků požární ochrany pro zásahy v souvislosti s likvidací lesních požárů",5,"Polomaska - maska Vallfirest- Nano filtr - 14 ks, Přilba Dräger 3500 - 8 ks, Proudnice kombinovaná D 25 - 2 ks, Zásahový ochranný oblek jednovrstvý - 32 ks, Zádový vak - 1 ks, Motykohrábě pro lesní požáry - 3 ks, Tlumice ohně kovová - 2 ks, Hadice D 25 20 m - 6 ks","Polomaska - maska Vallfirest- Nano filtr - 14 ks, Přilba Dräger 3500 - 8 ks, Proudnice kombinovaná D 25 - 2 ks, Zásahový ochranný oblek jednovrstvý - 32 ks, Zádový vak - 1 ks, Motykohrábě pro lesní požáry - 3 ks, Tlumice ohně kovová - 2 ks, Hadice D 25 20 m - 6 ks",521000,312600,60,208400,40,521000,312600,60,"ANO",15,4.5,"0",0,4.5,15,1.5,15,7.5,9,13.5,"OLP/01971/2025",null,"nám. Dr. E. Beneše 1/1","Liberec","46001",{"$f":"_xlfn.XLOOKUP(C94,#REF!,#REF!,\"Nenalezeno!\")","v":{"$error":"#REF!"}},"starosta","00262978","CZ00262978","1089692/0800","521 000 Kč","312 600,00 Kč",{"$f":"Slovy(O94)","v":"třista dvanáct tisíc šestset"},"90%","60,00%","40,00%",null,null,null,264]
[64,"Městys","Libštát","Nákup věcných prostředků U6c","U6c pořízení věcných prostředků","6c","Záchranářský batoh - 1 ks, Akumulátor pro radiostanice HYT TC700 - 2 ks, Náhradní akumulátor pro RLS 2000 Pb - 1 ks, Set dýchací přístroj PSS4000 s druhým vývodem a evakuační maskou a brašnou na masku - 2 ks","Záchranářský batoh - 1 ks, Akumulátor pro radiostanice HYT TC700 - 2 ks, Náhradní akumulátor pro RLS 2000 Pb - 1 ks, Set dýchací přístroj PSS4000 s druhým vývodem a evakuační maskou a brašnou na masku - 2 ks",121893,73135,60,48758,40,121893,73135,60,"ANO",15,4.5,"0",0,4.5,15,1.5,7,3.5,5,9.5,"OLP/01932/2025",null,"198","Libštát","51203",{"$f":"_xlfn.XLOOKUP(C95,#REF!,#REF!,\"Nenalezeno!\")","v":{"$error":"#REF!"}},"starosta","00275891","CZ00275891","4428581/0100","121 893 Kč","73 135,00 Kč",{"$f":"Slovy(O95)","v":"sedmdesát třitisíce jednosto třicet pět"},"100%","60,00%","40,00%",null,null,null,207]
[65,"Městys","Libštát","Oprava CAS MAN U6b","U6b opravy cisternových automobilových stříkaček s objemem nádrže do 6000 litrů vyrobených v roce 1985 a letech následujících","6b","Přední zábleskové světlo - predátor - 2 ks, Rettbox®-air- inovativní napájení pro připojení vozidel IZS BOX 230/24 V - 4 m - 1 ks, Napájecí zásuvka Rettbox-Air 230 V - 1 ks, Oprava výfuku MAN - 1 ks","Přední zábleskové světlo - predátor - 2 ks, Rettbox®-air- inovativní napájení pro připojení vozidel IZS BOX 230/24 V - 4 m - 1 ks, Napájecí zásuvka Rettbox-Air 230 V - 1 ks, Oprava výfuku MAN - 1 ks",58417,35050,60,23367,40,58417,35050,60,"ANO",15,4.5,"0",0,4.5,15,1.5,7,3.5,5,9.5,"OLP/01933/2025",null,"198","Libštát","51203",{"$f":"_xlfn.XLOOKUP(C96,#REF!,#REF!,\"Nenalezeno!\")","v":{"$error":"#REF!"}},"starosta","00275891","CZ00275891","4428581/0100","58 417 Kč","35 050,00 Kč",{"$f":"Slovy(O96)","v":"třicet pěttisíc padesát"},"100%","60,00%","40,00%",null,null,null,198]
[66,"Městys","Libštát","Nákup ochranných prostředků PO","U2) Pořízení osobních ochranných prostředků",2,"Vesta Velitel jednotky - 1 ks, Vícevrstvý zásahový oblek - 1 ks, Zásahová obuv - 1 ks, Zásahové rukavice - 1 ks, Ochranná kukla ks - 4 ks, Kryt brýlí Sicor - 4 ks","Vesta Velitel jednotky - 1 ks, Vícevrstvý zásahový oblek - 1 ks, Zásahová obuv - 1 ks, Zásahové rukavice - 1 ks, Ochranná kukla ks - 4 ks, Kryt brýlí Sicor - 4 ks",38931,23358,60,15573,40,38931,23358,60,"ANO",15,4.5,"0",0,4.5,15,1.5,15,7.5,9,13.5,"OLP/01934/2025",null,"198","Libštát","51203",{"$f":"_xlfn.XLOOKUP(C97,#REF!,#REF!,\"Nenalezeno!\")","v":{"$error":"#REF!"}},"starosta","00275891","CZ00275891","4428581/0100","38 931 Kč","23 358,00 Kč",{"$f":"Slovy(O97)","v":"dvacet třitisíce třista padesát osm"},"100%","60,00%","40,00%",null,null,null,162]
[43,"Obec","LOMNICE NAD POPELKOU","Pořízení věcných prostředků k likvidací lesních požárů","Pořízení, obnova, doplnění a opravy věcných prostředků požární ochrany pro zásahy v souvislosti s likvidací lesních požárů.",5,"Tlumice pro lesní požáry - 2 ks, Motykohrábě pro lesní požáry - 2 ks, Oblek pro lesní požáry - 6 ks","Tlumice pro lesní požáry - 2 ks, Motykohrábě pro lesní požáry - 2 ks, Oblek pro lesní požáry - 6 ks",129000,77400,60,51600,40,129000,77400,60,"ANO",15,4.5,"0",0,4.5,15,1.5,15,7.5,9,13.5,"OLP/01915/2025",null,"Husovo náměstí 6","Lomnice nad Popelkou","51251",{"$f":"_xlfn.XLOOKUP(C98,#REF!,#REF!,\"Nenalezeno!\")","v":{"$error":"#REF!"}},"starosta","00275905","CZ00275905","9005-2529581/0100","129 000 Kč","77 400,00 Kč",{"$f":"Slovy(O98)","v":"sedmdesát sedmtisíc čtyřista"},"100%","60,00%","40,00%",null,null,null,99]
[44,"Město","LOMNICE NAD POPELKOU","Nákup ochranných prostředků PO 2025","Pořízení, obnova, doplnění a opravy osobních ochranných prostředků požární ochrany",2,"Ochranná kukla - 4 ks, Zásahová obuv - 3 ks, Zásahový oblek - 3 ks, Zásahové rukavice - 6 ks, Vesta s nápisem k označení hasičů - 8 ks, Osobní svítilna - 3 ks","Ochranná kukla - 4 ks, Zásahová obuv - 3 ks, Zásahový oblek - 3 ks, Zásahové rukavice - 6 ks, Vesta s nápisem k označení hasičů - 8 ks, Osobní svítilna - 3 ks",174088,104452,60,69636,40,174088,104452,60,"ANO",15,4.5,"0",0,4.5,15,1.5,15,7.5,9,13.5,"OLP/01916/2025",null,"Husovo náměstí 6","Lomnice nad Popelkou","51251",{"$f":"_xlfn.XLOOKUP(C99,#REF!,#REF!,\"Nenalezeno!\")","v":{"$error":"#REF!"}},"starosta","00275905","CZ00275905","9005-2529581/0100","174 088 Kč","104 452,00 Kč",{"$f":"Slovy(O99)","v":"jednosto čtyřitisíce čtyřista padesát dva"},"100%","60,00%","40,00%",null,null,null,158]
[45,"Město","LOMNICE NAD POPELKOU","Pořízení věcných prostředků PO 2025","Pořízení, obnova, doplnění a opravy věcných prostředků požární ochrany mimo prostředků uvedených v U5) a U6a)","6e","Autobaterie - 1 ks, Pneumatika (Patrol) - 4 ks, Pneumatika (CAS) - 2 ks","Autobaterie - 1 ks, Pneumatika (Patrol) - 4 ks, Pneumatika (CAS) - 2 ks",48412,29047,60,19365,40,48412,29047,60,"ANO",15,4.5,"0",0,4.5,15,1.5,0,0,1.5,6,"OLP/01917/2025",null,"Husovo náměstí 6","Lomnice nad Popelkou","51251",{"$f":"_xlfn.XLOOKUP(C100,#REF!,#REF!,\"Nenalezeno!\")","v":{"$error":"#REF!"}},"starosta","00275905","CZ00275905","9005-2529581/0100","48 412 Kč","29 047,00 Kč",{"$f":"Slovy(O100)","v":"dvacet devěttisíc čtyřicet sedm"},"100%","60,00%","40,00%",null,null,null,71]
[165,"Město","Lučany nad Nisou","Nákup věcných prostředků požární ochrany","U6) Pořízení, obnova, doplnění, opravy a výstavba: c) pořízení, obnova, doplnění a opravy věcných prostředků požární ochrany mimo prostředků uvedených v U5) a U6)a).","6c","kombinovaná proudnice C52 - 1 ks, záchranné lano typu A 60 m - 1 ks, záchranné lano typu A 30 m - 2 ks, hadice zásahová C52 - 6 ks, hadice zásahová B75 - 4 ks, tlaková láhev k IDP - 4 ks","kombinovaná proudnice C52 - 1 ks, záchranné lano typu A 60 m - 1 ks, záchranné lano typu A 30 m - 2 ks, hadice zásahová C52 - 6 ks, hadice zásahová B75 - 4 ks, tlaková láhev k IDP - 4 ks",99120,48569,49,50551,51,99120,48569,49,"ANO",15,4.5,"7",0.70000000000000007,5.2,15,1.5,7,3.5,5,10.199999999999999,"OLP/02025/2025",null,"Lučany nad Nisou 333","Lučany nad Nisou","46871",{"$f":"_xlfn.XLOOKUP(C101,#REF!,#REF!,\"Nenalezeno!\")","v":{"$error":"#REF!"}},"starosta","00262455","CZ00262455","94-1810451/0710","99 120 Kč","48 569,00 Kč",{"$f":"Slovy(O101)","v":"čtyřicet osmtisíc pětset šedesát devět"},"100%","49,00%","51,00%",null,null,null,186]
[166,"Město","Lučany nad Nisou","Nákup osobních ochranných prostředků požární ochrany","U2) Pořízení, obnova, doplnění a opravy osobních ochranných prostředků požární ochrany - polohovací pás Cobra, ocelová karabina HMS k polohovacímu pásu, zásahová obuv a zásahový třívrstvý komplet",2,"polohovací pás Cobra - 4 ks, ocelová karabina HMS k polohovacímu pásu - 8 ks,zásahová obuv - 2 ks, zásahový třívrstvý komplet - 2 ks ","polohovací pás Cobra - 4 ks, ocelová karabina HMS k polohovacímu pásu - 8 ks,zásahová obuv - 2 ks, zásahový třívrstvý komplet - 2 ks ",82272,40313,49,41959,51,82272,40313,49,"ANO",15,4.5,"7",0.70000000000000007,5.2,15,1.5,15,7.5,9,14.2,"OLP/02026/2025",null,"Lučany nad Nisou 333","Lučany nad Nisou","46871",{"$f":"_xlfn.XLOOKUP(C102,#REF!,#REF!,\"Nenalezeno!\")","v":{"$error":"#REF!"}},"starosta","00262455","CZ00262455","94-1810451/0710","82 272 Kč","40 313,00 Kč",{"$f":"Slovy(O102)","v":"čtyřicet tisíc třista třináct"},"100%","49,00%","51,00%",null,null,null,133]
[80,"Obec","Martinice v Krkonoších","Obnova osobních ochranných prostředků členů jednotky.","Projekt zajistí plnou vybavenost ochrannými prostředky členů jednotky JPO V Martinice v Krkonoších",2,"Zásahový oblek 3-vrstvý - komplet - 1 ks, Zásahový oblek jednovrstvý - komplet - 1 ks, Přilba Heros Titan - 1 ks, Držák svítilny PELLI - 1 ks, Svítilna PELLI 3315 LED - 1 ks, Kukla bavlna - 1 ks, Rukavice zásahové Diamant - 4 páry, Vesta výstražná dle GŘ - 4 ks","Zásahový oblek 3-vrstvý - komplet - 1 ks, Zásahový oblek jednovrstvý - komplet - 1 ks, Přilba Heros Titan - 1 ks, Držák svítilny PELLI - 1 ks, Svítilna PELLI 3315 LED - 1 ks, Kukla bavlna - 1 ks, Rukavice zásahové Diamant - 4 páry, Vesta výstražná dle GŘ - 4 ks",57800,34000,58.82,23800,41.18,57800,34000,58.82,"ANO",7,2.1,"0",0,2.1,15,1.5,15,7.5,9,11.1,"OLP/01948/2025",null,"131","Martinice v Krkonoších","51232",{"$f":"_xlfn.XLOOKUP(C103,#REF!,#REF!,\"Nenalezeno!\")","v":{"$error":"#REF!"}},"starosta","00580805","CZ00580805","1263089339/0800","57 800 Kč","34 000,00 Kč",{"$f":"Slovy(O103)","v":"třicet čtyřitisíce"},"100%","58,82%","41,18%",null,null,null,261]
[182,"Město","Mimoň","Podpora JSDH Mimoň ","Zvýšení akceschopnosti a bezpečnosti jednotky, pořízení, obnova, doplnění osobních ochranných prostředků požární ochrany U2",2,"komplet zásahový FIREMAX 3 Rosenbauer vč. Nápisu HASIČI MIMOŇ kovový zip - 4 ks, kukla Nomex deva - 4 ks, svítilny ADALIT L-10 LED - 4 ks, nabíječky 220 V - 4 ks, přilba GALLET F1 XF velikost L -  4 ks","komplet zásahový FIREMAX 3 Rosenbauer vč. Nápisu HASIČI MIMOŇ kovový zip - 4 ks, kukla Nomex deva - 4 ks, svítilny ADALIT L-10 LED - 4 ks, nabíječky 220 V - 4 ks, přilba GALLET F1 XF velikost L -  4 ks",213224,98083,{"$f":"ROUND(J104/I104*100,2)","v":46},{"$f":"I104-J104","v":115141},{"$f":"ROUND(L104/I104*100,2)","v":54},213224,98083,{"$f":"ROUND(O104/N104*100,2)","v":46},"ANO",15,{"$f":"R104*0.3","v":4.5},{"$f":"IF(K104<=30,\"15\",IF(K104<=50,\"7\",IF(K104<=70,\"0\",\"!!!\")))","v":"7"},{"$f":"T104*0.1","v":0.70000000000000007},{"$f":"S104+U104","v":5.2},15,{"$f":"W104*0.1","v":1.5},15,{"$f":"Y104*0.5","v":7.5},{"$f":"X104+Z104","v":9},{"$f":"V104+AA104","v":14.2},"OLP/02042/2025",null,"Mírová 120","Mimoň","47124",{"$f":"_xlfn.XLOOKUP(C104,#REF!,#REF!,\"Nenalezeno!\")","v":{"$error":"#REF!"}},"starosta","00260746","CZ00260746","94-2811421/0710",{"$f":"TEXT(N104,\"# ##0 Kč\")","v":"213 224 Kč"},{"$f":"TEXT(O104,\"# ##0,00 Kč\")","v":"98 083,00 Kč"},{"$f":"Slovy(O104)","v":"devadesát osmtisíc osmdesát tři"},{"$f":"IF(O104<=300000,\"100%\",\"90%\")","v":"100%"},{"$f":"TEXT(P104,\"0,00\")& \"%\"","v":"46,00%"},{"$f":"TEXT(M104,\"0,00\")& \"%\"","v":"54,00%"},null,null,null,{"$f":"LEN(H104)","v":201}]
[156,"Obec","Mírová pod Kozákovem","U2) Pořízení, obnova, doplnění a opravy v závorce vyjmenovaných osobních ochranných prostředků požární ochrany (jednovrstvé a vícevrstvé zásahové obleky, zásahové boty, zásahové rukavice, zásahové přilby, polohovací opasky pro hasiče, ochranné kukly, ve","Pořízení, obnova, doplnění a opravy osobních ochranných prostředků požární ochrany",2,"Zásahový oblek PATRIOT ELITE - kabát - 2 ks, Zásahový oblek PATRIOT ELITE - kalhoty - 2 ks, Zásahový oblek BUSHFIRE - blůza - 2 ks, Zásahový oblek BUSHFIRE - kalhoty - 2 ks","Zásahový oblek PATRIOT ELITE - kabát - 2 ks, Zásahový oblek PATRIOT ELITE - kalhoty - 2 ks, Zásahový oblek BUSHFIRE - blůza - 2 ks, Zásahový oblek BUSHFIRE - kalhoty - 2 ks",68861,33742,49,35119,51,68861,33742,49,"ANO",7,2.1,"7",0.70000000000000007,2.8000000000000003,15,1.5,15,7.5,9,11.8,"OLP/02012/2025",null,"36","Mírová pod Kozákovem","51101",{"$f":"_xlfn.XLOOKUP(C105,#REF!,#REF!,\"Nenalezeno!\")","v":{"$error":"#REF!"}},"starosta","00275913","CZ00275913","1263261389/0800","68 861 Kč","33 742,00 Kč",{"$f":"Slovy(O105)","v":"třicet třitisíce sedmset čtyřicet dva"},"100%","49,00%","51,00%",null,null,null,172]
[8,"Obec","Mníšek","U4 - hasiči Mníšek - čerpadlo kalové benzinové","Čerpadlo jednotka využije hlavně při povodních a záplavách které obec Mníšek pravidelně postihují. Moderní kalové čerpadlo bude využito při čerpání lagun a vody ze zaplavených budov. Lze jej použít i k plnění cisternových vozidel vodou",4,"Kalové čerpadlo - 1ks","Kalové čerpadlo - 1ks",33277,19900,59.8,13377,40.200000000000003,33277,19900,59.8,"ANO",5,1.5,"0",0,1.5,15,1.5,15,7.5,9,10.5,"OLP/01889/2025",null,"Oldřichovská 185","Mníšek","46331",{"$f":"_xlfn.XLOOKUP(C106,#REF!,#REF!,\"Nenalezeno!\")","v":{"$error":"#REF!"}},"starosta","00263001","CZ00263001","158868002/0300","33 277 Kč","19 900,00 Kč",{"$f":"Slovy(O106)","v":"devatenáct tisíc devětset"},"100%","59,80%","40,20%",null,null,null,21]
[10,"Obec","Mníšek","U6 c - hasiči Mníšek - radiostanice","Radiostanice nahradí radiostanici, o kterou hasiči přišli při povodni v 09/2024. Druhá radiostanice chybí pro operativní činnost jednotky. Ruční radiostanice je nezbytnou výbavou každé jednotky a využívá se především ke komunikaci na místě zásahu","6c","radiostanice - 2 ks","radiostanice - 2 ks",35769,21400,59.83,14369,40.17,35769,21400,59.83,"ANO",5,1.5,"0",0,1.5,15,1.5,7,3.5,5,6.5,"OLP/01890/2025",null,"Oldřichovská 185","Mníšek","46331",{"$f":"_xlfn.XLOOKUP(C107,#REF!,#REF!,\"Nenalezeno!\")","v":{"$error":"#REF!"}},"starosta","00263001","CZ00263001","158868002/0300","35 769 Kč","21 400,00 Kč",{"$f":"Slovy(O107)","v":"dvacet jedentisíc čtyřista"},"100%","59,83%","40,17%",null,null,null,19]
[13,"Obec","Mníšek","U6 f - hasiči Mníšek - vrata do garáže","důvodu opotřebení současných jednovrstvých obleků","6f","vrata do garáže ks - 1 ks","vrata do garáže ks - 1 ks",225323,135000,59.91,90323,40.090000000000003,225323,135000,59.91,"ANO",5,1.5,"0",0,1.5,15,1.5,0,0,1.5,3,"OLP/01892/2025",null,"Oldřichovská 185","Mníšek","46331",{"$f":"_xlfn.XLOOKUP(C108,#REF!,#REF!,\"Nenalezeno!\")","v":{"$error":"#REF!"}},"starosta","00263001","CZ00263001","158868002/0300","225 323 Kč","135 000,00 Kč",{"$f":"Slovy(O108)","v":"jednosto třicet pěttisíc"},"100%","59,91%","40,09%",null,null,null,25]
[27,"Obec","Mníšek","U2 - Hasiči Mnišek - zásahové obleky","Doplnění vybavení zásahové jednotky 4ks zásahových obleků.",2,"zásahový oblek - 4 ks","zásahový oblek - 4 ks",95227,57000,59.86,38227,40.14,95227,57000,59.86,"ANO",5,1.5,"0",0,1.5,15,1.5,15,7.5,9,10.5,"OLP/01902/2025",null,"Oldřichovská 185","Mníšek","46331",{"$f":"_xlfn.XLOOKUP(C109,#REF!,#REF!,\"Nenalezeno!\")","v":{"$error":"#REF!"}},"starosta","00263001","CZ00263001","158868002/0300","95 227 Kč","57 000,00 Kč",{"$f":"Slovy(O109)","v":"padesát sedmtisíc"},"100%","59,86%","40,14%",null,null,null,21]
[174,"Obec","MŘÍČNÁ","Nákup ochranných prostředků PO","U2) Zabezpečení členů JSDHO ochrannými prostředky požární ochrany pro zlepšení akceschopnosti jednotky",2,"Vícevrstvý zásahový komplet - 2 ks, Zásahová obuv - 2 ks","Vícevrstvý zásahový komplet - 2 ks, Zásahová obuv - 2 ks",51000,30600,60,20400,40,51000,30600,60,"ANO",7,2.1,"0",0,2.1,15,1.5,15,7.5,9,11.1,"OLP/02034/2025",null,"211","Mříčná","51204",{"$f":"_xlfn.XLOOKUP(C110,#REF!,#REF!,\"Nenalezeno!\")","v":{"$error":"#REF!"}},"starostka","00275930","CZ00275930","94-53514451/0710","51 000 Kč","30 600,00 Kč",{"$f":"Slovy(O110)","v":"třicet tisíc šestset"},"100%","60,00%","40,00%",null,null,null,56]
[102,"Obec","Nová Ves nad Popelkou","1.1 Podpora jednotek požární ochrany obcí Libereckého kraje","Nákup ochrannách prostředků pro JSDHO Nová Ves nad Popelkou",2,"Přilba MSA Gallet F1 XF Gold++, + integrovaná\nsvítilna, + rozlišovací štítek - 1 ks, Zásahová obuv HAIX FIRE HERO 3.0 - 1 ks, Ochranné kukly pro hasiče ( Nomex - DEVA ) - 4 ks, Přilba MSA Gallet F2 XR - Lesní požáry, červená se\nžlutým polepem - 4 ks, Svítilna Adalit L.90 Power - 4 ks, Nabíječka k svítilnám Adalit - 4 ks","Přilba MSA Gallet F1 XF Gold++, + integrovaná\nsvítilna, + rozlišovací štítek - 1 ks, Zásahová obuv HAIX FIRE HERO 3.0 - 1 ks, Ochranné kukly pro hasiče ( Nomex - DEVA ) - 4 ks, Přilba MSA Gallet F2 XR - Lesní požáry, červená se\nžlutým polepem - 4 ks, Svítilna Adalit L.90 Power - 4 ks, Nabíječka k svítilnám Adalit - 4 ks",98760,59256,60,39504,40,98760,59256,60,"ANO",15,4.5,"0",0,4.5,15,1.5,15,7.5,9,13.5,"OLP/01967/2025",null,"244","Nová Ves nad Popelkou","51271",{"$f":"_xlfn.XLOOKUP(C111,#REF!,#REF!,\"Nenalezeno!\")","v":{"$error":"#REF!"}},"starosta","00275948","CZ00275948","1263095309/0800","98 760 Kč","59 256,00 Kč",{"$f":"Slovy(O111)","v":"padesát devěttisíc dvěstě padesát šest"},"100%","60,00%","40,00%",null,null,null,321]
[105,"Obec","Nová Ves nad Popelkou","1.1 Podpora jednotek požární ochrany obcí Libereckého kraje","Pořízení věcných prostředků PO - JSDHO Nová Ves nad Popelkou","6c","Páčidlo HOOLIGAN Highway 106,7 cm - 1 ks, Páčidlo HOOLIGAN Standard 106,7 cm - 1 ks, Tážné lano do navijáku na CAS 20, 6 pramenné\nFILLER 27,5 m - 1 ks, Kladka k navijáku na CAS 20 - 1 ks, Zásahová hadice Technolen B 75 - 20 m - 6ks, Pěnidlo Fomtec MB5 2 - 6 % ( -20°C ) - 6ks","Páčidlo HOOLIGAN Highway 106,7 cm - 1 ks, Páčidlo HOOLIGAN Standard 106,7 cm - 1 ks, Tážné lano do navijáku na CAS 20, 6 pramenné\nFILLER 27,5 m - 1 ks, Kladka k navijáku na CAS 20 - 1 ks, Zásahová hadice Technolen B 75 - 20 m - 6ks, Pěnidlo Fomtec MB5 2 - 6 % ( -20°C ) - 6ks",72520,43512,60,29008,40,72520,43512,60,"ANO",15,4.5,"0",0,4.5,15,1.5,7,3.5,5,9.5,"OLP/01969/2025",null,"244","Nová Ves nad Popelkou","51271",{"$f":"_xlfn.XLOOKUP(C112,#REF!,#REF!,\"Nenalezeno!\")","v":{"$error":"#REF!"}},"starosta","00275948","CZ00275948","1263095309/0800","72 520 Kč","43 512,00 Kč",{"$f":"Slovy(O112)","v":"čtyřicet třitisíce pětset dvanáct"},"100%","60,00%","40,00%",null,null,null,275]
[106,"Obec","Nová Ves nad Popelkou","1.1 Podpora jednotek požární ochrany obcí Libereckého kraje","Oprava CAS 20 - nákup pneumatik","6b","Pneu NOKIAN 315/80 R 22,5 - 2 ks","Pneu NOKIAN 315/80 R 22,5 - 2 ks",26985,15010,55.62,11975,44.38,26985,15010,55.62,"ANO",15,4.5,"0",0,4.5,15,1.5,7,3.5,5,9.5,"OLP/01970/2025",null,"244","Nová Ves nad Popelkou","51271",{"$f":"_xlfn.XLOOKUP(C113,#REF!,#REF!,\"Nenalezeno!\")","v":{"$error":"#REF!"}},"starosta","00275948","CZ00275948","1263095309/0800","26 985 Kč","15 010,00 Kč",{"$f":"Slovy(O113)","v":"patnáct tisíc deset"},"100%","55,62%","44,38%",null,null,null,32]
[262,"Město","Nové Město pod Smrkem","Pořízení věcných prostředků požární ochrany","Pořízení, obnova, doplnění a opravy věcných prostředků požární ochrany mimo prostředků uvedených v U5) a U6)a).","6c","Dýchací technika - 2 ks, Páteřní deska - 1 ks","Dýchací technika - 2 ks, Páteřní deska - 1 ks",99659,59795,60,39864,40,99659,59795,60,"ANO",15,4.5,"0",0,4.5,15,1.5,7,3.5,5,9.5,"OLP/02103/2025",null,"Palackého 280","Nové Město pod Smrkem","46365",{"$f":"_xlfn.XLOOKUP(C114,#REF!,#REF!,\"Nenalezeno!\")","v":{"$error":"#REF!"}},"starosta","00263036","CZ00263036","988446319/0800","99 659 Kč","59 795,00 Kč",{"$f":"Slovy(O114)","v":"padesát devěttisíc sedmset devadesát pět"},"100%","60,00%","40,00%",null,null,null,45]
[263,"Město","Nové Město pod Smrkem","Pořízení ochranných prostředků požární ochrany","Pořízení, obnova, doplnění a opravy v závorce vyjmenovaných osobních ochranných prostředků požární ochrany (jednovrstvé a vícevrstvé zásahové obleky, zásahové boty,)",2,"Zásahové boty - 5 ks, Zásahový oblek - 2 ks","Zásahové boty - 5 ks, Zásahový oblek - 2 ks",74277,44567,60,29710,40,74277,44567,60,"ANO",15,4.5,"0",0,4.5,15,1.5,15,7.5,9,13.5,"OLP/02104/2025",null,"Palackého 280","Nové Město pod Smrkem","46365",{"$f":"_xlfn.XLOOKUP(C115,#REF!,#REF!,\"Nenalezeno!\")","v":{"$error":"#REF!"}},"starosta","00263036","CZ00263036","988446319/0800","74 277 Kč","44 567,00 Kč",{"$f":"Slovy(O115)","v":"čtyřicet čtyřitisíce pětset šedesát sedm"},"100%","60,00%","40,00%",null,null,null,43]
[41,"Obec ","Nový Bor","Pořízení nové CAS","Účel podpory U6) d) pořízení cisternové automobilové stříkačky vyrobené v roce 2025","6d","nová CAS - 1 ks","nová CAS - 1 ks",11201454,500000,4.46,10701454,95.54,11201454,500000,4.46,"ANO",15,4.5,"15",1.5,6,15,1.5,7,3.5,5,11,"OLP/01914/2025",null,"nám. Míru 1","Nový Bor","47301",{"$f":"_xlfn.XLOOKUP(C116,#REF!,#REF!,\"Nenalezeno!\")","v":{"$error":"#REF!"}},"starosta","00260771","CZ00260771","94-58321421/0710","11 201 454 Kč","500 000,00 Kč",{"$f":"Slovy(O116)","v":"pětset tisíc"},"90%","4,46%","95,54%",null,null,null,15]
[201,"Město","Nový Bor","Pořízení věcných prostředků PO","Účel podpory U6) c) pořízení věcných prostředků požární ochrany","6c","přenosná radiostanice THP 900 - 2 KS, nabíječ pro radiostanici - 2 KS","přenosná radiostanice THP 900 - 2 KS, nabíječ pro radiostanici - 2 KS",110788,65000,58.67,45788,41.33,110788,65000,58.67,"ANO",15,4.5,"0",0,4.5,15,1.5,7,3.5,5,9.5,"OLP/02053/2025",null,"nám. Míru 1","Nový Bor","47301",{"$f":"_xlfn.XLOOKUP(C117,#REF!,#REF!,\"Nenalezeno!\")","v":{"$error":"#REF!"}},"starosta","00260771","CZ00260771","94-58321421/0100","110 788 Kč","65 000,00 Kč",{"$f":"Slovy(O117)","v":"šedesát pěttisíc"},"100%","58,67%","41,33%",null,null,null,69]
[59,"Obec","Nový Oldřichov","Nákup nového plovoucího čerpadla","Nákup nového plovoucího čerpadla pro rychlou pomoc při povodních",4,"Přenosné plovoucí čerpadlo PH CYKLON 2/1500 - 1 ks","Přenosné plovoucí čerpadlo PH CYKLON 2/1500 - 1 ks",54882,32929,60,21953,40,54882,32929,60,"ANO",7,2.1,"0",0,2.1,15,1.5,15,7.5,9,11.1,"OLP/01929/2025",null,"Mistrovice 51","Nový Oldřichov","47113",{"$f":"_xlfn.XLOOKUP(C118,#REF!,#REF!,\"Nenalezeno!\")","v":{"$error":"#REF!"}},"starosta","00260789",null,"94-3216421/0710","54 882 Kč","32 929,00 Kč",{"$f":"Slovy(O118)","v":"třicet dvatisíce devětset dvacet devět"},"100%","60,00%","40,00%",null,null,null,50]
[62,"Obec","Nový Oldřichov","Obměna ochranných prostředků členů JSDHO Nový Oldřichov","Tímto projektem by jsme rádi obměnili již zastaralé a nevyhovující lehké komplety. Tyto komplety výrazně ulehčují práci u technických zásahů a lesních požárů v letních měsících, kdy není nutné používat těžké zásahové komplety",2,"Zásahový oblek FIREGUARD BUSH - 4 ks, Přilba SICOR EOM - lehká zásahová přilba - 4 ks, Rukavice záchranářské BLAZE EVO - 4 ks, Stejnokroj PS II - 4 ks","Zásahový oblek FIREGUARD BUSH - 4 ks, Přilba SICOR EOM - lehká zásahová přilba - 4 ks, Rukavice záchranářské BLAZE EVO - 4 ks, Stejnokroj PS II - 4 ks",70520,42312,60,28208,40,70520,42312,60,"ANO",7,2.1,"0",0,2.1,15,1.5,15,7.5,9,11.1,"OLP/01930/2025",null,"Mistrovice 51","Nový Oldřichov","47113",{"$f":"_xlfn.XLOOKUP(C119,#REF!,#REF!,\"Nenalezeno!\")","v":{"$error":"#REF!"}},"starosta","00260789",null,"94-3216421/0710","70 520 Kč","42 312,00 Kč",{"$f":"Slovy(O119)","v":"čtyřicet dvatisíce třista dvanáct"},"100%","60,00%","40,00%",null,null,null,150]
[69,"Obec","Nový Oldřichov","Nákup a montáž automatických podmetacích řetězů","Nákup a montáž systému automatických sněhových řetězů SNOWWAY Master na vozidlo CAS20 Tatra 815","6b","Automatické sněhové řetězy SNOWWAY Master - 1 ks","Automatické sněhové řetězy SNOWWAY Master - 1 ks",94767,56860,60,37907,40,94767,56860,60,"ANO",7,2.1,"0",0,2.1,15,1.5,7,3.5,5,7.1,"OLP/01937/2025",null,"Mistrovice 51","Nový Oldřichov","47113",{"$f":"_xlfn.XLOOKUP(C120,#REF!,#REF!,\"Nenalezeno!\")","v":{"$error":"#REF!"}},"starosta","00260789",null,"943216421/0710","94 767 Kč","56 860,00 Kč",{"$f":"Slovy(O120)","v":"padesát šesttisíc osmset šedesát"},"100%","60,00%","40,00%",null,null,null,48]
[70,"Obec","Nový Oldřichov","Rekonstrukce podlahy v garáži MPT, kde je zaparkovaná CAS20 T815.","Rekonstrukce podlahy v garáži MPT, kde je zaparkovaná CAS20 T815","6f","Rekonstrukce podlahy - 1 ks","Rekonstrukce podlahy - 1 ks",465380,279228,60,186152,40,465380,279228,60,"ANO",7,2.1,"0",0,2.1,15,1.5,0,0,1.5,3.6,"OLP/01939/2025",null,"Mistrovice 51","Nový Oldřichov","47113",{"$f":"_xlfn.XLOOKUP(C121,#REF!,#REF!,\"Nenalezeno!\")","v":{"$error":"#REF!"}},"starosta","00260789",null,"94-3216421/0710","465 380 Kč","279 228,00 Kč",{"$f":"Slovy(O121)","v":"dvěstě sedmdesát devěttisíc dvěstě dvacet osm"},"100%","60,00%","40,00%",null,null,null,27]
[6,"Obec","Oldřichov v Hájích","Obnova, doplnění osobních věcných a ochranných prostředků požární ochrany","Obnova, doplnění věcných a ochranných prostředků požární ochrany k zajištění akceschopnosti jednotky","6c","Motorová pila Stihl MS 462 RS - 1ks, prsačky Plavitex Fluo - 2ks","Motorová pila Stihl MS 462 RS - 1ks, prsačky Plavitex Fluo - 2ks",34288,17119,49.93,17169,50.07,34288,17119,49.93,"ANO",5,1.5,"7",0.70000000000000007,2.2000000000000002,15,1.5,7,3.5,5,7.2,"OLP/01888/2025",null,"Oldřichov v Hájích 229","Oldřichov v Hájích","46331",{"$f":"_xlfn.XLOOKUP(C122,#REF!,#REF!,\"Nenalezeno!\")","v":{"$error":"#REF!"}},"starostka","00481483",null,"94-4111461/0710","34 288 Kč","17 119,00 Kč",{"$f":"Slovy(O122)","v":"sedmnáct tisíc jednosto devatenáct"},"100%","49,93%","50,07%",null,null,null,64]
[18,"Obec","Oldřichov v Hájích","Obnova, doplnění a oprava osobních ochranných prostředků požární ochrany","Dovybavení JPO JSDH Oldřichov v Hájích ochrannými prostředky a věcnými, technickými prostředky.",2,"zásahová přilba SICOR EOM - 2 ks, Svítilna na přilbu parat px1 - 4 ks, Držák svítilny px1- 4 ks, Vesta výstražná dle GŘ - 4 ks, Zásahová obuv Haix fire flash - 1 ks, Zásahová rukavice Diamond evo - 2 ks","zásahová přilba SICOR EOM - 2 ks, Svítilna na přilbu parat px1 - 4 ks, Držák svítilny px1- 4 ks, Vesta výstražná dle GŘ - 4 ks, Zásahová obuv Haix fire flash - 1 ks, Zásahová rukavice Diamond evo - 2 ks",33107,16222,49,16885,51,33107,16222,49,"ANO",7,2.1,"7",0.70000000000000007,2.8000000000000003,15,1.5,15,7.5,9,11.8,"OLP/01897/2025",null,"Oldřichov v Hájích 229","Oldřichov v Hájích","46331",{"$f":"_xlfn.XLOOKUP(C123,#REF!,#REF!,\"Nenalezeno!\")","v":{"$error":"#REF!"}},"starostka","00481483",null,"94-4111461/0710","33 107 Kč","16 222,00 Kč",{"$f":"Slovy(O123)","v":"šestnáct tisíc dvěstě dvacet dva"},"100%","49,00%","51,00%",null,null,null,202]
[210,"Město","Osečná","Pořízení OOP PO","U2) Pořízení osobních ochranných prostředků PO",2,"Zásahový oblek třívrstvý - 1 ks, Zásahová přilba - 2 ks, Zásahová přilba lehká - 2 ks, Svítilna - 2 ks, Držák svítilny - 2 ks, Rukavice zásahové - 2 páry, Obuv zásahová - 1 ks, Jednovrstvý zásahový oblek - 3 ks, Ochranná kukla - 2 ks","Zásahový oblek třívrstvý - 1 ks, Zásahová přilba - 2 ks, Zásahová přilba lehká - 2 ks, Svítilna - 2 ks, Držák svítilny - 2 ks, Rukavice zásahové - 2 páry, Obuv zásahová - 1 ks, Jednovrstvý zásahový oblek - 3 ks, Ochranná kukla - 2 ks",123400,74040,60,49360,40,123400,74040,60,"ANO",15,4.5,"0",0,4.5,15,1.5,15,7.5,9,13.5,"OLP/02060/2025",null,"Svatovítské náměstí 105","Osečná","46352",{"$f":"_xlfn.XLOOKUP(C124,#REF!,#REF!,\"Nenalezeno!\")","v":{"$error":"#REF!"}},"starosta","00263061","CZ00263061","94-8612511/0710","123 400 Kč","74 040,00 Kč",{"$f":"Slovy(O124)","v":"sedmdesát čtyřitisíce čtyřicet"},"100%","60,00%","40,00%",null,null,null,233]
[212,"Město","Osečná","Pořízení věcných prostředků požární ochrany pro zásahy v souvislosti s likvidací lesních požárů","U5) Pořízení věcných prostředků požární ochrany pro zásahy v souvislosti s likvidací lesních požárů",5,"Batoh na D program - 1 ks","Batoh na D program - 1 ks",33000,19800,60,13200,40,33000,19800,60,"ANO",15,4.5,"0",0,4.5,15,1.5,15,7.5,9,13.5,"OLP/02062/2025",null,"Svatovítské náměstí 105","Osečná","46352",{"$f":"_xlfn.XLOOKUP(C125,#REF!,#REF!,\"Nenalezeno!\")","v":{"$error":"#REF!"}},"starosta","00263061","CZ00263061","94-8612511/0710","33 000 Kč","19 800,00 Kč",{"$f":"Slovy(O125)","v":"devatenáct tisíc osmset"},"100%","60,00%","40,00%",null,null,null,25]
[214,"Město","Osečná","Pořízení věcných prostředků","U6e) Pořízení věcných prostředků","6c","Motorová pila - 1 ks","Motorová pila - 1 ks",28000,16800,60,11200,40,28000,16800,60,"ANO",15,4.5,"0",0,4.5,15,1.5,7,3.5,5,9.5,"OLP/02066/2025",null,"Svatovítské náměstí 105","Osečná","46352",{"$f":"_xlfn.XLOOKUP(C126,#REF!,#REF!,\"Nenalezeno!\")","v":{"$error":"#REF!"}},"starosta","00263061","CZ00263061","94-8612511/0710","28 000 Kč","16 800,00 Kč",{"$f":"Slovy(O126)","v":"šestnáct tisíc osmset"},"100%","60,00%","40,00%",null,null,null,20]
[215,"Město","Osečná","Pravidelná servisní roční prohlídka automobilového žebříku","U6c) Oprava techniky OP","6a","Servisní prohlídka automobilového žebříku - 1 ks","Servisní prohlídka automobilového žebříku - 1 ks",166000,99600,60,66400,40,166000,99600,60,"ANO",15,4.5,"0",0,4.5,15,1.5,15,7.5,9,13.5,"OLP/02067/2025",null,"Svatovítské náměstí 105","Osečná","46352",{"$f":"_xlfn.XLOOKUP(C127,#REF!,#REF!,\"Nenalezeno!\")","v":{"$error":"#REF!"}},"starosta","00263061","CZ00263061","94-8612511/0710","166 000 Kč","99 600,00 Kč",{"$f":"Slovy(O127)","v":"devadesát devěttisíc šestset"},"100%","60,00%","40,00%",null,null,null,48]
[247,"Obec","Paceřice","Ochranné pomůcky PO - Paceřice","Účel U2 Účelem podpory je doplnění osobních ochranných prostředků požární ochrany. Jedná se o kategorii JPO V - jednotka sboru dobrovolných hasičů obce se členy, kteří vykonávají službu v jednotce PO dobrovolně",2,"Zásahový oblek - komplet - 4 ks, Reflexní nápisy na oblek - 4 ks, 3 Přilba, signální žlutá -  4 ks, Zásahová obuv - pár - 4 ks","Zásahový oblek - komplet - 4 ks, Reflexní nápisy na oblek - 4 ks, 3 Přilba, signální žlutá -  4 ks, Zásahová obuv - pár - 4 ks",170636,100000,58.6,70636,41.4,170636,100000,58.6,"ANO",15,4.5,"0",0,4.5,15,1.5,15,7.5,9,13.5,"OLP/02094/2025",null,"100","Paceřice","46344",{"$f":"_xlfn.XLOOKUP(C128,#REF!,#REF!,\"Nenalezeno!\")","v":{"$error":"#REF!"}},"starosta","00671967",null,"94-4314461/0710","170 636 Kč","100 000,00 Kč",{"$f":"Slovy(O128)","v":"jednosto tisíc"},"100%","58,60%","41,40%",null,null,null,126]
[2,"Obec","Paseky nad Jizerou","Pořízení osobních ochranných prostředků požární ochrany","Účelem projektu je pořízení nových osobních ochranných prostředků požární ochrany pro výjezdní jednotku obce Paseky nad Jizerou, Pořízením prostředků dojde ke zvýšení akceschopnosti jednotky.",2,"Zásahová přilba - 2 ks, zásahová obuv - 1 pár, výstražná vesta - 2 ks, zásahový oblek - 2 komplet, zásahové rukavice -- 2 páry, svítilny na přilby - 2 ks, polohovací pás - 2 ks","Zásahová přilba - 2 ks, zásahová obuv - 1 pár, výstražná vesta - 2 ks, zásahový oblek - 2 komplet, zásahové rukavice -- 2 páry, svítilny na přilby - 2 ks, polohovací pás - 2 ks",73400,36700,50,36700,50,73400,36700,50,"ANO",5,1.5,"7",0.70000000000000007,2.2000000000000002,15,1.5,15,7.5,9,11.2,"OLP/01885/2025",null,"242","Paseky nad Jizerou","51247",{"$f":"_xlfn.XLOOKUP(C129,#REF!,#REF!,\"Nenalezeno!\")","v":{"$error":"#REF!"}},"starostka","00580791","CZ00580791","20727581/0100","73 400 Kč","36 700,00 Kč",{"$f":"Slovy(O129)","v":"třicet šesttisíc sedmset"},"100%","50,00%","50,00%",null,null,null,176]
[121,"Obec","Pěnčín","Pořízení ochranných prostředků PO","U2) Pořízení osobních ochranných prostředků PO",2,"Lehké obleky pro technické zásahy - 4 ks, Lehké přilby pro technické zásahy - 8 ks, Zásahová obuv - 2 páry","Lehké obleky pro technické zásahy - 4 ks, Lehké přilby pro technické zásahy - 8 ks, Zásahová obuv - 2 páry",133274,66637,50,66637,50,133274,66637,50,"ANO",15,4.5,"7",0.70000000000000007,5.2,15,1.5,15,7.5,9,14.2,"OLP/01981/2025",null,"57","Pěnčín","46821",{"$f":"_xlfn.XLOOKUP(C130,#REF!,#REF!,\"Nenalezeno!\")","v":{"$error":"#REF!"}},"starosta","00262501",null,"963242379/0800","133 274 Kč","66 637,00 Kč",{"$f":"Slovy(O130)","v":"šedesát šesttisíc šestset třicet sedm"},"100%","50,00%","50,00%",null,null,null,106]
[160,"Obec","Pěnčín","Pořízení věcných prostředků PO","U6) c) Pořízení, obnova, doplnění a opravy věcných prostředků ochrany","6c","Oblek proti hmyzu - 1 ks, Drtič a vysavač hmyzu - 1 ks, Motorová pila jednoruční - 1 ks, Světelné puky - 1 sada","Oblek proti hmyzu - 1 ks, Drtič a vysavač hmyzu - 1 ks, Motorová pila jednoruční - 1 ks, Světelné puky - 1 sada",32800,16400,50,16400,50,32800,16400,50,"ANO",7,2.1,"7",0.70000000000000007,2.8000000000000003,15,1.5,7,3.5,5,7.8000000000000007,"OLP/02014/2025",null,"57","Pěnčín","46821",{"$f":"_xlfn.XLOOKUP(C131,#REF!,#REF!,\"Nenalezeno!\")","v":{"$error":"#REF!"}},"starosta","00262501",null,"963242379/0800","32 800 Kč","16 400,00 Kč",{"$f":"Slovy(O131)","v":"šestnáct tisíc čtyřista"},"100%","50,00%","50,00%",null,null,null,111]
[30,"Obec","Pertoltice","Nákup ochranných prostředků PO","U2 - pořízení, obnova, doplnění osobních ochranných prostředků",2,"Zásahová obuv - 2 ks, Zásahová přilba - 2 ks, Dvoudílný vícevrstvý zásahový oděv - 2 ks, Zásahové rukavice - 2 ks","Zásahová obuv - 2 ks, Zásahová přilba - 2 ks, Dvoudílný vícevrstvý zásahový oděv - 2 ks, Zásahové rukavice - 2 ks",83718,50230,60,33488,40,83718,50230,60,"ANO",15,4.5,"0",0,4.5,15,1.5,15,7.5,9,13.5,"OLP/01906/2025",null,"59","Pertoltice","46373",{"$f":"_xlfn.XLOOKUP(C132,#REF!,#REF!,\"Nenalezeno!\")","v":{"$error":"#REF!"}},"starosta","00671959","CZ00671959","18521461/0100","83 718 Kč","50 230,00 Kč",{"$f":"Slovy(O132)","v":"padesát tisíc dvěstě třicet"},"100%","60,00%","40,00%",null,null,null,113]
[72,"Obec","Plavy","Pořízení ochranných prostředků PO pro JPO V Plavy","U2) Pořízení, obnova a doplnění osobních ochranných prostředků požární ochrany",2,"Zásahová obuv - 4 ks, Světlo na helmu pro zásahy - 4 ks,  Zásahové rukavice - 4 ks","Zásahová obuv - 4 ks, Světlo na helmu pro zásahy - 4 ks,  Zásahové rukavice - 4 ks",25824,15494,60,10330,40,25824,15494,60,"ANO",7,2.1,"0",0,2.1,15,1.5,15,7.5,9,11.1,"OLP/01941/2025",null,"186","Plavy","46846",{"$f":"_xlfn.XLOOKUP(C133,#REF!,#REF!,\"Nenalezeno!\")","v":{"$error":"#REF!"}},"starosta","00262510","CZ00262510","4406669319/0800","25 824 Kč","15 494,00 Kč",{"$f":"Slovy(O133)","v":"patnáct tisíc čtyřista devadesát čtyři"},"100%","60,00%","40,00%",null,null,null,82]
[73,"Obec","Plavy","Pořízení věcných prostředků pro JPO V Plavy","U6c) Pořízení věcných prostředků požární ochrany mimo prostředků uvedených v U5) a v U6a)","6c","Nabíjecí zdroj se startérem - 1 ks, Autobaterie pro PS12 - 1 ks, Řezné kotouče na kov (sada 10 kusů) - 1 sada, Diamantový kotouč na železobeton - 1 ks, Nosítka / páteřní deska (kompletní set) - 1 set, Teleskopický žebřík opěrný 3,8m - 1 ks, Univerzální sekyra - 1 ks","Nabíjecí zdroj se startérem - 1 ks, Autobaterie pro PS12 - 1 ks, Řezné kotouče na kov (sada 10 kusů) - 1 sada, Diamantový kotouč na železobeton - 1 ks, Nosítka / páteřní deska (kompletní set) - 1 set, Teleskopický žebřík opěrný 3,8m - 1 ks, Univerzální sekyra - 1 ks",27109,16265,60,10844,40,27109,16265,60,"ANO",7,2.1,"0",0,2.1,15,1.5,7,3.5,5,7.1,"OLP/01942/2025",null,"186","Plavy","46846",{"$f":"_xlfn.XLOOKUP(C134,#REF!,#REF!,\"Nenalezeno!\")","v":{"$error":"#REF!"}},"starosta","00262510","CZ00262510","4406669319/0800","27 109 Kč","16 265,00 Kč",{"$f":"Slovy(O134)","v":"šestnáct tisíc dvěstě šedesát pět"},"100%","60,00%","40,00%",null,null,null,266]
[67,"Obec","Poniklá","Doplnění věcných prostředků požární ochrany","U6c) pořízení, obnova, doplnění a opravy věcných prostředků požární ochrany.","6c","Ruční svítilna - 2 ks, Radiostanice - 2 ks, Osvětlovací systém - 1 ks, Vesta plovací - 2 ks, Kukla evakuační - 2 ks, Vývod pro 2. plicní automatiku - 2 ks","Ruční svítilna - 2 ks, Radiostanice - 2 ks, Osvětlovací systém - 1 ks, Vesta plovací - 2 ks, Kukla evakuační - 2 ks, Vývod pro 2. plicní automatiku - 2 ks",100838,60502,60,40336,40,100838,60502,60,"ANO",15,4.5,"0",0,4.5,15,1.5,7,3.5,5,9.5,"OLP/01935/2025",null,"65","Poniklá","51242",{"$f":"_xlfn.XLOOKUP(C135,#REF!,#REF!,\"Nenalezeno!\")","v":{"$error":"#REF!"}},"starosta","00276006","CZ00276006","94-54218451/0710","100 838 Kč","60 502,00 Kč",{"$f":"Slovy(O135)","v":"šedesát tisíc pětset dva"},"100%","60,00%","40,00%",null,null,null,154]
[68,"Obec","Poniklá","Obnova a doplnění osobních ochranných prostředků","U2) Pořízení, obnova, doplnění a opravy osobních ochranných prostředků požární ochrany",2,"Přilba pro technické zásahy - 4 ks, Zásahový oblek jednovrstvý - 4 ks, Zásahový oblek třívrstvý - 1 ks, Obuv zásahová - 1 ks, Vesta výstražná - nápis HASIČI - 4 ks","Přilba pro technické zásahy - 4 ks, Zásahový oblek jednovrstvý - 4 ks, Zásahový oblek třívrstvý - 1 ks, Obuv zásahová - 1 ks, Vesta výstražná - nápis HASIČI - 4 ks",116914,70148,{"$f":"ROUND(J136/I136*100,2)","v":60},{"$f":"I136-J136","v":46766},{"$f":"ROUND(L136/I136*100,2)","v":40},116914,70148,{"$f":"ROUND(O136/N136*100,2)","v":60},"ANO",15,{"$f":"R136*0.3","v":4.5},{"$f":"IF(K136<=30,\"15\",IF(K136<=50,\"7\",IF(K136<=70,\"0\",\"!!!\")))","v":"0"},{"$f":"T136*0.1","v":0},{"$f":"S136+U136","v":4.5},15,{"$f":"W136*0.1","v":1.5},15,{"$f":"Y136*0.5","v":7.5},{"$f":"X136+Z136","v":9},{"$f":"V136+AA136","v":13.5},"OLP/01936/2025",null,"65","Poniklá","51242",{"$f":"_xlfn.XLOOKUP(C136,#REF!,#REF!,\"Nenalezeno!\")","v":{"$error":"#REF!"}},"starosta","00276006","CZ00276006","94-54218451/0710",{"$f":"TEXT(N136,\"# ##0 Kč\")","v":"116 914 Kč"},{"$f":"TEXT(O136,\"# ##0,00 Kč\")","v":"70 148,00 Kč"},{"$f":"Slovy(O136)","v":"sedmdesát tisíc jednosto čtyřicet osm"},{"$f":"IF(O136<=300000,\"100%\",\"90%\")","v":"100%"},{"$f":"TEXT(P136,\"0,00\")& \"%\"","v":"60,00%"},{"$f":"TEXT(M136,\"0,00\")& \"%\"","v":"40,00%"},null,null,null,{"$f":"LEN(H136)","v":163}]
[172,"Obec","Příšovice","Pořízení zásahových obleků a dalšího vybavení požární ochrany","Pořízení, obnova, doplnění a opravy osobních ochranných prostředků požární ochrany",2,"Zásahový oblek - 2 ks, Přilba Dräger - 2 ks, Svítilna LED integrální - 4 ks, Čelní štít svítilny - 4 ks, Svítilna PARAT - 2 ks, Držák svítilny PARAT - 2 ks ","Zásahový oblek - 2 ks, Přilba Dräger - 2 ks, Svítilna LED integrální - 4 ks, Čelní štít svítilny - 4 ks, Svítilna PARAT - 2 ks, Držák svítilny PARAT - 2 ks ",112664,56332,50,56332,50,112664,56332,50,"ANO",15,4.5,"7",0.70000000000000007,5.2,15,1.5,15,7.5,9,14.2,"OLP/02033/2025",null,"60","Příšovice","46346",{"$f":"_xlfn.XLOOKUP(C137,#REF!,#REF!,\"Nenalezeno!\")","v":{"$error":"#REF!"}},"starosta","00263125","CZ00263125","94-416081/0710","112 664 Kč","56 332,00 Kč",{"$f":"Slovy(O137)","v":"padesát šesttisíc třista třicet dva"},"100%","50,00%","50,00%",null,null,null,156]
[175,"Obec","Příšovice","Pořízení a oprava věcných prostředků požární ochrany 2025","pořízení, obnova, doplnění a opravy věcných prostředků požární ochrany, ochranných prostředků","6c","Tablet - 1 ks, Revize dýchacích přístrojů - 1 ks, Baterie do vysílaček - 9 ks","Tablet - 1 ks, Revize dýchacích přístrojů - 1 ks, Baterie do vysílaček - 9 ks",80070,40035,50,40035,50,80070,40035,50,"ANO",15,4.5,"7",0.70000000000000007,5.2,15,1.5,7,3.5,5,10.199999999999999,"OLP/02035/2025",null,"60","Příšovice","46346",{"$f":"_xlfn.XLOOKUP(C138,#REF!,#REF!,\"Nenalezeno!\")","v":{"$error":"#REF!"}},"starosta","00263125","CZ00263125","94-416081/0710","80 070 Kč","40 035,00 Kč",{"$f":"Slovy(O138)","v":"čtyřicet tisíc třicet pět"},"100%","50,00%","50,00%",null,null,null,77]
[187,"Obec","Příšovice","Rekonstrukce sociálního zařízení v hasičské zbrojnici Příšovice  včetně elektroinstalace a vodoinstalace","opravy, úpravy a výstavba objektů sloužících k zabezpečení činnosti jednotky sboru dobrovolných hasičů obce","6f","rekonstrukce sociálního zařízení - 1 ks","rekonstrukce sociálního zařízení - 1 ks",580000,290000,50,290000,50,580000,290000,50,"ANO",15,4.5,"7",0.70000000000000007,5.2,15,1.5,0,0,1.5,6.7,"OLP/02046/2025",null,"60","Příšovice","46346",{"$f":"_xlfn.XLOOKUP(C139,#REF!,#REF!,\"Nenalezeno!\")","v":{"$error":"#REF!"}},"starosta","00263125","CZ00263125","94-416081/0710","580 000 Kč","290 000,00 Kč",{"$f":"Slovy(O139)","v":"dvěstě devadesát tisíc"},"100%","50,00%","50,00%",null,null,null,39]
[248,"Obec","Rádlo","Pořízení věcných prostředků požární ochrany pro čerpání vody zejména v souvislosti se záplavami a povodněmi","V loňském roce naše jednotka zasahovala v souvislosti s povodněmi na Frýdlantsku a ukázala se potřeba zvýšit množství přečerpané vody",4,"Plovoucí čerpadlo MAMUT 2400 - 1 ks, Hadice A110 20 m - 2 ks, Rozdělovač kulový A110 - B75 (A-BB) - 1 ks","Plovoucí čerpadlo MAMUT 2400 - 1 ks, Hadice A110 20 m - 2 ks, Rozdělovač kulový A110 - B75 (A-BB) - 1 ks",86500,43250,50,43250,50,86500,43250,50,"ANO",7,2.1,"7",0.70000000000000007,2.8000000000000003,15,1.5,15,7.5,9,11.8,"OLP/02096/2025",null,"Rádlo 252","Rádlo","46803",{"$f":"_xlfn.XLOOKUP(C140,#REF!,#REF!,\"Nenalezeno!\")","v":{"$error":"#REF!"}},"starosta","00262544",null,"3824451/0100","86 500 Kč","43 250,00 Kč",{"$f":"Slovy(O140)","v":"čtyřicet třitisíce dvěstě padesát"},"100%","50,00%","50,00%",null,null,null,104]
[249,"Obec","Rádlo","Doplnění a obměna osobních ochranných prostředků PO","Jednotka požární ochrany na Rádle se rozrostla o nové členy, které je potřeba vybavit potřebnou ochranou a obměnit nevyhovující",2,"Zásahový oblek třívrstvý GoodPro - komplet (kabát a kalhoty) - 3 ks, Svítilna ADALIT L-5 LED Ex - 4 ks, Zásahové rukavice Holík - 4 ks, Ochranná kukla - 4 ks, Zásahová přilba SICOR - 4 ks, Obuv zásahová DEMON FIRE - 3 ks ","Zásahový oblek třívrstvý GoodPro - komplet (kabát a kalhoty) - 3 ks, Svítilna ADALIT L-5 LED Ex - 4 ks, Zásahové rukavice Holík - 4 ks, Ochranná kukla - 4 ks, Zásahová přilba SICOR - 4 ks, Obuv zásahová DEMON FIRE - 3 ks ",121200,60600,50,60600,50,121200,60600,50,"ANO",7,2.1,"7",0.70000000000000007,2.8000000000000003,15,1.5,15,7.5,9,11.8,"OLP/02097/2025",null,"Rádlo 252","Rádlo","46803",{"$f":"_xlfn.XLOOKUP(C141,#REF!,#REF!,\"Nenalezeno!\")","v":{"$error":"#REF!"}},"starosta","00262544",null,"3824451/0100","121 200 Kč","60 600,00 Kč",{"$f":"Slovy(O141)","v":"šedesát tisíc šestset"},"100%","50,00%","50,00%",null,null,null,221]
[252,"Obec","Rádlo","Pořízení a obnova věcných prostředků požární ochrany","Jednotka požární ochrany Rádlo potřebuje nahradit morálně zastaralé a netěsné proudnice. Další prostředky PO jako je sací koš, savice, ventilové lako, přejezdové můstky a vazáky na hadice nahradí staré a velmi\nopotřebované prostředky","6c","Proudnice kombinovaná C52 - 2 ks, Sací koš A110 - 1 ks, Přechod DIN A110 - 1 ks, Savice A110 2,5 m - 2 ks, Ventilové lanko s karabinou a vidlicí - 2 ks, Přejezdový můstek gumový - 4 ks, Vazák na hadice - 4 ks","Proudnice kombinovaná C52 - 2 ks, Sací koš A110 - 1 ks, Přechod DIN A110 - 1 ks, Savice A110 2,5 m - 2 ks, Ventilové lanko s karabinou a vidlicí - 2 ks, Přejezdový můstek gumový - 4 ks, Vazák na hadice - 4 ks",49600,24800,50,24800,50,49600,24800,50,"ANO",7,2.1,"7",0.70000000000000007,2.8000000000000003,15,1.5,7,3.5,5,7.8000000000000007,"OLP/02099/2025",null,"Rádlo 252","Rádlo","46803",{"$f":"_xlfn.XLOOKUP(C142,#REF!,#REF!,\"Nenalezeno!\")","v":{"$error":"#REF!"}},"starosta","00262544",null,"3824451/0100","49 600 Kč","24 800,00 Kč",{"$f":"Slovy(O142)","v":"dvacet čtyřitisíce osmset"},"100%","50,00%","50,00%",null,null,null,208]
[28,"Město","Raspenava","U2) Pořízení, obnova, doplnění osobních ochranných prostředků","Pořízení, obnova, doplnění osobních ochranných prostředků pro hasiče v souladu s výzvou.",2,"vícevrstvý zásahový oblek - 4 ks, zásahové rukavice- 4 ks, ochranná kukla - 4 ks, zásahové boty - 4 páry","vícevrstvý zásahový oblek - 4 ks, zásahové rukavice- 4 ks, ochranná kukla - 4 ks, zásahové boty - 4 páry",130800,65400,50,65400,50,130800,65400,50,"ANO",15,4.5,"7",0.70000000000000007,5.2,15,1.5,15,7.5,9,14.2,"OLP/01904/2025",null,"Fučíkova 421","Raspenava","46401",{"$f":"_xlfn.XLOOKUP(C143,#REF!,#REF!,\"Nenalezeno!\")","v":{"$error":"#REF!"}},"starosta","00263141","CZ00263141","94-5018461/0710","130 800 Kč","65 400,00 Kč",{"$f":"Slovy(O143)","v":"šedesát pěttisíc čtyřista"},"100%","50,00%","50,00%",null,null,null,104]
[29,"Město","Raspenava","U5) Pořízení věcných prostředků požární ochrany pro zásahy v souvislosti s likvidací lesních požárů","Pořízení, obnova, doplnění věcných prostředků požární ochrany pro zásahy v souvislosti s likvidací lesních požárů dle výzvy.",5,"jednovrstvý zásahový oblek - 4 ks, rukavic pro hasiče - 4 páry","jednovrstvý zásahový oblek - 4 ks, rukavic pro hasiče - 4 páry",52600,26300,50,26300,50,52600,26300,50,"ANO",15,4.5,"7",0.70000000000000007,5.2,15,1.5,15,7.5,9,14.2,"OLP/01905/2025",null,"Fučíkova 421","Raspenava","46401",{"$f":"_xlfn.XLOOKUP(C144,#REF!,#REF!,\"Nenalezeno!\")","v":{"$error":"#REF!"}},"starosta","00263141","CZ00263141","94-5018461/0710","52 600 Kč","26 300,00 Kč",{"$f":"Slovy(O144)","v":"dvacet šesttisíc třista"},"100%","50,00%","50,00%",null,null,null,62]
[14,"Město","Rokytnice nad Jizerou","Obnova osobních ochranných prostředků 2025","Účel U2 - Obnova a doplnění osobních ochranných prostředků",2,"Zásahový oblek - 2 ks, Zásahová obuv - 2 páry, Přilba zásahová - 2 ks, Kukla zásahová - 2 ks, Svítilny včetně příslušenství - 4 ks","Zásahový oblek - 2 ks, Zásahová obuv - 2 páry, Přilba zásahová - 2 ks, Kukla zásahová - 2 ks, Svítilny včetně příslušenství - 4 ks",112630,56250,49.94,56380,50.06,112630,56250,49.94,"ANO",15,4.5,"7",0.70000000000000007,5.2,15,1.5,15,7.5,9,14.2,"OLP/01893/2025",null,"197","Rokytnice nad Jizerou","51244",{"$f":"_xlfn.XLOOKUP(C145,#REF!,#REF!,\"Nenalezeno!\")","v":{"$error":"#REF!"}},"starosta","00276057","CZ00276057","94-54816451/0710","112 630 Kč","56 250,00 Kč",{"$f":"Slovy(O145)","v":"padesát šesttisíc dvěstě padesát"},"100%","49,94%","50,06%",null,null,null,130]
[15,"Město","Rokytnice nad Jizerou","Pořízení plovoucího čerpadla","Účel U4 - Jedná se o pořízení plovoucího čerpadla pro čerpání vody v souvislosti se záplavami a povodněmi",4,"Přenosné plovoucí čerpadlo  - 1 ks","Přenosné plovoucí čerpadlo  - 1 ks",49390,24640,49.89,24750,50.11,49390,24640,49.89,"ANO",15,4.5,"7",0.70000000000000007,5.2,15,1.5,15,7.5,9,14.2,"OLP/01894/2025",null,"197","Rokytnice nad Jizerou","51244",{"$f":"_xlfn.XLOOKUP(C146,#REF!,#REF!,\"Nenalezeno!\")","v":{"$error":"#REF!"}},"starosta","00276057","CZ00276057","94-54816451/0710","49 390 Kč","24 640,00 Kč",{"$f":"Slovy(O146)","v":"dvacet čtyřitisíce šestset čtyřicet"},"100%","49,89%","50,11%",null,null,null,34]
[16,"Město","Rokytnice nad Jizerou","Pořízení MŘP","Účel U6a - Jedná se o pořízení nové motorové řetězové pily včetně příslušenství (příslušenství, ochranné\nprostředky, osvětlení).","6a","Motorová pila - 1 ks, Ochranná přilba - 1 ks, Neprůřezné návleky - 1 ks, Lopatka - 1 ks, Umělohmotný klín - 2 ks, Kanystr kombinovaný - 1 ks, Reflektor Galaxy + příslušenství - 2 ks, Stativ pro reflektor - 1 ks ","Motorová pila - 1 ks, Ochranná přilba - 1 ks, Neprůřezné návleky - 1 ks, Lopatka - 1 ks, Umělohmotný klín - 2 ks, Kanystr kombinovaný - 1 ks, Reflektor Galaxy + příslušenství - 2 ks, Stativ pro reflektor - 1 ks ",48570,24250,49.93,24320,50.07,48570,24250,49.93,"ANO",15,4.5,"7",0.70000000000000007,5.2,15,1.5,15,7.5,9,14.2,"OLP/01895/2025",null,"197","Rokytnice nad Jizerou","51244",{"$f":"_xlfn.XLOOKUP(C147,#REF!,#REF!,\"Nenalezeno!\")","v":{"$error":"#REF!"}},"starosta","00276057","CZ00276057","94-54816451/0710","48 570 Kč","24 250,00 Kč",{"$f":"Slovy(O147)","v":"dvacet čtyřitisíce dvěstě padesát"},"100%","49,93%","50,07%",null,null,null,211]
[17,"Město","Rokytnice nad Jizerou","Oprava CAS 20 Scania","U6b - Jedná se o výměnu (opravu) původního systému připojení vozidla CAS 20 Scania na zdroj dobíjení a tlakového vzduchu a dále o výměnu podkladní fólie na stávajícím oplechování na zádi vozidla (bude použito výstražné značení Chevron).","6b","Domontáž dobíjení Rettbox-Air vč. úprav - 1 ks, Montáž výstražného značení CHEVRON -1 ks","Domontáž dobíjení Rettbox-Air vč. úprav - 1 ks, Montáž výstražného značení CHEVRON -1 ks",123300,61600,49.96,61700,50.04,123300,61600,49.96,"ANO",15,4.5,"7",0.70000000000000007,5.2,15,1.5,7,3.5,5,10.199999999999999,"OLP/01896/2025",null,"197","Rokytnice nad Jizerou","51244",{"$f":"_xlfn.XLOOKUP(C148,#REF!,#REF!,\"Nenalezeno!\")","v":{"$error":"#REF!"}},"starosta","00276057","CZ00276057","94-54816451/0710","123 300 Kč","61 600,00 Kč",{"$f":"Slovy(O148)","v":"šedesát jedentisíc šestset"},"100%","49,96%","50,04%",null,null,null,88]
[188,"Město","Rychnov u Jablonce nad Nisou","Nákup ochranných prostředků PO ","U2) Doplnění a prostředků, které odpovídají vyhlášce č. 247/2001 Sb., o organizaci a činnosti jednotek požární ochrany, v platném znění.",2,"Jednovrstvý zásahový oblek FireSnake FR2 - 4 ks, Zásahová přilba pro technické zásahy MSA Gallet\nF2XR - 4 ks, Rukavice záchranářské BLAZE NEO - 4 ks, Obuv zásahová Red Fighter Michelin - 4 ks, Svítilna XP LED - 4 ks","Jednovrstvý zásahový oblek FireSnake FR2 - 4 ks, Zásahová přilba pro technické zásahy MSA Gallet\nF2XR - 4 ks, Rukavice záchranářské BLAZE NEO - 4 ks, Obuv zásahová Red Fighter Michelin - 4 ks, Svítilna XP LED - 4 ks",103820,31146,30,72674,70,103820,31146,30,"ANO",15,4.5,"15",1.5,6,15,1.5,15,7.5,9,15,"OLP/02047/2025",null,"nám. Míru 720","Rychnov u Jablonce nad Nisou","46802",{"$f":"_xlfn.XLOOKUP(C149,#REF!,#REF!,\"Nenalezeno!\")","v":{"$error":"#REF!"}},"starosta","00252662",null,"963232349/0800","103 820 Kč","31 146,00 Kč",{"$f":"Slovy(O149)","v":"třicet jedentisíc jednosto čtyřicet šest"},"100%","30,00%","70,00%",null,null,null,215]
[231,"Obec","Rynoltice","Pořízení vysoušecí skříně pro JSDHO Rynoltice 2025","pořízení, obnova, doplnění a opravy věcných prostředků požární ochrany a technického vybavení hasičských zbrojnic","6e","vysoušecí skříň - 1 ks","vysoušecí skříň - 1 ks",72540,43524,60,29016,40,72540,43524,60,"ANO",15,4.5,"0",0,4.5,15,1.5,0,0,1.5,6,"OLP/02080/2025",null,"Rynoltice 199","Rynoltice","46353",{"$f":"_xlfn.XLOOKUP(C150,#REF!,#REF!,\"Nenalezeno!\")","v":{"$error":"#REF!"}},"starosta","00263168","CZ00263168","94-5114461/0710","72 540 Kč","43 524,00 Kč",{"$f":"Slovy(O150)","v":"čtyřicet třitisíce pětset dvacet čtyři"},"100%","60,00%","40,00%",null,null,null,22]
[234,"Obec","Rynoltice","Doplnění a obnova věcných prostředků pro JSDHO Rynoltice 2025","Pořízení, obnova, doplnění a opravy věcných prostředků požární ochrany","6c","vozidlová radiostanice - 1 ks","vozidlová radiostanice - 1 ks",31000,15500,50,15500,50,31000,15500,50,"ANO",15,4.5,"7",0.70000000000000007,5.2,15,1.5,7,3.5,5,10.199999999999999,"OLP/02083/2025",null,"Rynoltice 199","Rynoltice","46353",{"$f":"_xlfn.XLOOKUP(C151,#REF!,#REF!,\"Nenalezeno!\")","v":{"$error":"#REF!"}},"starosta","00263168","CZ00263168","94-5114461/0710","31 000 Kč","15 500,00 Kč",{"$f":"Slovy(O151)","v":"patnáct tisíc pětset"},"100%","50,00%","50,00%",null,null,null,29]
[235,"Obec","Rynoltice","Pořízení zásahových obleků pro JSDHO Rynoltice 2025","Pořízení, obnova, doplnění a opravy vyjmenovaných osobních ochranných prostředků požární ochrany",2,"zásahový oblek třívrstvý - 2 ks, zásahový oblek jednovrstvý - 2 ks, zásahová obuv - 4 ks, zásahové rukavice - 4 ks, technické rukavice - 4 ks, zásahová přilba - 4 ks, zásahová kukla dvouvrstvá - 4 ks, zásahová svítilna - 2 ks, opasek polohovací - 4 ks","zásahový oblek třívrstvý - 2 ks, zásahový oblek jednovrstvý - 2 ks, zásahová obuv - 4 ks, zásahové rukavice - 4 ks, technické rukavice - 4 ks, zásahová přilba - 4 ks, zásahová kukla dvouvrstvá - 4 ks, zásahová svítilna - 2 ks, opasek polohovací - 4 ks",215626,100000,46.38,115626,53.62,215626,100000,46.38,"ANO",15,4.5,"7",0.70000000000000007,5.2,15,1.5,15,7.5,9,14.2,"OLP/02084/2025",null,"Rynoltice 199","Rynoltice","46353",{"$f":"_xlfn.XLOOKUP(C152,#REF!,#REF!,\"Nenalezeno!\")","v":{"$error":"#REF!"}},"starosta","00263168","CZ00263168","94-5114461/0710","215 626 Kč","100 000,00 Kč",{"$f":"Slovy(O152)","v":"jednosto tisíc"},"100%","46,38%","53,62%",null,null,null,251]
[74,"Město","Semily","Pořízení osobních ochranných prostředků","U2) Pořízení, obnova, doplnění a opravy v závorce vyjmenovaných osobních ochranných prostředků požární ochrany",2,"zásahový oblek - kabát - 2 ks, zásahový oblek - kalhoty - 2 ks, zásahové rukavice - 4 ks, technické rukavice - 4 ks, zásahová obuv - 4 ks","zásahový oblek - kabát - 2 ks, zásahový oblek - kalhoty - 2 ks, zásahové rukavice - 4 ks, technické rukavice - 4 ks, zásahová obuv - 4 ks",100000,60000,60,40000,40,100000,60000,60,"ANO",15,4.5,"0",0,4.5,15,1.5,15,7.5,9,13.5,"OLP/01943/2025",null,"Husova 82","Semily","51301",{"$f":"_xlfn.XLOOKUP(C153,#REF!,#REF!,\"Nenalezeno!\")","v":{"$error":"#REF!"}},"sstarostka","00276111","CZ00276111","1263108309/0800","100 000 Kč","60 000,00 Kč",{"$f":"Slovy(O153)","v":"šedesát tisíc"},"100%","60,00%","40,00%",null,null,null,137]
[77,"Město","Semily","Pořízení prostředků požární ochrany","U6c) pořízení, obnova, doplnění a opravy věcných prostředků požární ochrany mimo prostředků uvedených v U5) a U6)a).","6c","hadice typ B -  2 ks, hadice typ C - 2 ks, proudnice kombinovaná se spojkou - 1 ks, vysokotlaká proudnice - 1 ks, vak na lano - 3 ks","hadice typ B -  2 ks, hadice typ C - 2 ks, proudnice kombinovaná se spojkou - 1 ks, vysokotlaká proudnice - 1 ks, vak na lano - 3 ks",47000,28200,60,18800,40,47000,28200,60,"ANO",15,4.5,"0",0,4.5,15,1.5,7,3.5,5,9.5,"OLP/01945/2025",null,"Husova 82","Semily","51301",{"$f":"_xlfn.XLOOKUP(C154,#REF!,#REF!,\"Nenalezeno!\")","v":{"$error":"#REF!"}},"starostka","00276111","CZ00276111","1263108309/0800","47 000 Kč","28 200,00 Kč",{"$f":"Slovy(O154)","v":"dvacet osmtisíc dvěstě"},"100%","60,00%","40,00%",null,null,null,132]
[78,"Město","Semily","Pořízení vybavení k provádění speciálních činností","U6a) pořízení, obnova, doplnění a opravy věcných prostředků požární ochrany, ochranných prostředků a úprava úložných prostor mobilní požární techniky k provádění speciálních činností při zásazích v souvislosti s mimořádnými událostmi","6a","přilby lehké - 4 ks, brýle k přilbě - 4 ks, svítilny k přilbě - 2 ks, Hooligans standart čelist - 1 ks, kalibrace detektoru - 2 ks, rescue kotouč - 1 ks","přilby lehké - 4 ks, brýle k přilbě - 4 ks, svítilny k přilbě - 2 ks, Hooligans standart čelist - 1 ks, kalibrace detektoru - 2 ks, rescue kotouč - 1 ks",60400,42280,70,18120,30,60400,42280,70,"ANO",15,4.5,"0",0,4.5,15,1.5,15,7.5,9,13.5,"OLP/01946/2025",null,"Husova 82","Semily","51301",{"$f":"_xlfn.XLOOKUP(C155,#REF!,#REF!,\"Nenalezeno!\")","v":{"$error":"#REF!"}},"starostka","00276111","CZ00276111","1263108309/0800","60 400 Kč","42 280,00 Kč",{"$f":"Slovy(O155)","v":"čtyřicet dvatisíce dvěstě osmdesát"},"100%","70,00%","30,00%",null,null,null,152]
[170,"Obec","Slaná","Doplnění ochranných pomůcek a materiálu pro JSDH / PARAMETRY CHYBNĚ","Doplnění ochranných pomůcek a materiálu pro jednotku požární ochrany","6c","Obuv zásahová - 1 ks, Smáčedlo – kartuše - 10 ks, Hák požární AL PH - 1 ks, Brodící kalhoty Fluo (prsačky) - 1 ks, Kužel teleskopický scítící - 3 ks, Svítilna M-Fire 02 CREE - 1 ks, Přilba Kalisz Vulkan – včetně svítilny - 4 ks","Obuv zásahová - 1 ks, Smáčedlo – kartuše - 10 ks, Hák požární AL PH - 1 ks, Brodící kalhoty Fluo (prsačky) - 1 ks, Kužel teleskopický scítící - 3 ks, Svítilna M-Fire 02 CREE - 1 ks, Přilba Kalisz Vulkan – včetně svítilny - 4 ks",54132,27066,50,27066,50,54132,27066,50,"ANO",7,2.1,"7",0.70000000000000007,2.8000000000000003,15,1.5,7,3.5,5,7.8000000000000007,"OLP/02031/2025",null,"94","Slaná","51201",{"$f":"_xlfn.XLOOKUP(C156,#REF!,#REF!,\"Nenalezeno!\")","v":{"$error":"#REF!"}},"starostka","00276138",null,"6327581/0100","54 132 Kč","27 066,00 Kč",{"$f":"Slovy(O156)","v":"dvacet sedmtisíc šedesát šest"},"100%","50,00%","50,00%",null,null,null,227]
[85,"Město","Smržovka","Obnova a pořízení ochranných prostředků.","U2 - pořízení, obnova, doplnění a opravy osobních ochranných prostředků požární ochrany",2,"Oblek zásahový - 4 ks, Přilba Gallet - 4 ks, Obuv zásahová - 4 páry, Rukavice zásahové - 4 páry, Polohovací opasek - 4 ks, Osobní svítilna - 4 ks, Kukla zásahová - 4 ks, Vesta-nápis Hasiči - 4 ks ","Oblek zásahový - 4 ks, Přilba Gallet - 4 ks, Obuv zásahová - 4 páry, Rukavice zásahové - 4 páry, Polohovací opasek - 4 ks, Osobní svítilna - 4 ks, Kukla zásahová - 4 ks, Vesta-nápis Hasiči - 4 ks ",197848,98924,50,98924,50,197848,98924,50,"ANO",15,4.5,"7",0.70000000000000007,5.2,15,1.5,15,7.5,9,14.2,"OLP/01954/2025",null,"náměstí T. G. Masaryka 600","Smržovka","46851",{"$f":"_xlfn.XLOOKUP(C157,#REF!,#REF!,\"Nenalezeno!\")","v":{"$error":"#REF!"}},"starosta","00262579","CZ00262579","94-3015451/0710","197 848 Kč","98 924,00 Kč",{"$f":"Slovy(O157)","v":"devadesát osmtisíc devětset dvacet čtyři"},"100%","50,00%","50,00%",null,null,null,196]
[86,"Město","Smržovka","Pořízení a obnova věcných prostředků.","U5 Pořízení, obnova, doplnění a opravy věcných prostředků požární ochrany pro zásahy v souvislosti s likvidací lesních požárů",5,"Batoh D program - 1 ks, Oblek pro hašení lesních požárů - 4 ks, Obuv pro hašení lesních požárů - 4 páry, Přilba pro hašení lesních požárů - 4 ks, Rukavice pro hašení lesních požárů - 4 páry, Motykohrábě - 1 ks, Hasící zádový vak - 1 ks, Tlumice - 1 ks ","Batoh D program - 1 ks, Oblek pro hašení lesních požárů - 4 ks, Obuv pro hašení lesních požárů - 4 páry, Přilba pro hašení lesních požárů - 4 ks, Rukavice pro hašení lesních požárů - 4 páry, Motykohrábě - 1 ks, Hasící zádový vak - 1 ks, Tlumice - 1 ks ",156130,78065,50,78065,50,156130,78065,50,"ANO",15,4.5,"7",0.70000000000000007,5.2,15,1.5,15,7.5,9,14.2,"OLP/01955/2025",null,"náměstí T. G. Masaryka 600","Smržovka","46851",{"$f":"_xlfn.XLOOKUP(C158,#REF!,#REF!,\"Nenalezeno!\")","v":{"$error":"#REF!"}},"starosta","00262579","CZ00262579","94-3015451/0710","156 130 Kč","78 065,00 Kč",{"$f":"Slovy(O158)","v":"sedmdesát osmtisíc šedesát pět"},"100%","50,00%","50,00%",null,null,null,252]
[53,"Obec","Stráž nad Nisou","Nákup zásahových obleků a ochranných dvouvrstvých kukel","Pořízení, obnova, doplnění a opravy v závorce vyjmenovaných osobních ochranných prostředků požární ochrany (jednovrstvé a vícevrstvé zásahové obleky, ochranné kukly, vesty s nápisem k označení hasičů a osobní svítilny)",2,"Zásahový oblek Bushfire 2023 Lime Green s vlastním\nnápisem - 4 ks, Kukla dvouvrstvá NANO FLEX - 4 ks","Zásahový oblek Bushfire 2023 Lime Green s vlastním\nnápisem - 4 ks, Kukla dvouvrstvá NANO FLEX - 4 ks",61252,36751,60,24501,40,61252,36751,60,"ANO",15,4.5,"0",0,4.5,15,1.5,15,7.5,9,13.5,"OLP/01925/2025",null,"Schwarzova 262","Stráž nad Nisou","46303",{"$f":"_xlfn.XLOOKUP(C159,#REF!,#REF!,\"Nenalezeno!\")","v":{"$error":"#REF!"}},"starosta","00671916","CZ00671916","984860379/0800","61 252 Kč","36 751,00 Kč",{"$f":"Slovy(O159)","v":"třicet šesttisíc sedmset padesát jedna"},"100%","60,00%","40,00%",null,null,null,100]
[54,"Obec","Stráž nad Nisou","Nákup suchých obleků, termokamery a příslušenství","Pořízení, obnova, doplnění a opravy věcných prostředků požární ochrany mimo prostředků uvedených v U5) a U6)a)","6c","Suchý oblek Agama Rescue – kompletní set BASIC - 2 ks, Termokamera Reveal FirePRO X - 1 ks, Lanko navíjecí k termokameře\nReveal FirePRO - 1 ks","Suchý oblek Agama Rescue – kompletní set BASIC - 2 ks, Termokamera Reveal FirePRO X - 1 ks, Lanko navíjecí k termokameře\nReveal FirePRO - 1 ks",73531,44119,60,29412,40,73531,44119,60,"ANO",15,4.5,"0",0,4.5,15,1.5,7,3.5,5,9.5,"OLP/01926/2025",null,"Schwarzova 262","Stráž nad Nisou","46303",{"$f":"_xlfn.XLOOKUP(C160,#REF!,#REF!,\"Nenalezeno!\")","v":{"$error":"#REF!"}},"starosta","00671916","CZ00671916","984860379/0800","73 531 Kč","44 119,00 Kč",{"$f":"Slovy(O160)","v":"čtyřicet čtyřitisíce jednosto devatenáct"},"100%","60,00%","40,00%",null,null,null,142]
[194,"Město","Stráž pod Ralskem","Nákup ochranných prostředků PO","Zvýšení akceschopnosti jednotek sborů dobrovolných hasičů obcí Libereckého kraje",2,"lehký zásahový oblek - 4 ks, přilba se svítilnou - 2 ks, zásahové boty - 2 ks, zásahový kabát - 2 ks, technické rukavice - 4 ks, lehká zásahová přilba - 4 ks, zásahové rukavice - 2 ks, polohovací opasek - 4 ks, zásahový komplet - 1 ks","lehký zásahový oblek - 4 ks, přilba se svítilnou - 2 ks, zásahové boty - 2 ks, zásahový kabát - 2 ks, technické rukavice - 4 ks, lehká zásahová přilba - 4 ks, zásahové rukavice - 2 ks, polohovací opasek - 4 ks, zásahový komplet - 1 ks",185000,92000,49.73,93000,50.27,185000,92000,49.73,"ANO",15,4.5,"7",0.70000000000000007,5.2,15,1.5,15,7.5,9,14.2,"OLP/02049/2025",null,"Revoluční 164","Stráž pod Ralskem","47127",{"$f":"_xlfn.XLOOKUP(C161,#REF!,#REF!,\"Nenalezeno!\")","v":{"$error":"#REF!"}},"starosta","00260967","CZ00260967","94-4614421/0710","185 000 Kč","92 000,00 Kč",{"$f":"Slovy(O161)","v":"devadesát dvatisíce"},"100%","49,73%","50,27%",null,null,null,234]
[200,"Město","Stráž pod Ralskem","Věcné prostředky","Zvýšení akceschopnosti jednotek sborů dobrovolných hasičů obcí Libereckého kraje","6c","hadice C 42 - 5 ks, hadice B 75 - 3 ks, nástavec na pěnu ventilátoru - 1 ks, kalové čerpadlo, elektrické - 1 ks, vakuová matrace s batohem - 1 ks, ruční vysílačka - 2 ks, klíč na hadice B/C - 6 ks, Odvlhčovač - 1 ks","hadice C 42 - 5 ks, hadice B 75 - 3 ks, nástavec na pěnu ventilátoru - 1 ks, kalové čerpadlo, elektrické - 1 ks, vakuová matrace s batohem - 1 ks, ruční vysílačka - 2 ks, klíč na hadice B/C - 6 ks, Odvlhčovač - 1 ks",219800,100000,45.5,119800,54.5,219800,100000,45.5,"ANO",15,4.5,"7",0.70000000000000007,5.2,15,1.5,7,3.5,5,10.199999999999999,"OLP/02052/2025",null,"Revoluční 164","Stráž pod Ralskem","47127",{"$f":"_xlfn.XLOOKUP(C162,#REF!,#REF!,\"Nenalezeno!\")","v":{"$error":"#REF!"}},"starosta","00260967","CZ00260967","94-4614421/0710","219 800 Kč","100 000,00 Kč",{"$f":"Slovy(O162)","v":"jednosto tisíc"},"100%","45,50%","54,50%",null,null,null,215]
[205,"Město","Stráž pod Ralskem","Oprava hasičské zbrojnice","Zvýšení akceschopnosti jednotek sborů dobrovolných hasičů obcí Libereckého kraje","6f","oprava motorů - 2ks, oprava stěn garáží, výmalba - 500 m2, oprava podlah garáží, výmalba - 300 m2, výměna okapů - 90 m, výměna osvětlení - 50 ks, výměna lina, oprava podlah spol. místnost chodba - 50 m2","oprava motorů - 2ks, oprava stěn garáží, výmalba - 500 m2, oprava podlah garáží, výmalba - 300 m2, výměna okapů - 90 m, výměna osvětlení - 50 ks, výměna lina, oprava podlah spol. místnost chodba - 50 m3",416000,207000,49.76,209000,50.24,416000,207000,49.76,"ANO",15,4.5,"7",0.70000000000000007,5.2,15,1.5,0,0,1.5,6.7,"OLP/02056/2025",null,"Revoluční 164","Stráž pod Ralskem","47127",{"$f":"_xlfn.XLOOKUP(C163,#REF!,#REF!,\"Nenalezeno!\")","v":{"$error":"#REF!"}},"starosta","00260967","CZ00260967","94-4614421/0710","416 000 Kč","207 000,00 Kč",{"$f":"Slovy(O163)","v":"dvěstě sedmtisíc"},"100%","49,76%","50,24%",null,null,null,202]
[177,"Obec","Stružnice","Nákup ochranných prostředků pro JSDH Stružnice","U2) Pořízení, obnova, doplnění a opravy ochranných prostředků požární ochrany",2,"Zásahový komplet jednovrstvý - 4 ks, Zásahová přilba DRAEGER HPS - 4 ks, Opasek polohovací AP1/1 bez karabinky - 4 ks","Zásahový komplet jednovrstvý - 4 ks, Zásahová přilba DRAEGER HPS - 4 ks, Opasek polohovací AP1/1 bez karabinky - 4 ks",73164,43898,60,29266,40,73164,43898,60,"ANO",15,4.5,"0",0,4.5,15,1.5,15,7.5,9,13.5,"OLP/02037/2025",null,"188","Stružnice","47002",{"$f":"_xlfn.XLOOKUP(C164,#REF!,#REF!,\"Nenalezeno!\")","v":{"$error":"#REF!"}},"starostka","00260975","CZ00260975","94-4710421/0710","73 164 Kč","43 898,00 Kč",{"$f":"Slovy(O164)","v":"čtyřicet třitisíce osmset devadesát osm"},"100%","60,00%","40,00%",null,null,null,117]
[178,"Obec","Stružnice","Oprava CAS TATRA","U6e) Pořízení, obnova, doplnění a opravy věcných prostředků požární ochrany","6b","Oprava spojky CAS TATRA - 1 ks","Oprava spojky CAS TATRA - 1 ks",45000,27000,60,18000,40,45000,27000,60,"ANO",15,4.5,"0",0,4.5,15,1.5,7,3.5,5,9.5,"OLP/02039/2025",null,"188","Stružnice","47002",{"$f":"_xlfn.XLOOKUP(C165,#REF!,#REF!,\"Nenalezeno!\")","v":{"$error":"#REF!"}},"starostka","00260975","CZ00260975","94-4710421/0710","45 000 Kč","27 000,00 Kč",{"$f":"Slovy(O165)","v":"dvacet sedmtisíc"},"100%","60,00%","40,00%",null,null,null,30]
[162,"Obec","Studenec","Pořízení OOP pro JSDHO Studenec","Pořízení a obnova osobních ochranných prostředků jednotky požární ochrany",2,"Zásahová obuv HAIX Fire Flash2.0 - 3 ks, Rukavice zásahové CRYSTAL Flexi - 4 ks","Zásahová obuv HAIX Fire Flash2.0 - 3 ks, Rukavice zásahové CRYSTAL Flexi - 4 ks",33081,16540,50,16541,50,33081,16540,50,"ANO",15,4.5,"7",0.70000000000000007,5.2,15,1.5,15,7.5,9,14.2,"OLP/02016/2025",null,"364","Studenec","51233",{"$f":"_xlfn.XLOOKUP(C166,#REF!,#REF!,\"Nenalezeno!\")","v":{"$error":"#REF!"}},"starosta","00276162","CZ00276162","261128774/0600","33 081 Kč","16 540,00 Kč",{"$f":"Slovy(O166)","v":"šestnáct tisíc pětset čtyřicet"},"100%","50,00%","50,00%",null,null,null,79]
[250,"Obec","Studenec","Nákup sušící skříně na OOP","U6 e) Snížení opotřebení a ochrana zásahových OOP a tím dosažení snížení celkových nákladů na OOP","6e","Skříň ROS 05 turbo - 1 ks","Skříň ROS 05 turbo - 1 ks",79799,39899,50,39900,50,79799,39899,50,"ANO",15,4.5,"7",0.70000000000000007,5.2,15,1.5,0,0,1.5,6.7,"OLP/02098/2025",null,"364","Studenec","51233",{"$f":"_xlfn.XLOOKUP(C167,#REF!,#REF!,\"Nenalezeno!\")","v":{"$error":"#REF!"}},"starosta","00276162","CZ00276162","261128774/0600","79 799 Kč","39 899,00 Kč",{"$f":"Slovy(O167)","v":"třicet devěttisíc osmset devadesát devět"},"100%","50,00%","50,00%",null,null,null,25]
[236,"Obec","Světlá pod Ještědem","Obnova osobních ochranných prostředků","U2 - Ochrana hasičů při zásahu u mimořádné události.",2,"Zásahový oděv - 4 ks, Zásahová obuv - 4 páry, Zásahová přilba - 4 ks, Zásahové rukavice - 4 páry","Zásahový oděv - 4 ks, Zásahová obuv - 4 páry, Zásahová přilba - 4 ks, Zásahové rukavice - 4 páry",199828,99914,{"$f":"ROUND(J168/I168*100,2)","v":50},{"$f":"I168-J168","v":99914},{"$f":"ROUND(L168/I168*100,2)","v":50},199828,99914,{"$f":"ROUND(O168/N168*100,2)","v":50},"ANO",15,{"$f":"R168*0.3","v":4.5},{"$f":"IF(K168<=30,\"15\",IF(K168<=50,\"7\",IF(K168<=70,\"0\",\"!!!\")))","v":"7"},{"$f":"T168*0.1","v":0.70000000000000007},{"$f":"S168+U168","v":5.2},15,{"$f":"W168*0.1","v":1.5},15,{"$f":"Y168*0.5","v":7.5},{"$f":"X168+Z168","v":9},{"$f":"V168+AA168","v":14.2},"OLP/02085/2025",null,"Hodky 48","Světlá pod Ještědem","46343",{"$f":"_xlfn.XLOOKUP(C168,#REF!,#REF!,\"Nenalezeno!\")","v":{"$error":"#REF!"}},"starosta","00263192","CZ00263192","94-5413461/0710",{"$f":"TEXT(N168,\"# ##0 Kč\")","v":"199 828 Kč"},{"$f":"TEXT(O168,\"# ##0,00 Kč\")","v":"99 914,00 Kč"},{"$f":"Slovy(O168)","v":"devadesát devěttisíc devětset čtrnáct"},{"$f":"IF(O168<=300000,\"100%\",\"90%\")","v":"100%"},{"$f":"TEXT(P168,\"0,00\")& \"%\"","v":"50,00%"},{"$f":"TEXT(M168,\"0,00\")& \"%\"","v":"50,00%"},null,null,null,{"$f":"LEN(H168)","v":96}]
[238,"Obec","Světlá pod Ještědem","Pořízení věcných prostředků PO","U4 - Pořízení věcných prostředků požární ochrany pro čerpání vody v souvislosti se záplavami a povodněmi",4,"čerpadlo přenosné plovoucí - 1 ks","čerpadlo přenosné plovoucí - 1 ks",54882,27441,50,27441,50,54882,27441,50,"ANO",15,4.5,"7",0.70000000000000007,5.2,15,1.5,15,7.5,9,14.2,"OLP/02087/2025",null,"Hodky 48","Světlá pod Ještědem","46343",{"$f":"_xlfn.XLOOKUP(C169,#REF!,#REF!,\"Nenalezeno!\")","v":{"$error":"#REF!"}},"starosta","00263192","CZ00263192","94-5413461/0710","54 882 Kč","27 441,00 Kč",{"$f":"Slovy(O169)","v":"dvacet sedmtisíc čtyřista čtyřicet jedna"},"100%","50,00%","50,00%",null,null,null,33]
[240,"Obec","Světlá pod Ještědem","Pořízení věcných prostředků PO.","U5 - Pořízení věcných prostředků požární ochrany pro zásahy v souvislosti s likvidací lesních požárů",5,"zádový vak hasicí - 1 ks, zásahová přilba - 4 ks, zásahový oděv - 4 ks","zádový vak hasicí - 1 ks, zásahová přilba - 4 ks, zásahový oděv - 4 ks",78118,39059,50,39059,50,78118,39059,50,"ANO",15,4.5,"7",0.70000000000000007,5.2,15,1.5,15,7.5,9,14.2,"OLP/02089/2025",null,"Hodky 48","Světlá pod Ještědem","46343",{"$f":"_xlfn.XLOOKUP(C170,#REF!,#REF!,\"Nenalezeno!\")","v":{"$error":"#REF!"}},"starosta","00263192","CZ00263192","94-5413461/0710","78 118 Kč","39 059,00 Kč",{"$f":"Slovy(O170)","v":"třicet devěttisíc padesát devět"},"100%","50,00%","50,00%",null,null,null,70]
[241,"Obec","Světlá pod Ještědem","Doplnění osobních ochranných prostředků.","U6a - Doplnění osobních ochranných prostředků v souvislosti s předurčeností JSDHO pro ochranu obyvatel","6a","Zásahový oděv - 4 ks, Zásahová přilba - 4 ks","Zásahový oděv - 4 ks, Zásahová přilba - 4 ks",71032,35516,50,35516,50,71032,35516,50,"ANO",15,4.5,"7",0.70000000000000007,5.2,15,1.5,15,7.5,9,14.2,"OLP/02090/2025",null,"Hodky 48","Světlá pod Ještědem","46343",{"$f":"_xlfn.XLOOKUP(C171,#REF!,#REF!,\"Nenalezeno!\")","v":{"$error":"#REF!"}},"starosta","00263192","CZ00263192","94-5413461/0710","71 032 Kč","35 516,00 Kč",{"$f":"Slovy(O171)","v":"třicet pěttisíc pětset šestnáct"},"100%","50,00%","50,00%",null,null,null,44]
[244,"Obec","Světlá pod Ještědem","Pořízení technického vybavení","U6e - Pořízení technického vybavení hasičské zbrojnice pro praní, sušení a impregnaci osobních ochranných prostředků členů JSDHO","6e","Sestava pračky a sušiče s příslušenstvím - 1 ks","Sestava pračky a sušiče s příslušenstvím - 1 ks",185734,92867,50,92867,50,185734,92867,50,"ANO",15,4.5,"7",0.70000000000000007,5.2,15,1.5,0,0,1.5,6.7,"OLP/02091/2025",null,"Hodky 48","Světlá pod Ještědem","46343",{"$f":"_xlfn.XLOOKUP(C172,#REF!,#REF!,\"Nenalezeno!\")","v":{"$error":"#REF!"}},"starosta","00263192","CZ00263192","94-5413461/0710","185 734 Kč","92 867,00 Kč",{"$f":"Slovy(O172)","v":"devadesát dvatisíce osmset šedesát sedm"},"100%","50,00%","50,00%",null,null,null,47]
[123,"Obec","Svojkov","Pořízení, obnova, doplnění a opravy věcných prostředků PO mimo prostředků uvedených v U5) a U6)a) - Účel podpory U6)c)","Zajištění dostatečné bezpečnosti členů JSDHO při provádění hasebních, záchranných a vyprošťovacích prací s nasazením dýchací techniky. Možnost provedení předepsané revize DT.","6c","Dýchací přístroj PLUTO 300 - 2 ks, Maska s náhlavním křížem - 2 ks, Tlaková lahev - 2 ks","Dýchací přístroj PLUTO 300 - 2 ks, Maska s náhlavním křížem - 2 ks, Tlaková lahev - 2 ks",100000,60000,60,40000,40,100000,60000,60,"ANO",7,2.1,"0",0,2.1,15,1.5,7,3.5,5,7.1,"OLP/01983/2025",null,"12","Svojkov","47153",{"$f":"_xlfn.XLOOKUP(C173,#REF!,#REF!,\"Nenalezeno!\")","v":{"$error":"#REF!"}},"starosta","00831689",null,"24324421/0100","100 000 Kč","60 000,00 Kč",{"$f":"Slovy(O173)","v":"šedesát tisíc"},"100%","60,00%","40,00%",null,null,null,88]
[124,"Obec","Svojkov","Pořízení, obnova, doplnění a opravy osobních ochranných prostředků PO - Účel podpory - U2","Zajištění dostatečné bezpečnosti členů JSDHO při provádění hasebních, záchranných a vyprošťovacích prací, nákupem třívrstvých zásahových kompletů, obuvi, přileb a ostatních předepsaných ochranných prostředků",2,"Komplet zásahový, třívrstvý - 1 sada, Přilba zásahová - 4 ks, Kukla - 4 ks, Obuv zásahová - 3 ks, Svítilna - 4 ks, Držák na svítilnu - 4 ks","Komplet zásahový, třívrstvý - 1 sada, Přilba zásahová - 4 ks, Kukla - 4 ks, Obuv zásahová - 3 ks, Svítilna - 4 ks, Držák na svítilnu - 4 ks",100000,60000,60,40000,40,100000,60000,60,"ANO",7,2.1,"0",0,2.1,15,1.5,15,7.5,9,11.1,"OLP/01984/2025",null,"12","Svojkov","47153",{"$f":"_xlfn.XLOOKUP(C174,#REF!,#REF!,\"Nenalezeno!\")","v":{"$error":"#REF!"}},"starosta","00831689",null,"24324421/0100","100 000 Kč","60 000,00 Kč",{"$f":"Slovy(O174)","v":"šedesát tisíc"},"100%","60,00%","40,00%",null,null,null,139]
[126,"Obec","Svojkov","Pořízení , obnova, doplnění a opravy věcných prostředků PO pro zásahy v souvislosti s likvidací lesních požárů - Účel podpory - U5","Doplnění výbavy nutné pro efektivní zdolávání lesních požárů v zalesněných, skalnatých, velmi členitých a těžko přístupných částech katastru obce",5,"Batoh s předepsanou výbavou pro lesní požáry - 1 ks, Vak hasící 25l - 1 ks, Motykohrábě - 1 ks, Tlumice - 1 ks, Rukavice určené pro lesní požáry - 4 páry, Přechod C52/B75 - 1 ks, Vazák na hadice - 1 ks","Batoh s předepsanou výbavou pro lesní požáry - 1 ks, Vak hasící 25l - 1 ks, Motykohrábě - 1 ks, Tlumice - 1 ks, Rukavice určené pro lesní požáry - 4 páry, Přechod C52/B75 - 1 ks, Vazák na hadice - 1 ks",57001,34200,60,22801,40,57001,34200,60,"ANO",7,2.1,"0",0,2.1,15,1.5,15,7.5,9,11.1,"OLP/01986/2025",null,"12","Svojkov","47153",{"$f":"_xlfn.XLOOKUP(C175,#REF!,#REF!,\"Nenalezeno!\")","v":{"$error":"#REF!"}},"starosta","00831689",null,"24324421/0100","57 001 Kč","34 200,00 Kč",{"$f":"Slovy(O175)","v":"třicet čtyřitisíce dvěstě"},"100%","60,00%","40,00%",null,null,null,201]
[149,"Obec","Syřenov","Nákup ochranných prostředků PO","U2 - pro JSDH Syřenov budou pořízeny 4 soupravy osobních ochranných prostředků požární ochrany, které tvoří vícevrstvý ochranný oblek (kalhoty a kabát), zásahové boty, zásahové rukavice, zásahová přilba včetně svítilny a kukly.",2,"Vícevrstvý zásahový oblek - kalhoty - 4 ks,Vícevrstvý zásahový oblek - kabát - 4 ks,  Zásahová obuv - 4 páry, Zásahové rukavice - 4 páry, Zásahová přilba - 4 ks, Svítilna k přilbě - 4 ks, Kukla otvor - obličej - 4 ks","Vícevrstvý zásahový oblek - kalhoty - 4 ks,Vícevrstvý zásahový oblek - kabát - 4 ks,  Zásahová obuv - 4 páry, Zásahové rukavice - 4 páry, Zásahová přilba - 4 ks, Svítilna k přilbě - 4 ks, Kukla otvor - obličej - 4 ks",192000,96000,50,96000,50,192000,96000,50,"ANO",7,2.1,"7",0.70000000000000007,2.8000000000000003,15,1.5,15,7.5,9,11.8,"OLP/02006/2025",null,"68","Syřenov","51251",{"$f":"_xlfn.XLOOKUP(C176,#REF!,#REF!,\"Nenalezeno!\")","v":{"$error":"#REF!"}},"starosta","00276189",null,"8322581/0100","192 000 Kč","96 000,00 Kč",{"$f":"Slovy(O176)","v":"devadesát šesttisíc"},"100%","50,00%","50,00%",null,null,null,216]
[232,"Město","Tanvald","Obnova a doplnění OOP PO pro jednotky požární ochrany města Tanvald","U2) Pořízení, obnova, doplnění osobních ochranných prostředků požární ochrany",2,"Zásahová přilba - 8 ks, Zásahový oblek třívrstvý - 8 ks, Svítilna - 8 ks, Zásahová obuv - 8 ks, Vesta s nápisem - 8 ks, Zásahové rukavice - 8 počet, Kukla - 8 ks","Zásahová přilba - 8 ks, Zásahový oblek třívrstvý - 8 ks, Svítilna - 8 ks, Zásahová obuv - 8 ks, Vesta s nápisem - 8 ks, Zásahové rukavice - 8 počet, Kukla - 8 ks",341820,200000,58.51,141820,41.49,341820,200000,58.51,"ANO",15,4.5,"0",0,4.5,15,1.5,15,7.5,9,13.5,"OLP/02081/2025",null,"Palackého 359","Tanvald","46841",{"$f":"_xlfn.XLOOKUP(C177,#REF!,#REF!,\"Nenalezeno!\")","v":{"$error":"#REF!"}},"starosta","00262587","CZ00262587","9005-1626451/0100","341 820 Kč","200 000,00 Kč",{"$f":"Slovy(O177)","v":"dvěstě tisíc"},"100%","58,51%","41,49%",null,null,null,161]
[233,"Město","Tanvald","Pořízení OOP PO pro zásahy v souvislosti s likvidací lesních požárů pro jednotky požární ochrany města Tanvald","U5) Pořízení, obnova, doplnění a opravy věcných prostředků požární ochrany pro zásahy v souvislosti s likvidací lesních požárů",5,"Přilba pro hasiče určena k použití při lesních požárech - 8 ks","Přilba pro hasiče určena k použití při lesních požárech - 8 ks",42784,15000,35.06,27784,64.94,42784,15000,35.06,"ANO",15,4.5,"7",0.70000000000000007,5.2,15,1.5,15,7.5,9,14.2,"OLP/02082/2025",null,"Palackého 359","Tanvald","46841",{"$f":"_xlfn.XLOOKUP(C178,#REF!,#REF!,\"Nenalezeno!\")","v":{"$error":"#REF!"}},"starosta","00262587","CZ00262587","9005-1626451/0100","42 784 Kč","15 000,00 Kč",{"$f":"Slovy(O178)","v":"patnáct tisíc"},"100%","35,06%","64,94%",null,null,null,62]
[219,"Obec","Tuhaň","GO Tatry 815","U6b GO Tatry 815","6b","GO Tatry 815 - 1 ks","GO Tatry 815 - 1 ks",500000,300000,60,200000,40,500000,300000,60,"ANO",15,4.5,"0",0,4.5,15,1.5,7,3.5,5,9.5,"OLP/02071/2025",null,"32","Tuhaň","47201",{"$f":"_xlfn.XLOOKUP(C179,#REF!,#REF!,\"Nenalezeno!\")","v":{"$error":"#REF!"}},"starostka","00831727","CZ00831727","24228421/0100","500 000 Kč","300 000,00 Kč",{"$f":"Slovy(O179)","v":"třista tisíc"},"100%","60,00%","40,00%",null,null,null,19]
[222,"Obec","Tuhaň","Dýchací technika","U6c doplnění přetlakové dýchací techniky","6c","Dýchací přístroj (sada) - 2 ks, Lahev tlaková - 2 ks","Dýchací přístroj (sada) - 2 ks, Lahev tlaková - 2 ks",107120,64272,60,42848,40,107120,64272,60,"ANO",15,4.5,"0",0,4.5,15,1.5,7,3.5,5,9.5,"OLP/02073/2025",null,"32","Tuhaň","47201",{"$f":"_xlfn.XLOOKUP(C180,#REF!,#REF!,\"Nenalezeno!\")","v":{"$error":"#REF!"}},"starostka","00831727","CZ00831727","24228421/0100","107 120 Kč","64 272,00 Kč",{"$f":"Slovy(O180)","v":"šedesát čtyřitisíce dvěstě sedmdesát dva"},"100%","60,00%","40,00%",null,null,null,52]
[224,"Obec","Tuhaň","Doplnění OOP PO JSDH Tuhaň","U2 Doplnění OOP PO JSDH Tuhaň",2,"Helma - 4 ks, Zásahové obleky jednovrstvé - 4 ks, Zásahové obleky třívrstvé - 2 ks, Zásahové rukavice - 4 ks, Baterka nabíjecí - 4 ks, Nabíječka k baterce nabíjecí - 4 ks, Opasek polohovací - 4 ks","Helma - 4 ks, Zásahové obleky jednovrstvé - 4 ks, Zásahové obleky třívrstvé - 2 ks, Zásahové rukavice - 4 ks, Baterka nabíjecí - 4 ks, Nabíječka k baterce nabíjecí - 4 ks, Opasek polohovací - 4 ks",161846,97108,60,64738,40,161846,97108,60,"ANO",15,4.5,"0",0,4.5,15,1.5,15,7.5,9,13.5,"OLP/02074/2025",null,"32","Tuhaň","47201",{"$f":"_xlfn.XLOOKUP(C181,#REF!,#REF!,\"Nenalezeno!\")","v":{"$error":"#REF!"}},"starostka","00831727","CZ00831727","24228421/0100","161 846 Kč","97 108,00 Kč",{"$f":"Slovy(O181)","v":"devadesát sedmtisíc jednosto osm"},"100%","60,00%","40,00%",null,null,null,196]
[71,"Město","Turnov","U2 - Pořízení, doplnění, obnova osobních ochranných prostředků požární ochrany","U2 - Pořízení, doplnění, obnova osobních ochranných prostředků požární ochrany",2,"Třívrstvý zásahový oblek - 4 ks, zásahové rukavice - 4 páry, zásahová obuv - 3 páry, zásahová přilba - 3 ks","Třívrstvý zásahový oblek - 4 ks, zásahové rukavice - 4 páry, zásahová obuv - 3 páry, zásahová přilba - 3 ks",172803,99900,57.81,72903,42.19,172803,99900,57.81,"ANO",15,4.5,"0",0,4.5,15,1.5,15,7.5,9,13.5,"OLP/01940/2025",null,"Antonína Dvořáka 335","Turnov","51101",{"$f":"_xlfn.XLOOKUP(C182,#REF!,#REF!,\"Nenalezeno!\")","v":{"$error":"#REF!"}},"starosta","00276227","CZ00276227","1263075359/0800","172 803 Kč","99 900,00 Kč",{"$f":"Slovy(O182)","v":"devadesát devěttisíc devětset"},"100%","57,81%","42,19%",null,null,null,107]
[111,"Město","Velké Hamry","Pořízení věcných prostředků v souvislosti se záplavami a povodněmi","U4) Pořízení, obnova, doplnění a opravy věcných prostředků požární ochrany pro čerpání vody zejména v souvislosti se záplavami a povodněmi",4,"Vysavač hasičský s příslušenstvím - 1 ks, Elektrocentrála 7 kW - 1 ks","Vysavač hasičský s příslušenstvím - 1 ks, Elektrocentrála 7 kW - 1 ks",113000,63000,55.75,50000,44.25,113000,63000,55.75,"ANO",15,4.5,"0",0,4.5,15,1.5,15,7.5,9,13.5,"OLP/01974/2025",null,"362","Velké Hamry","46845",{"$f":"_xlfn.XLOOKUP(C183,#REF!,#REF!,\"Nenalezeno!\")","v":{"$error":"#REF!"}},"starosta","00262595","CZ00262595","94-3218451/0710","113 000 Kč","63 000,00 Kč",{"$f":"Slovy(O183)","v":"šedesát třitisíce"},"100%","55,75%","44,25%",null,null,null,69]
[127,"Město","Velké Hamry","Doplnění věcných prostředků PO","U6 c) c)pořízení, obnova, doplnění a opravy věcných prostředků požární ochrany","6c","Motor lodní - 1 ks, Hadice C - 4 ks","Motor lodní - 1 ks, Hadice C - 4 ks",55000,32000,58.18,23000,41.82,55000,32000,58.18,"ANO",15,4.5,"0",0,4.5,15,1.5,7,3.5,5,9.5,"OLP/01987/2025",null,"362","Velké Hamry","46845",{"$f":"_xlfn.XLOOKUP(C184,#REF!,#REF!,\"Nenalezeno!\")","v":{"$error":"#REF!"}},"starosta","00262595","CZ00262595","94-3218451/0710","55 000 Kč","32 000,00 Kč",{"$f":"Slovy(O184)","v":"třicet dvatisíce"},"100%","58,18%","41,82%",null,null,null,35]
[128,"Město","Velké Hamry","Pořízení osobních ochranných prostředků","U2) Pořízení, obnova, doplnění a opravy osobních ochranných prostředků požární ochrany (jednovrstvé a vícevrstvé zásahové obleky a osobní svítilny)",2,"Třívrstvý zásahový oblek - 1 ks, Osobní svítilna - 1 ks","Třívrstvý zásahový oblek - 1 ks, Osobní svítilna - 1 ks",25700,15000,58.37,10700,41.63,25700,15000,58.37,"ANO",15,4.5,"0",0,4.5,15,1.5,15,7.5,9,13.5,"OLP/01988/2025",null,"362","Velké Hamry","46845",{"$f":"_xlfn.XLOOKUP(C185,#REF!,#REF!,\"Nenalezeno!\")","v":{"$error":"#REF!"}},"starosta","00262595","CZ00262595","94-3218451/0710","25 700 Kč","15 000,00 Kč",{"$f":"Slovy(O185)","v":"patnáct tisíc"},"100%","58,37%","41,63%",null,null,null,55]
[129,"Město","Velké Hamry","Pořízení věcných prostředků na likvidaci lesních požárů","U5) Pořízení, obnova, doplnění a opravy věcných prostředků požární ochrany pro zásahy v souvislosti s likvidací lesních požárů",5,"Batoh na D program vybavený - 1 ks, Přilba k použití při lesních požárech - 8 ks, Rukavice k použití při lesních požárech - 8 párů, Oblek určený pro likvidaci lesních požárů - 8 ks","Batoh na D program vybavený - 1 ks, Přilba k použití při lesních požárech - 8 ks, Rukavice k použití při lesních požárech - 8 párů, Oblek určený pro likvidaci lesních požárů - 8 ks",170500,100000,58.65,70500,41.35,170500,100000,58.65,"ANO",15,4.5,"0",0,4.5,15,1.5,15,7.5,9,13.5,"OLP/01989/2025",null,"362","Velké Hamry","46845",{"$f":"_xlfn.XLOOKUP(C186,#REF!,#REF!,\"Nenalezeno!\")","v":{"$error":"#REF!"}},"starosta","00262595","CZ00262595","94-3218451/0710","170 500 Kč","100 000,00 Kč",{"$f":"Slovy(O186)","v":"jednosto tisíc"},"100%","58,65%","41,35%",null,null,null,180]
[146,"Město","Velké Hamry","Výměna vstupních dveří u hasičárny","Výměna vstupních dveří u hasičárny","6f","Vstupní dveře - 1 ks","Vstupní dveře - 1 ks",116000,65000,56.03,51000,43.97,116000,65000,56.03,"ANO",15,4.5,"0",0,4.5,15,1.5,0,0,1.5,6,"OLP/02001/2025",null,"362","Velké Hamry","46845",{"$f":"_xlfn.XLOOKUP(C187,#REF!,#REF!,\"Nenalezeno!\")","v":{"$error":"#REF!"}},"starosta","00262595","CZ00262595","94-3218451/0710","116 000 Kč","65 000,00 Kč",{"$f":"Slovy(O187)","v":"šedesát pěttisíc"},"100%","56,03%","43,97%",null,null,null,20]
[246,"Obec","Vítkovice","Nákup ochranných prostředků / CHYBÍ PP","Dovybavení a obnova ochranných prostředků pro JSDHO - JPO III. Účel podpory U2).",2,"Zásahový kabát - 4 ks, Zásahové kalhoty - 4 ks, Zásahová obuv - 4 ks","Zásahový kabát - 4 ks, Zásahové kalhoty - 4 ks, Zásahová obuv - 4 ks",99556,59400,59.66,40156,40.340000000000003,99556,59400,59.66,"ANO",15,4.5,"0",0,4.5,15,1.5,15,7.5,9,13.5,"OLP/02093/2025",null,"243","Vítkovice","51238",{"$f":"_xlfn.XLOOKUP(C188,#REF!,#REF!,\"Nenalezeno!\")","v":{"$error":"#REF!"}},"starosta","00276260","CZ00276260","94-56512451/0710","99 556 Kč","59 400,00 Kč",{"$f":"Slovy(O188)","v":"padesát devěttisíc čtyřista"},"100%","59,66%","40,34%",null,null,null,68]
[5,"Obec","Volfartice","Pořízení věcných prostředků PO","U6 c) Pořízení věcných prostředků PO","6c","dýchací přístroj s maskou a lahví - 4 ks, vývod pro 2. plicní automatiky k vyváděcí masce - 4 ks, lahev tlaková - 4 ks, obal na tlakovou lahev - 8 ks, kukla - maska vyváděcí 4 ks","dýchací přístroj s maskou a lahví - 4 ks, vývod pro 2. plicní automatiky k vyváděcí masce - 4 ks, lahev tlaková - 4 ks, obal na tlakovou lahev - 8 ks, kukla - maska vyváděcí 4 ks",325946,97500,29.91,228446,70.09,325946,97500,29.91,"ANO",15,4.5,"15",1.5,6,15,1.5,7,3.5,5,11,"OLP/01887/2025",null,"59","Volfartice","47112",{"$f":"_xlfn.XLOOKUP(C189,#REF!,#REF!,\"Nenalezeno!\")","v":{"$error":"#REF!"}},"starostka","00261076",null,"94-5510421/0710","325 946 Kč","97 500,00 Kč",{"$f":"Slovy(O189)","v":"devadesát sedmtisíc pětset"},"100%","29,91%","70,09%",null,null,null,178]
[225,"Obec","Všelibice","Nákup ochranných prostředků požární ochrany","U2 -pořízení osobních ochranných prostředků požární ochrany",2,"zásahový oblek komplet - 4 ks, zásahová přilba - 4 ks, zásahové rukavice - 4 ks","zásahový oblek komplet - 4 ks, zásahová přilba - 4 ks, zásahové rukavice - 4 ks",132800,79680,60,53120,40,132800,79680,60,"ANO",15,4.5,"0",0,4.5,15,1.5,15,7.5,9,13.5,"OLP/02075/2025",null,"65","Všelibice","46348",{"$f":"_xlfn.XLOOKUP(C190,#REF!,#REF!,\"Nenalezeno!\")","v":{"$error":"#REF!"}},"starostka","00263303","CZ00263303","984933339/0800","132 800 Kč","79 680,00 Kč",{"$f":"Slovy(O190)","v":"sedmdesát devěttisíc šestset osmdesát"},"100%","60,00%","40,00%",null,null,null,79]
[269,"Obec","Všelibice","Úprava hasičské zbrojnice","U6 f","6f","úprava hasičské zbrojnice - 1 ks","úprava hasičské zbrojnice - 1 ks",375000,187000,49.87,188000,50.13,375000,187000,49.87,"ANO",15,4.5,"7",0.70000000000000007,5.2,15,1.5,0,0,1.5,6.7,"OLP/02105/2025",null,"65","Všelibice","46348",{"$f":"_xlfn.XLOOKUP(C191,#REF!,#REF!,\"Nenalezeno!\")","v":{"$error":"#REF!"}},"starostka","00263303","CZ00263303","984933339/0800","375 000 Kč","187 000,00 Kč",{"$f":"Slovy(O191)","v":"jednosto osmdesát sedmtisíc"},"100%","49,87%","50,13%",null,null,null,32]
[176,"Město","Vysoké nad Jizerou","Nákup dýchací techniky Dräger PSS 4000","U6c) účelem je pořízení věcných prostředků požární ochrany pro JSDHO Vysoké nad Jizerou","6c","Komplet dýchací techniky Dräger - 4 ks","Komplet dýchací techniky Dräger - 4 ks",193572,96786,50,96786,50,193572,96786,50,"ANO",15,4.5,"7",0.70000000000000007,5.2,15,1.5,7,3.5,5,10.199999999999999,"OLP/02036/2025",null,"Náměstí Dr. Karla Kramáře 227","Vysoké nad Jizerou","51211",{"$f":"_xlfn.XLOOKUP(C192,#REF!,#REF!,\"Nenalezeno!\")","v":{"$error":"#REF!"}},"starostka","00276294","CZ00276294","1263116309/0800","193 572 Kč","96 786,00 Kč",{"$f":"Slovy(O192)","v":"devadesát šesttisíc sedmset osmdesát šest"},"100%","50,00%","50,00%",null,null,null,38]
[92,"Město","Zákupy","Obnova osobních ochranných prostředků požární ochrany","U2-pořízení osobních ochranných prostředků požární ochrany",2,"Kukla Nomex Deva - 4 ks, Přilba DRÄEGER HPS 7000 - 4 ks, Rukavice zásahové Angel Flexi - 3 páry, Nápis - nášivka - 4 ks, Svítilna Adalit L-10 LED - 4 ks, Obuv HAIX Fire Eagle PRO - 4 pár, Komplet třívrstvý DEVA RED FOX FIT - 2 ks","Kukla Nomex Deva - 4 ks, Přilba DRÄEGER HPS 7000 - 4 ks, Rukavice zásahové Angel Flexi - 3 páry, Nápis - nášivka - 4 ks, Svítilna Adalit L-10 LED - 4 ks, Obuv HAIX Fire Eagle PRO - 4 pár, Komplet třívrstvý DEVA RED FOX FIT - 2 ks",162036,97222,60,64814,40,162036,97222,60,"ANO",15,4.5,"0",0,4.5,15,1.5,15,7.5,9,13.5,"OLP/01958/2025",null,"Borská 5","Zákupy","47123",{"$f":"_xlfn.XLOOKUP(C193,#REF!,#REF!,\"Nenalezeno!\")","v":{"$error":"#REF!"}},"starosta","00261114","CZ00261114","19-5721421/0100","162 036 Kč","97 222,00 Kč",{"$f":"Slovy(O193)","v":"devadesát sedmtisíc dvěstě dvacet dva"},"100%","60,00%","40,00%",null,null,null,229]
[93,"Město","Zákupy","Pořízení obleků do vody","U3 - pořízení věcných prostředků požární ochrany","6a","Suchý oblek Agama Rescue kompletní Basic - 3 ks","Suchý oblek Agama Rescue kompletní Basic - 3 ks",74967,44980,60,29987,40,74967,44980,60,"ANO",15,4.5,"0",0,4.5,15,1.5,15,7.5,9,13.5,"OLP/01960/2025",null,"Borská 5","Zákupy","47123",{"$f":"_xlfn.XLOOKUP(C194,#REF!,#REF!,\"Nenalezeno!\")","v":{"$error":"#REF!"}},"starosta","00261114","CZ00261114","19-5721421/0100","74 967 Kč","44 980,00 Kč",{"$f":"Slovy(O194)","v":"čtyřicet čtyřitisíce devětset osmdesát"},"100%","60,00%","40,00%",null,null,null,47]
[94,"Město","Zákupy","Pořízení hasičského vysavače","U4 - pořízení věcných prostředků požární ochrany",4,"Vysavač hasičský Rössle HYDRA - 1 ks, Centrála třífázová Heron 17HR/8,2kW - 1 ks","Vysavač hasičský Rössle HYDRA - 1 ks, Centrála třífázová Heron 17HR/8,2kW - 1 ks",120448,72269,60,48179,40,120448,72269,60,"ANO",15,4.5,"0",0,4.5,15,1.5,15,7.5,9,13.5,"OLP/01961/2025",null,"Borská 5","Zákupy","47123",{"$f":"_xlfn.XLOOKUP(C195,#REF!,#REF!,\"Nenalezeno!\")","v":{"$error":"#REF!"}},"starosta","00261114","CZ00261114","19-5721421/0100","120 448 Kč","72 269,00 Kč",{"$f":"Slovy(O195)","v":"sedmdesát dvatisíce dvěstě šedesát devět"},"100%","60,00%","40,00%",null,null,null,80]
[95,"Město","Zákupy","Doplnění ochranných prostředků pro likvidaci lesních požárů","U5 - doplnění věcných prostředků požární ochrany",5,"Přilba DRÄEGER HPS 3500 - 4 ks, Rukavice Rescue FORESTA - 4 páry, Nápis - nášivka - 4 ks, Komplet zásahový ochranný jednovrstvý FR2\nFireFalcon CLASSIC - 4 ks","Přilba DRÄEGER HPS 3500 - 4 ks, Rukavice Rescue FORESTA - 4 páry, Nápis - nášivka - 4 ks, Komplet zásahový ochranný jednovrstvý FR2\nFireFalcon CLASSIC - 4 ks",71100,42660,60,28440,40,71100,42660,60,"ANO",15,4.5,"0",0,4.5,15,1.5,15,7.5,9,13.5,"OLP/01963/2025",null,"Borská 5","Zákupy","47123",{"$f":"_xlfn.XLOOKUP(C196,#REF!,#REF!,\"Nenalezeno!\")","v":{"$error":"#REF!"}},"starosta","00261114","CZ00261114","19-5721421/0100","71 100 Kč","42 660,00 Kč",{"$f":"Slovy(O196)","v":"čtyřicet dvatisíce šestset šedesát"},"100%","60,00%","40,00%",null,null,null,157]
[101,"Městys","Zdislava","Vybavení JSDH Zdislava ochrannými prostředky","Dovybavení JSDH Zdislava chybějícími ochrannými prostředky",2,"Přilba MSA Gallet F2XR+ reflexní polep - 4 ks, Rukavice zásahové Angel Easy - 4 ks, Zásahový kompletní oblek BUSHFIRE 2023,s nápisem\nHASIČI - 4ks","Přilba MSA Gallet F2XR+ reflexní polep - 4 ks, Rukavice zásahové Angel Easy - 4 ks, Zásahový kompletní oblek BUSHFIRE 2023,s nápisem\nHASIČI - 4ks",90511,54306,60,36205,40,90511,54306,60,"ANO",7,2.1,"0",0,2.1,15,1.5,15,7.5,9,11.1,"OLP/01966/2025",null,"3","Zdislava","46353",{"$f":"_xlfn.XLOOKUP(C197,#REF!,#REF!,\"Nenalezeno!\")","v":{"$error":"#REF!"}},"starosta","00481491",null,"17529461/0100","90 511 Kč","54 306,00 Kč",{"$f":"Slovy(O197)","v":"padesát čtyřitisíce třista šest"},"100%","60,00%","40,00%",null,null,null,145]
[40,"Obec","Zlatá Olešnice","Pořízení ochranných prostředků pro JPOIII/1 Zlatá Olešnice","U2) Pořízení, obnova, doplnění a opravy v závorce vyjmenovaných osobních ochranných prostředků požární ochrany",2,"Zásahové rukavice pro technické zásahy - 4 ks, Zásahové rukavice pro hašení požárů - 4 ks, Světlo na přilbu na technické zásahy - 4 ks, Zásahová obuv s ochranou proti prořezu - 2 ks","Zásahové rukavice pro technické zásahy - 4 ks, Zásahové rukavice pro hašení požárů - 4 ks, Světlo na přilbu na technické zásahy - 4 ks, Zásahová obuv s ochranou proti prořezu - 2 ks",37644,22586,60,15058,40,37644,22586,60,"ANO",15,4.5,"0",0,4.5,15,1.5,15,7.5,9,13.5,"OLP/01913/2025",null,"172","Zlatá Olešnice","46847",{"$f":"_xlfn.XLOOKUP(C198,#REF!,#REF!,\"Nenalezeno!\")","v":{"$error":"#REF!"}},"starosta","00262625","CZ00262625","213838704/0300","37 644 Kč","22 586,00 Kč",{"$f":"Slovy(O198)","v":"dvacet dvatisíce pětset osmdesát šest"},"100%","60,00%","40,00%",null,null,null,181]
[97,"Obec","Zlatá Olešnice","Pořízení věcných prostředků pro JPOIII/1 Zlatá Olešnice","\nU6c) Pořízení věcných prostředků požární ochrany mimo prostředků uvedených v U5) a U6).","6c","Odolný tablet 128 GB pro GINA software - 1 kus, Napájecí adaptér s rychlonabíjením - 1 kus, Software GINA Tablet - 1 kus","Odolný tablet 128 GB pro GINA software - 1 kus, Napájecí adaptér s rychlonabíjením - 1 kus, Software GINA Tablet - 1 kus",41715,25029,60,16686,40,41715,25029,60,"ANO",15,4.5,"0",0,4.5,15,1.5,7,3.5,5,9.5,"OLP/01964/2025",null,"172","Zlatá Olešnice","46847",{"$f":"_xlfn.XLOOKUP(C199,#REF!,#REF!,\"Nenalezeno!\")","v":{"$error":"#REF!"}},"starosta","00262625","CZ00262625","213838704/0300","41 715 Kč","25 029,00 Kč",{"$f":"Slovy(O199)","v":"dvacet pěttisíc dvacet devět"},"100%","60,00%","40,00%",null,null,null,120]
[99,"Obec","Zlatá Olešnice","Nákup motorového kalového čerpadla","Pořízení věcných prostředků PO pro čerpání vody zejména v souvislosti se záplavami a povodněmi",4,"motorové kalové čerpadlo s příslušenstvím - 1 sada, savice B75 s koncovkami 2,5m - 1 ks, zátka k čerpadlu - 1 kus","motorové kalové čerpadlo s příslušenstvím - 1 sada, savice B75 s koncovkami 2,5m - 1 ks, zátka k čerpadlu - 1 kus",26701,18691,{"$f":"ROUND(J200/I200*100,2)","v":70},8010,{"$f":"ROUND(L200/I200*100,2)","v":30},26701,18691,{"$f":"ROUND(O200/N200*100,2)","v":70},"ANO",15,{"$f":"R200*0.3","v":4.5},"0",{"$f":"T200*0.1","v":0},{"$f":"S200+U200","v":4.5},15,{"$f":"W200*0.1","v":1.5},15,{"$f":"Y200*0.5","v":7.5},{"$f":"X200+Z200","v":9},{"$f":"V200+AA200","v":13.5},"OLP/01965/2025",null,"172","Zlatá Olešnice","46847",{"$f":"_xlfn.XLOOKUP(C200,#REF!,#REF!,\"Nenalezeno!\")","v":{"$error":"#REF!"}},"starosta","00262625","CZ00262625","213838704/0300","26 701 Kč","18 691,00 Kč",{"$f":"Slovy(O200)","v":"osmnáct tisíc šestset devadesát jedna"},"100%","70,00%","30,00%",null,null,null,113]
[202,"Město","ŽANDOV","U2 - Nákup ochranných prostředků požární ochrany","Z největší části se jedná o pořízení (doplnění) poškozených ochranných prostředků PO A vybavení pro nové členy naší jednotky",2,"přilba DRAEGER HPS 7000 luminiscenční, zlatý štít, vč. zátylníku NOMEX, bez polepu -1 ks , přilba DRAEGER HPS 7000 H2 signální žlutá, zlatý\nštít, vč. zátylníku NOMEX 1 ks, kabát zásahový ochranný jednovrstvý FIRESNAKE\nFR2 - 1 ks, komplet zásahový FIREREX Plus FR3 2 ks, chránič kolen vyjímatelný -pár 130×200 1 ks, nášivka s vlastním motivem na zásahové kabáty \nGoodPRO - 2 ks, samolepky reflexní na přilbu DRAEGER HPS 7000 s\npotiskem 2 ks, držák svítilny PELI™ XP a ADALIT L-5 pro přilbu\nDRAEGER HPS 7000 -  2 ks","přilba DRAEGER HPS 7000 luminiscenční, zlatý štít, vč. zátylníku NOMEX, bez polepu -1 ks , přilba DRAEGER HPS 7000 H2 signální žlutá, zlatý\nštít, vč. zátylníku NOMEX 1 ks, kabát zásahový ochranný jednovrstvý FIRESNAKE\nFR2 - 1 ks, komplet zásahový FIREREX Plus FR3 2 ks, chránič kolen vyjímatelný -pár 130×200 1 ks, nášivka s vlastním motivem na zásahové kabáty \nGoodPRO - 2 ks, samolepky reflexní na přilbu DRAEGER HPS 7000 s\npotiskem 2 ks, držák svítilny PELI™ XP a ADALIT L-5 pro přilbu\nDRAEGER HPS 7000 -  2 ks",78984,47390,60,31594,40,78984,47390,60,"ANO",15,4.5,"0",0,4.5,15,1.5,15,7.5,9,13.5,"OLP/02054/2025",null,"Náměstí 82","Žandov","47107",{"$f":"_xlfn.XLOOKUP(C201,#REF!,#REF!,\"Nenalezeno!\")","v":{"$error":"#REF!"}},"starosta","00261131","CZ00261131","94-6011421/0710","78 984 Kč","47 390,00 Kč",{"$f":"Slovy(O201)","v":"čtyřicet sedmtisíc třista devadesát"},"100%","60,00%","40,00%",null,null,null,513]
[207,"Město","ŽANDOV","U6c – Pořízení věcných prostředků požární ochrany ","Důvodem žádosti je doplnění věcných prostředků požární ochrany a technického vybavení hasičské zbrojnice","6b","CONTINENTAL CONTI HYBRID HD5 315/80 R 22.5\n156/150L 4 ks, CONTINENTAL CONTI HYBRID HS5 585/65 R 22.5\n164K - 2 ks","CONTINENTAL CONTI HYBRID HD5 315/80 R 22.5\n156/150L 4 ks, CONTINENTAL CONTI HYBRID HS5 585/65 R 22.5\n164K - 2 ks",93438,56062,60,37376,40,93438,56062,60,"ANO",15,4.5,"0",0,4.5,15,1.5,7,3.5,5,9.5,"OLP/02058/2025",null,"Náměstí 82","Žandov","47107",{"$f":"_xlfn.XLOOKUP(C202,#REF!,#REF!,\"Nenalezeno!\")","v":{"$error":"#REF!"}},"starosta","00261131","CZ00261131","94-6011421/0710","93 438 Kč","56 062,00 Kč",{"$f":"Slovy(O202)","v":"padesát šesttisíc šedesát dva"},"100%","60,00%","40,00%",null,null,null,112]
[209,"Město","ŽANDOV","U6e - Doplnění věcných prostředků požární ochrany a technického vybavení hasičské zbrojnice ","Důvodem žádosti je doplnění věcných prostředků požární ochrany a technického vybavení hasičské zbrojnice","6e","vysoušecí skříň ROS 04 TURBO - 1 ks, vysavač hasičský Rössle HYDRA-BOY - 1 ks., Benzínová vyvětvovací pila STIHL HT 105 - 1 ks.","vysoušecí skříň ROS 04 TURBO - 1 ks, vysavač hasičský Rössle HYDRA-BOY - 1 ks., Benzínová vyvětvovací pila STIHL HT 105 - 1 ks.",111577,66946,60,44631,40,111577,66946,60,"ANO",15,4.5,"0",0,4.5,15,1.5,0,0,1.5,6,"OLP/02059/2025",null,"Náměstí 82","Žandov","47107",{"$f":"_xlfn.XLOOKUP(C203,#REF!,#REF!,\"Nenalezeno!\")","v":{"$error":"#REF!"}},"starosta","00261131","CZ00261131","94-6011421/0710","111 577 Kč","66 946,00 Kč",{"$f":"Slovy(O203)","v":"šedesát šesttisíc devětset čtyřicet šest"},"100%","60,00%","40,00%",null,null,null,127]
[108,"Město","Železný Brod","Pořízení ochranných prostředků","Pořízení, obnova, doplnění osobních ochranných prostředků pro zlepšení bezpečnosti zasahujících členů",2,"Zásahový oblek vícevrstvý - 8 ks, Zásahový oblek jednovrstvý - 1 ks, Zásahová obuv - 4 ks, Zásahová kukla - 4 ks, Zásahová přilba - 1 ks","Zásahový oblek vícevrstvý - 8 ks, Zásahový oblek jednovrstvý - 1 ks, Zásahová obuv - 4 ks, Zásahová kukla - 4 ks, Zásahová přilba - 1 ks",244500,146700,60,97800,40,244500,146700,60,"ANO",15,4.5,"0",0,4.5,15,1.5,15,7.5,9,13.5,"OLP/01972/2025",null,"náměstí 3. května 1","Železný Brod","46822",{"$f":"_xlfn.XLOOKUP(C204,#REF!,#REF!,\"Nenalezeno!\")","v":{"$error":"#REF!"}},"starosta","00262633","CZ00262633","963249319/0800","244 500 Kč","146 700,00 Kč",{"$f":"Slovy(O204)","v":"jednosto čtyřicet šesttisíc sedmset"},"100%","60,00%","40,00%",null,null,null,136]
[null,null,null,null,null,null,null,null,null,{"$f":"SUM(J8:J204)","v":15653654},null,null,null,null,{"$f":"SUM(O8:O204)","v":15576841}]

{"sheet":"nepodpořené","index":1,"n_rows":44,"n_cols":24,"rows_kept":44,"cut":false,"hidden":false,"merged":[[1,19,2,19],[1,20,2,20],[1,21,2,21],[1,22,2,22],[1,23,2,23],[1,18,2,18],[1,0,2,0],[1,1,2,1],[1,2,2,2],[1,3,2,3],[1,4,2,4],[1,5,2,5],[1,6,2,6],[1,7,2,7],[1,8,2,8],[1,9,1,10],[1,11,1,12]]}
["Projekty navržené k vyřazení z důvodu nesplnění podmínek programu"]
["P. č. ","Obec/město\n","Žadatel","Název projektu","Popis projektu\n(účel projektu)","č. účelu","Výstupy projektu","Admin. soulad (projekt je v souladu s účelem a podmínkami programu, je způsobilý pro další hodnocení) ANO/NE","Celk.\nvýdaje projektu Kč","Požadovaná výše dotace",null,"Vlastní zdroje příjemce",null,"IČ","DIČ","Ulice","Město","PSČ","HK_Celkové_výdaje_projektu_LK_text","HK_LK_Dotace_ slovy","HK_Procento LK dotace","IČ","Kontrola délky textu","Kontrola délky parametrů"]
[null,null,null,null,null,null,null,null,null,"Kč","%","Kč","%"]
[257,"Město","Cvikov","Město Cvikov pro JSDH Cvikov 2 ks nových norných stěn ptro zachycení nebezpečných látek na vodní hladině a tekoucí vodě.\n","U3) Město Cvikov pro JSDH Cvikov 2 ks nových norných stěn RV 5m pro zachycení nebezpečných látek na vodní hladině a tekoucí vodě. Jedná se o výměnu zařízení, které již dosloužilo.",3,"norná stěna RV 5m - 2 KS","NE\nbez časového razítka, chybí povinná příloha (podrobný popis projektu)",33568,23496,{"$f":"ROUND(J4/I4*100,2)","v":70},{"$f":"I4-J4","v":10072},{"$f":"ROUND(L4/I4*100,2)","v":30},"00260410","CZ00260410","Náměstí Osvobození 63","Cvikov","47154",{"$f":"TEXT(I4,\"# ##0,00 Kč\")","v":"33 568,00 Kč"},{"$f":"TEXT(J4,\"# ##0 Kč\")","v":"23 496 Kč"},{"$f":"TEXT(M4,\"0,00\")& \"%\"","v":"30,00%"},"00260410",{"$f":"LEN(E4)","v":179},{"$f":"LEN(G4)","v":24}]
[255,"Město","Cvikov","Město Cvikov pořizuje pro JSDH Cvikov řetězovou pilu Husqvarna 372XP. \n","Město Cvikov pořižuje pro JSDH Cvikov řetězovou pilu Husqvarna 372XP","6c","Řetězová pila Husqvarna 372XP - 1 ks","NE\nbez časového razítka, chybí povinná příloha (podrobný popis projektu)",27499,16499,60,11000,40,"00260410","CZ00260410","Náměstí Osvobození 63","Cvikov","47154","27 499,00 Kč","16 499 Kč","40,00%","00260410",{"$f":"LEN(E5)","v":68},{"$f":"LEN(G5)","v":36}]
[256,"Město","Cvikov","Nákup 8ks zásahových ochranných jednovrstvých kompletů FR2 FireSnake-classic a 8 ks nášivek s vlastním motivem na zásahové kabáty GoodPRO \n","U2) Město Cvikov požizuje pro členy JSDH Cvikov zásahové komplety s nášivkami v rámci obměny vybavení jednotky.\nNENÍ ČASOVÉ RAZÍTKO A PODROBNÝ POSIS",2,"zásahový ochranný jednovrstvý komplet FR2 FireSnake-classic - 8 KS, reflexní nášivka s vlastním motivem na zásahové\nkabáty GoodPRO - 8 KS","NE\nbez časového razítka, chybí povinná příloha (podrobný popis projektu)",79280,47568,60,31712,40,"00260410","CZ00260410","Náměstí Osvobození 63","Cvikov","47154","79 280,00 Kč","47 568 Kč","40,00%","00260410",148,137]
[258,"Město","Cvikov","Město Cvikov v rámci vybavení JSDH Cvikov pořizuje 4 ks přenosných digitálních radiostanic Motorola DP2400E VHF  s externím mikrofonem/reproduktorem pro RDST\n","U6c) Město Cvikov v rámci vybavení JSDH Cvikov pořizuje 4 ks přenosných digitálních radiostanic Motorola DP2400E VHF s externím mikrofonem/reproduktorem pro RDST","6c","přenosná dig. radiostanice Motorola DP2400E VHF - 4 ks, mikrofon/reproduktor pro radiostanice DP2400E - 4 ks","NE\nbez časového razítka, chybí povinná příloha (podrobný popis projektu)",69504,41702,60,27802,40,"00260410","CZ00260410","Náměstí Osvobození 63","Cvikov","47154","69 504,00 Kč","41 702 Kč","40,00%","00260410",161,108]
[88,"Město","Česká Lípa","\"Nákup věcných prostředků PO - JSDHO Stará Lípa\"","Projekt bude využit na nákup a doplnění ochranných prostředků požární ochrany, který je nezbytně nutný pořídit z důvodu předurčenosti jednotky v zařazení JPO II/I, dle poplachových plánů LK","6c","Rescue hood PSS - záchranná vyváděcí kukla - 2 ks, Maska FPS 7730 M2-P-PC-EPDM, kandahár S-fix uni - 4 ks, Láhev kompozit 6,8/300bar, ventil Dräger EFV+potah\nna láhev L65B - 2 ks, Plicní automatika PSS-P (přetlak, krátká hadice) - 1 ks, Držák plicní automatiky pro AirBoss s fix upínáním - 1 ks","NE\nVyřazeno na žádost žadatele (více žádostí v účelu U6 (max 2 žádosti)",102676,51000,49.67,51676,50.33,"00260428","CZ00260428","náměstí T. G. Masaryka 1/1","Česká Lípa","47001","102 676,00 Kč","51 000 Kč","50,33%",260428,189,294]
[91,"Město","Česká Lípa","\"Pořízení, obnova věcných prostředků PO pro JSDHO Stará Lípa\"","Projekt bude využit na doplnění věcných prostředků požární ochrany, ochranných prostředků z důvodu předurčenosti jednotky v zařazení JPO II/I, dle poplachových plánů LK.","6c","SUNIT IV FK - lehký protichemický oblek - 2 ks, Hlásič - detektor plynů GasAlert MicroClip X3 - 4\nplyny - 1 ks, Ruční radiostanice MOTOROLA DP 2600e s externím\nmikrofonem a vozidlovou nabíječkou MOTOROLA pro\nDP 2000e (12-24V) - 4 ks","NE\nVyřazeno na žádost žadatele (více žádostí v účelu U6 (max 2 žádosti)",141290,70000,49.54,71290,50.46,"00260428","CZ00260428","náměstí T. G. Masaryka 1/1","Česká Lípa","47001","141 290,00 Kč","70 000 Kč","50,46%",260428,169,232]
[173,"Obec","Dalešice","Obnova osobních ochranných prostředků \n","U2) Pořízení, obnova, doplnění a opravy v závorce vyjmenovaných osobních ochranných prostředků požární ochrany (jednovrstvé a vícevrstvé zásahové obleky, zásahové boty, zásahové rukavice, zásahové přilby, polohovací opasky pro hasiče ......)",2,"jednovrstvé zásahové obleky - 4 ks, zásahové boty - 4 ks, zásahové přilby - 4 ks","NE\nNeplatný podpis",98400,49100,49.9,49300,50.1,"43256201",null,"67","Dalešice","46802","98 400,00 Kč","49 100 Kč","50,10%","43256201",241,80]
[228,"Město","Doksy","1.1 Podpora jednotek požární ochrany obcí Libereckého kraje","U5 Pořízení, obnova, doplnění a opravy věcných prostředků požární ochrany pro zásahy v souvislosti s likvidací lesních požárů",5,"přilba pro hasiče F2XR pro lesní požáry - 8 ks","NE\nna 1 organizovaný výjezd lze pořídit pouze 4 ks příleb; po úpravě výše dotace není minimálně 15000 Kč",46848,23450,50.06,23398,49.94,"00260444","CZ00260444","náměstí Republiky 193","Doksy","47201","46 848,00 Kč","23 450 Kč","49,94%","00260444",125,46]
[254,"Město","Hejnice","Oprava povrchu podlah garážových stání hasičské zbrojnice Hejnice\n","Účelem projektu je rekonstrukce povrchu podlah garážových stání pro výjezdovou techniku JSDH Hejnice v objektu čp. 593, jenž bude realizována jako Protiskluzová epoxid-křemičitá podlahová konstrukce (třívrstvá), vč. obvodového soklu","6f","rekonstruovaná podlaha hasičárny - 153 m2 \n","NE\nmax výše dotace 60%",160000,112000,70,48000,30,"00262803","CZ00262803","Nádražní 521","Hejnice","46362","160 000,00 Kč","112 000 Kč","30,00%","00262803",232,43]
[181,"Město","Hodkovice nad Mohelkou","Věcné prostředky požární ochrany","Zvýšení akceschopnosti jednotky sboru dobrovolných hasičů ","6c","detektor pohybu hasiče - 2 ks, vysavač na vodu Rosle - 1 ks, Led modul X - Flare - 1 ks","NE\nvysavač nesplňuje minimálníprůtok 22000 lúhod pro účel U5), pro účel U6c) nelze použít výši dotace 70 %",48668,34067,70,14601,30,"00262820","CZ00262820","nám. T. G. Masaryka 1","Hodkovice nad Mohelkou","46342","48 668,00 Kč","34 067 Kč","30,00%","00262820",58,87]
[264,"Město","Jilemnice","Doplnění  věcných prostředků - lahve\n","U3 - Doplnění věcných prostředků - lahve ",3,"láhev tlaková kompozitní carbon 6,8 l/30 Mpa DRAEGER - 4 ks","NE\nbez časového razítka, chybí povinná příloha (podrobný popis projektu)",72504,43000,59.31,29504,40.69,"00275808","CZ00275808","Masarykovo náměstí 82","Jilemnice","51401","72 504,00 Kč","43 000 Kč","40,69%","00275808",41,59]
[265,"Město","Jilemnice","Doplnění a obnova věcných prostředků - lesní požáry\n","U5-Doplnění a obnova věcných prostředků - lesní požáry",5,"Program D25 PROLINE a sbatohem BAG 4H - 1 ks, Vazák hadice 1,6 m - 6 ks, Obuv HAIX Fire flash 2,0 - 4 ks","NE\nbez časového razítka, chybí povinná příloha (podrobný popis projektu)",67526,40000,59.24,27526,40.76,"00275808","CZ00275808","Masarykovo náměstí 82","Jilemnice","51401","67 526,00 Kč","40 000 Kč","40,76%","00275808",54,104]
[266,"Město","Jilemnice","Obnova ochranných prostředků \n","U2 - Obnova ochranných prostředků ",2,"Zásahový oblek - 4 ks, Zásahová přilba - 4 ks, Svítilna integrovaná - 4 ks","NE\nbez časového razítka, chybí povinná příloha (podrobný popis projektu)",189736,94860,50,94876,50,"00275808","CZ00275808","Masarykovo náměstí 82","Jilemnice","51401","189 736,00 Kč","94 860 Kč","50,00%","00275808",34,74]
[267,"Město","Jilemnice","Pořízení cisternové automobilové stříkačky \n","U6 - Pořízení cisternové automobilové stříkačky","6d","Pořízení cisternové automobilové stříkačky - 1 ks","NE\nbez časového razítka, chybí povinná příloha (podrobný popis projektu)",12402500,500000,4.03,11902500,95.97,"00275808","CZ00275808","Masarykovo náměstí 82","Jilemnice","51401","12 402 500,00 Kč","500 000 Kč","95,97%","00275808",47,49]
[110,"Obec","Koberovy","U6c) Doplnění a obnova věcných prostředků PO\n","Nové požární hadice poslouží k výměně a nahrazení hadic, které vykazují opotřebení a hrozí jejich destrukce při zásahu. Nová pěnotvorná proudnice nahradí poškozenou proudnici. Kombinovaná proudnice nahradí poškozenou proudnici při zásahu.","6c","Zásahová hadice B - 7 ks, Zásahová hadice C - 4 ks, Proudnice pěnotvorná M4 TKW bez uzávěru - 1 ks, Proudnice kombinovaná Select Flow RB 101 EN - 1 ks","\nNE\nNeplatný podpis",59125,35425,59.92,23700,40.08,"00262404",null,"102","Koberovy","46822","59 125,00 Kč","35 425 Kč","40,08%","00262404",238,150]
[117,"Obec","Koberovy","U2) pořízení, obnova a doplnění ochranných prostředků PO \n","Nová zásahová obuv nahradí poškozené. Zásahové přilby včetně osvětlení nahradí přilby, kterým končí doba použitelnosti. Záchranářské přilby doplní výstroj jednotky při technických zásazích",2,"Zásahová obuv FIRE HERO 3 - 1 ks, Přilba MSA Gallet F1XF Gold+ - 3 ks, Svítilna XP LED k přilbě Gallet - 3 ks, Přilba MSA Gallet F2XR pro technické zásahy - 2 ks","NE\nNeplatný podpis",64498,38569,59.8,25929,40.200000000000003,"00262404",null,"102","Koberovy","46822","64 498,00 Kč","38 569 Kč","40,20%","00262404",188,161]
[35,"Obec","Kravaře","U3 - Doplnění vybavení s ohledem na předurčenost","Účelem projektu je pořízení minimálního vybavení pro detekci a zahrazení nebezpečných látek v souvislosti se zásahy u dopravních nehod.","6c","Multidetektor - explozimetr - 1 ks, Kanálová rychloucpávka - 1 ks, Průtokový kartáč - 1 ks","NE\nvíce žádostí v účelu U6\n(max 2 žádosti)\nvyřazeno na žádost žadatele ",41600,24960,60,16640,40,260657,null,"náměstí 166","Kravaře",null,"41 600,00 Kč","24 960 Kč","40,00%","00260657",135,90]
[185,"Obec","Líšný","Dopravní automobil pro JSDHO Líšný\n","Obec je úspěšným žadatelem v integrovaném regionálním operačním programu na pořízení dopravního automobilu pro JSDHO Líšný. Účelem je posílení odolnosti, vybavenosti a připravenosti JSDHO Líšný pro výkon služby","6d","Dopravní automobil - 1 ks","NE\nneplatný podpis",181258,90629,50,90629,50,"00673226",null,"60","Líšný","46822","181 258,00 Kč","90 629 Kč","50,00%","00673226",210,25]
[161,"Obec","Maršovice","U 2) - Nákup OOP pro JSDHo Maršovice \n","Nákup přispěje k větší bezpečnosti a ochraně zasahujících členů JPO. Jedná se o základní ochranné prostředky s výraznou potřebou časté obnovy z důvodů poměrně krátké doby životnosti",2,"vícevrstvý zásahový oblek GoodPro - 1 ks, ochraná kukla dvouvrstvá -- 4 ks ","NE\nNeplatný podpis",35154,17577,50,17577,50,"00262471",null,"52","Maršovice","46801","35 154,00 Kč","17 577 Kč","50,00%","00262471",181,75]
[190,"Obec","Maršovice","U 6f) Úprava interiéru a oprava elektroinstalace pro JSDHo Maršovice \n","Rekonstrukci interiéru hasičské zbrojnice, především pak elektrických rozvodů pro zlepšení zázemí a práce členů jednotky sboru dobrovolných hasičů obce Maršovice.","6e","Rekonstrukce elektrorozvodů v hasičské zbrojnici - 1 ks, Staveb materiál - sádrokarton - 1 ks","NE\nneplatný podpis",178700,89350,50,89350,50,"00262471",null,"52","Maršovice","46801","178 700,00 Kč","89 350 Kč","50,00%","00262471",162,93]
[193,"Město","Mimoň","Podpora JSDH Mimoň \n","Zvýšení akceschopnosti a bezpečnosti jednotky, pořízení, obnova, doplnění a opravy věcných prostředků požární ochrany U6c","6c","dýchací přístroj DRAEGER PSS 4000 - 2 ks, obal na láhev - 4 ks, brašna na masku - 2 ks,tlaková láhev kompozitní carbon 6,8L/300 Mpa - 2 ks  ","NE\nBez časového razítka",146644,73322,50,73322,50,"00260746","CZ00260746","Mírová 120","Mimoň","47124","146 644,00 Kč","73 322 Kč","50,00%","00260746",121,140]
[9,"Obec","Mníšek","U5 - hasiči Mníšek - přilby","Velkou část katastru obce Mníšek tvoří lesy,často v nepřístup. a skalnatém terénu. Lehká zásahová přilba při událostech v lesním prostředí je výhodou. Přilby budou využity i při technických zásazích, které tvoří většinu výjezdů jednotky SDH Mníšek",5,"přilba - 5 ks","NE\npořídit lze pouze 4 ks příleb; po úpravě výše dotace není minimálně 15000 Kč",25404,15000,59.05,10404,40.950000000000003,"00263001","CZ00263001","Oldřichovská 185","Mníšek","46331","25 404,00 Kč","15 000 Kč","40,95%","00263001",247,13]
[221,"Obec","Olešnice","W6a ","Vybavení jednotky PO technickými prostředky","6a","TP-Výstrojní a ochranné pomůcky - 15 ks, TP - pro ohřev a výdej stravy - 1 ks, TP - ženijní - 14 ks, TP - elektro -  6ks, TP - pro stavbu a provoz naf. Stanu - 14 ks","NE\nžádost nebyla odeslána \"DS\"",82270,57589,70,24681,30,"00275964",null,"63","Olešnice","51101","82 270,00 Kč","57 589 Kč","30,00%","00275964",43,165]
[223,"Obec","Olešnice","W6f ","Dovybavení prostor objektu hasičské zbrojnice","6f","vybavení kanceláře velitele - 1 soubor, vybavení šatny - 1 soubor, vysoušecí skříň - 1 ks, pračka 1 ks.","NE\nžádost nebyla odeslána \"DS\"",453629,272177,60,181452,40,"00275964",null,"63","Olešnice","51101","453 629,00 Kč","272 177 Kč","40,00%","00275964",45,103]
[1,"Obec","Paseky nad Jizerou ","Pořízení věcných prostředků požární ochrany","Účelem projektu je pořízení nových věcných prostředků požární ochrany pro výjezdní jednotku obce Paseky nad Jizerou, která působí především v místních horských terénech. Pořízením prostředků dojde ke zvýšení akceschopnosti jednotky","6c","Hliníkový žebřík 3x14 - 1 ks, košová nosítka - 1 ks, kapesní nože - 5 ks","NE\nhliníkový žebřík 3x14 není certifikovaný VPPO; po úpravě výše dotace není minimálně 15000 Kč",43600,21800,50,21800,50,"00580791","CZ00580791","242","Paseky nad Jizerou","51247","43 600,00 Kč","21 800 Kč","50,00%","00580791",231,72]
[268,"Obec","Příkrý","Oprava hasičské zbrojnice v Příkrém \n","V rámci projektu bude kompletně opravena hasičská zbrojnice v Příkrém. Provedena bude výměna oken, dveří, elektroinstalace, střešní krytina, okapy, podlahy","6f","hasičská zbrojnice -- 1 ks","NE\nbez časového razítka, chybí povinná příloha (podrobný popis projektu)",1000000,500000,50,500000,50,"00276022",null,"70","Příkrý","51301","1 000 000,00 Kč","500 000 Kč","50,00%","00276022",155,26]
[242,"Obec","Sloup v Čechách","Digitální radiostanice\n","Digitální radiostanice ","6a","Digitální radiostanice - 1 ks","NE\nchybí povinná příloha (podrobný popis projektu)",45217,31653,70,13564,30,"00525677","CZ00525677","Benešova 280","Sloup v Čechách","47152","45 217,00 Kč","31 653 Kč","30,00%","00525677",23,29]
[203,"Obec","Tatobity","Pořízení dýchací techniky \n","U6a - pořízení dýchací techniky pro jednotku JPO V Tatobity, pro čtyři členy jednotky, kteří mají již lékařskou prohlídku. Jednotka je předurčena pro práci CO.","6a","Nosič PP 4000 - 4 ks, Držák plicní automatiky - 4 ks, Plicní automatika PSS-P(přetlak,krátká hadice) - 4 ks, Lahev ocel 6L/300Extra 5/Drager EFV M18x1,5 - 6 ks, Maska FPS 7730 M2-P-PC-WPDM, kandahar S-fix, uni - 4 ks","NE\nneplatný podpis",184590,129213,70,55377,30,"00276197","CZ00276197","85","Tatobity","51253","184 590,00 Kč","129 213 Kč","30,00%","00276197",159,216]
[208,"Obec","Tatobity","Obnova ochranných prostředků\n","U2 - jednotka potřebuje obnovu a dovybavení osobních ochranných prostředků",2,"Přilba HPS 3500 sign. žlutá + brýle - 4 ks, Přilba MSA Gallet F 1 XF Basic + fluor. - 2 ks, Brýle ochranné k přilbě - 2 ks, Svítilna k přilbě - 2 ks, Deska páteřní s popruhem - 1ks, Reflektor na stativu led - 2 ks","NE\nneplatný podpis",58469,35081,60,23388,40,"00276197","CZ00276197","85","Tatobity","51253","58 469,00 Kč","35 081 Kč","40,00%","00276197",74,213]
[192,"Obec","Velký Valtinov","Dovybavení JPO V 2025 \n","V roce 2025 za finanční podpory Libereckého kraje došlo k částečné modernizaci vybavení JPO. S ohledem na bezpečnost dobrovolných hasičů je potřeba dovybavit moderními bezpečnostními prvky a oděvy i zbylé členy ",2,"Kalhoty zásahové třívrstvé DEVA PATRIOT ELITE CZ - 2 ks, Obuv HAIX Fire Flash 2.0 - 2 ks, Rukavice zásahové KNIT NCG 935 - 6 ks, Přilba GALLET F1 XF FIRE+ - 2 ks, Kabát zásahový DEVA PATRIOT - 2 ks, Pláštěnka FIREMAN - 3 ks","Žádost nebyla odeslána přes \"DS\"",82078,41039,50,41039,50,"00672891","CZ00672891","Velký Valtinov 46","Velký Valtinov","47125","82 078,00 Kč","41 039 Kč","50,00%","00672891",211,223]
[191,"Obec","Višňová","U2 Nákup osobních ochranných prostředků PO\n","Pořízení osobních ochranných prostředků PO - zásahová obuv, zásahový oblek, zásahová přilba se svítilnou",2,"Zásahová obuv - 4 ks, Zásahový oblek - 2 ks, Zásahová přilba se svítilnou - 2 ks","NE\nchybí povinná příloha (podrobný popis projektu)",112000,67200,60,44800,40,"00263265","CZ00263265","184","Višňová","46401","112 000,00 Kč","67 200 Kč","40,00%","00263265",104,80]
[197,"Obec","Višňová","U4 Pořízení věcných prostředků PO\n","Pořízení, obnova, doplnění a opravy věcných prostředků požární ochrany pro čerpání vody zejména v souvislosti se záplavami a povodněmi",4,"Kalové čerpadlo s příslušenstvím - 1 ks","NE\nchybí  povinná příloha (podrobný popis projektu)",116000,81200,70,34800,30,"00263265","CZ00263265","184","Višňová","46401","116 000,00 Kč","81 200 Kč","30,00%","00263265",134,39]
[198,"Obec","Višňová","U6c Pořízení věcných prostředků PO \n","Pořízení věcných prostředků PO - dobíječ na radiostanice, kufry na materiál do CAS, zásahová trika pro jednotku PO Višňová","6c","Zásahové triko - 30 ks, Kufr na materiál do CAS - 5 ks, Dobíječ na radiostanice - 1 ks","NE\nchybí povinná příloha (podrobný popis projektu)",51500,30900,60,20600,40,"00263265","CZ00263265","184","Višňová","46401","51 500,00 Kč","30 900 Kč","40,00%","00263265",122,86]
[199,"Obec","Višňová","U6b Oprava vozidla CAS\n","Oprava CAS jednotky PO Višňová - oprava has.zařízení Cobra, oprava dveří, potažení sedadel, podmítací řetězy, výstražné světelné zařízení, poplepy","6b","Oprava CAS - 1 ks","NE\nchybí povinná příloha (podrobný popis projektu)",300000,180000,60,120000,40,"00263265","CZ00263265","184","Višňová","46401","300 000,00 Kč","180 000 Kč","40,00%","00263265",146,17]
[251,"Obec","Vítkovice","Nákup věcných prostředků.\n","Dovybavení jednotky JSDHO věcnými prostředky. Pláštěnkami pro všechny členy výjezdové jednotky a podmetacími řetězy pro zásahové vozidlo. Účel U6)písm.c).","6c","Pláštěnka - 18 ks, Podmetací řetězy včetně dopravy a montáže - 1 sada","NE\nchybí povinná příloha (podrobný popis projektu)",126020,75600,59.99,50420,40.01,"00276260","CZ00276260","243","Vítkovice","51238","126 020,00 Kč","75 600 Kč","40,01%","00276278",154,69]
[259,"Obec","Všeň","Oprava hasičárny\n","U 6f Závěrečná etapa oprav hasičárny","6f","Oprava střechy - 1 soubor, Garážová vrata - 1 ks, Elektroinstalace - 1 soubor, Zednické práce - 1 soubor, Venkovní úpravy - 1 soubor","NE\nžádost není podepsaná, max výše dotace 500 000 Kč",1799979,1079979,60,720000,40,"00276278","CZ00276278","Všeň 10","Všeň","51265","1 799 979,00 Kč","1 079 979 Kč","40,00%","00276278",36,132]
[243,"Obec","Všeň","Věcné prostředky JSDHO Všeň \n","Pořízení nových věcných prostředků - náhrada za dosluhující","6c","Kapesní vysílačka HP 505 včetně baterie, antény nabíjecí stanice - 2 ks, svítilna na zásahovou přilbu - 5 ks, vysoušeč obuvi - 1 ks, zásahová obuv - 1 ks","NE\nneplatný podpis",84000,50400,60,33600,40,"00276278","CZ00276278","Všeň 10","Všeň","51265","84 000,00 Kč","50 400 Kč","40,00%","00276278",59,153]
[104,"Městys","Zdislava","Vybavení JSDH Zdislava věcnými prostředky","Dovybavení JSDH věcnými prostředky",4,"vysavač Hydra Boy - 1 ks, ","NE\ntento typ vysavače nemá požadovaný průtok 20000 lúhod.",27293,16375,60,10918,40,"00481491",null,"3","Zdislava","46353","27 293,00 Kč","16 375 Kč","40,00%","00481491",34,26]
[]
[]
[null,null,null,null,null,null,null,null,null,{"$f":"SUM(J10:J41)","v":3951515}]